Workbook

Sheet HOMICIDIOS 2014
A1: DEPTO | B1: MUNICIPIO | C1: ENE | G1: FEB | K1: MAR | O1: ABR | S1: MAY | W1: JUN | AA1: JUL | AE1: AGO | AI1: SEP | AM1: OCT | AQ1: NOV | AU1: DIC | AY1: TOTAL | BB1: TOTAL GRAL
C2: H | D2: M | E2: ND | F2: Total | G2: H | H2: M | I2: ND | J2: Total | K2: H | L2: M | M2: ND | N2: Total | O2: H | P2: M | Q2: ND | R2: Total | S2: H | T2: M | U2: ND | V2: Total | W2: H | X2: M | Y2: ND | Z2: Total | AA2: H | AB2: M | AC2: N/D | AD2: Total | AE2: H | AF2: M | AG2: N/D | AH2: Total | AI2: H | AJ2: M | AK2: ND | AL2: Total | AM2: H | AN2: M | AO2: ND | AP2: Total | AQ2: H | AR2: M | AS2: ND | AT2: Total | AU2: H | AV2: M | AW2: ND | AX2: Total | AY2: H | AZ2: M | BA2: ND
A3: AHUCHAPAN | B3: AHUACHAPAN | C3: 2 | F3: =SUM(C3:E3) -> 2 | G3: 3 | J3: =SUM(G3:I3) -> 3 | N3: =SUM(K3:M3) -> 0 | O3: 3 | R3: =SUM(O3:Q3) -> 3 | S3: 2 | V3: =SUM(S3:U3) -> 2 | W3: 2 | Z3: =SUM(W3:Y3) -> 2 | AA3: 2 | AD3: =SUM(AA3:AC3) -> 2 | AE3: 1 | AH3: =SUM(AE3:AG3) -> 1 | AI3: 2 | AL3: =SUM(AI3:AK3) -> 2 | AN3: 1 | AP3: =SUM(AM3:AO3) -> 1 | AQ3: 3 | AT3: =SUM(AQ3:AS3) -> 3 | AU3: 2 | AX3: =SUM(AU3:AW3) -> 2 | AY3: =SUM(C3+G3+K3+O3+S3+W3+AA3+AE3+AI3+AM3+AQ3+AU3) -> 22 | AZ3: =SUM(D3+H3+L3+P3+T3+X3+AB3+AF3+AJ3+AN3+AR3+AV3) -> 1 | BA3: =SUM(E3+I3+M3+Q3+U3+Y3+AC3+AG3+AK3+AO3+AS3+AW3) -> 0 | BB3: =SUM(AY3:BA3) -> 23
B4: APANECA | F4: =SUM(C4:E4) -> 0 | J4: =SUM(G4:I4) -> 0 | N4: =SUM(K4:M4) -> 0 | R4: =SUM(O4:Q4) -> 0 | V4: =SUM(S4:U4) -> 0 | Z4: =SUM(W4:Y4) -> 0 | AA4: 1 | AD4: =SUM(AA4:AC4) -> 1 | AH4: =SUM(AE4:AG4) -> 0 | AL4: =SUM(AI4:AK4) -> 0 | AP4: =SUM(AM4:AO4) -> 0 | AT4: =SUM(AQ4:AS4) -> 0 | AX4: =SUM(AU4:AW4) -> 0 | AY4: =SUM(C4+G4+K4+O4+S4+W4+AA4+AE4+AI4+AM4+AQ4+AU4) -> 1 | AZ4: =SUM(D4+H4+L4+P4+T4+X4+AB4+AF4+AJ4+AN4+AR4+AV4) -> 0 | BA4: =SUM(E4+I4+M4+Q4+U4+Y4+AC4+AG4+AK4+AO4+AS4+AW4) -> 0 | BB4: =SUM(AY4:BA4) -> 1
B5: ATIQUIZAYA | C5: 1 | F5: =SUM(C5:E5) -> 1 | J5: =SUM(G5:I5) -> 0 | K5: 1 | N5: =SUM(K5:M5) -> 1 | R5: =SUM(O5:Q5) -> 0 | S5: 1 | V5: =SUM(S5:U5) -> 1 | W5: 3 | Z5: =SUM(W5:Y5) -> 3 | AA5: 1 | AD5: =SUM(AA5:AC5) -> 1 | AE5: 3 | AH5: =SUM(AE5:AG5) -> 3 | AI5: 3 | AJ5: 1 | AL5: =SUM(AI5:AK5) -> 4 | AP5: =SUM(AM5:AO5) -> 0 | AQ5: 2 | AR5: 1 | AT5: =SUM(AQ5:AS5) -> 3 | AU5: 2 | AX5: =SUM(AU5:AW5) -> 2 | AY5: =SUM(C5+G5+K5+O5+S5+W5+AA5+AE5+AI5+AM5+AQ5+AU5) -> 17 | AZ5: =SUM(D5+H5+L5+P5+T5+X5+AB5+AF5+AJ5+AN5+AR5+AV5) -> 2 | BA5: =SUM(E5+I5+M5+Q5+U5+Y5+AC5+AG5+AK5+AO5+AS5+AW5) -> 0 | BB5: =SUM(AY5:BA5) -> 19
B6: CONCEPCION DE ATACO | F6: =SUM(C6:E6) -> 0 | J6: =SUM(G6:I6) -> 0 | N6: =SUM(K6:M6) -> 0 | O6: 2 | R6: =SUM(O6:Q6) -> 2 | V6: =SUM(S6:U6) -> 0 | Z6: =SUM(W6:Y6) -> 0 | AD6: =SUM(AA6:AC6) -> 0 | AH6: =SUM(AE6:AG6) -> 0 | AL6: =SUM(AI6:AK6) -> 0 | AP6: =SUM(AM6:AO6) -> 0 | AT6: =SUM(AQ6:AS6) -> 0 | AX6: =SUM(AU6:AW6) -> 0 | AY6: =SUM(C6+G6+K6+O6+S6+W6+AA6+AE6+AI6+AM6+AQ6+AU6) -> 2 | AZ6: =SUM(D6+H6+L6+P6+T6+X6+AB6+AF6+AJ6+AN6+AR6+AV6) -> 0 | BA6: =SUM(E6+I6+M6+Q6+U6+Y6+AC6+AG6+AK6+AO6+AS6+AW6) -> 0 | BB6: =SUM(AY6:BA6) -> 2
B7: EL REFUGIO | F7: =SUM(C7:E7) -> 0 | J7: =SUM(G7:I7) -> 0 | N7: =SUM(K7:M7) -> 0 | O7: 2 | R7: =SUM(O7:Q7) -> 2 | V7: =SUM(S7:U7) -> 0 | Z7: =SUM(W7:Y7) -> 0 | AD7: =SUM(AA7:AC7) -> 0 | AH7: =SUM(AE7:AG7) -> 0 | AI7: 1 | AL7: =SUM(AI7:AK7) -> 1 | AM7: 2 | AP7: =SUM(AM7:AO7) -> 2 | AT7: =SUM(AQ7:AS7) -> 0 | AU7: 3 | AX7: =SUM(AU7:AW7) -> 3 | AY7: =SUM(C7+G7+K7+O7+S7+W7+AA7+AE7+AI7+AM7+AQ7+AU7) -> 8 | AZ7: =SUM(D7+H7+L7+P7+T7+X7+AB7+AF7+AJ7+AN7+AR7+AV7) -> 0 | BA7: =SUM(E7+I7+M7+Q7+U7+Y7+AC7+AG7+AK7+AO7+AS7+AW7) -> 0 | BB7: =SUM(AY7:BA7) -> 8
B8: GUAYMANGO | F8: =SUM(C8:E8) -> 0 | J8: =SUM(G8:I8) -> 0 | N8: =SUM(K8:M8) -> 0 | R8: =SUM(O8:Q8) -> 0 | V8: =SUM(S8:U8) -> 0 | Z8: =SUM(W8:Y8) -> 0 | AD8: =SUM(AA8:AC8) -> 0 | AE8: 1 | AH8: =SUM(AE8:AG8) -> 1 | AI8: 1 | AL8: =SUM(AI8:AK8) -> 1 | AP8: =SUM(AM8:AO8) -> 0 | AT8: =SUM(AQ8:AS8) -> 0 | AU8: 1 | AX8: =SUM(AU8:AW8) -> 1 | AY8: =SUM(C8+G8+K8+O8+S8+W8+AA8+AE8+AI8+AM8+AQ8+AU8) -> 3 | AZ8: =SUM(D8+H8+L8+P8+T8+X8+AB8+AF8+AJ8+AN8+AR8+AV8) -> 0 | BA8: =SUM(E8+I8+M8+Q8+U8+Y8+AC8+AG8+AK8+AO8+AS8+AW8) -> 0 | BB8: =SUM(AY8:BA8) -> 3
B9: JUJUTLA | C9: 2 | D9: 1 | F9: =SUM(C9:E9) -> 3 | J9: =SUM(G9:I9) -> 0 | N9: =SUM(K9:M9) -> 0 | R9: =SUM(O9:Q9) -> 0 | S9: 2 | T9: 1 | V9: =SUM(S9:U9) -> 3 | Z9: =SUM(W9:Y9) -> 0 | AD9: =SUM(AA9:AC9) -> 0 | AE9: 2 | AF9: 1 | AH9: =SUM(AE9:AG9) -> 3 | AI9: 1 | AL9: =SUM(AI9:AK9) -> 1 | AM9: 1 | AP9: =SUM(AM9:AO9) -> 1 | AT9: =SUM(AQ9:AS9) -> 0 | AU9: 1 | AX9: =SUM(AU9:AW9) -> 1 | AY9: =SUM(C9+G9+K9+O9+S9+W9+AA9+AE9+AI9+AM9+AQ9+AU9) -> 9 | AZ9: =SUM(D9+H9+L9+P9+T9+X9+AB9+AF9+AJ9+AN9+AR9+AV9) -> 3 | BA9: =SUM(E9+I9+M9+Q9+U9+Y9+AC9+AG9+AK9+AO9+AS9+AW9) -> 0 | BB9: =SUM(AY9:BA9) -> 12
B10: SAN FRANCISCO MENENDEZ | C10: 2 | D10: 1 | F10: =SUM(C10:E10) -> 3 | J10: =SUM(G10:I10) -> 0 | K10: 2 | N10: =SUM(K10:M10) -> 2 | O10: 1 | R10: =SUM(O10:Q10) -> 1 | S10: 1 | V10: =SUM(S10:U10) -> 1 | W10: 1 | X10: 1 | Z10: =SUM(W10:Y10) -> 2 | AA10: 3 | AD10: =SUM(AA10:AC10) -> 3 | AE10: 4 | AH10: =SUM(AE10:AG10) -> 4 | AI10: 2 | AJ10: 1 | AL10: =SUM(AI10:AK10) -> 3 | AM10: 3 | AP10: =SUM(AM10:AO10) -> 3 | AQ10: 2 | AR10: 1 | AT10: =SUM(AQ10:AS10) -> 3 | AU10: 3 | AX10: =SUM(AU10:AW10) -> 3 | AY10: =SUM(C10+G10+K10+O10+S10+W10+AA10+AE10+AI10+AM10+AQ10+AU10) -> 24 | AZ10: =SUM(D10+H10+L10+P10+T10+X10+AB10+AF10+AJ10+AN10+AR10+AV10) -> 4 | BA10: =SUM(E10+I10+M10+Q10+U10+Y10+AC10+AG10+AK10+AO10+AS10+AW10) -> 0 | BB10: =SUM(AY10:BA10) -> 28
B11: SAN LORENZO | F11: =SUM(C11:E11) -> 0 | J11: =SUM(G11:I11) -> 0 | N11: =SUM(K11:M11) -> 0 | R11: =SUM(O11:Q11) -> 0 | V11: =SUM(S11:U11) -> 0 | Z11: =SUM(W11:Y11) -> 0 | AD11: =SUM(AA11:AC11) -> 0 | AH11: =SUM(AE11:AG11) -> 0 | AL11: =SUM(AI11:AK11) -> 0 | AP11: =SUM(AM11:AO11) -> 0 | AQ11: 1 | AT11: =SUM(AQ11:AS11) -> 1 | AU11: 8 | AX11: =SUM(AU11:AW11) -> 8 | AY11: =SUM(C11+G11+K11+O11+S11+W11+AA11+AE11+AI11+AM11+AQ11+AU11) -> 9 | AZ11: =SUM(D11+H11+L11+P11+T11+X11+AB11+AF11+AJ11+AN11+AR11+AV11) -> 0 | BA11: =SUM(E11+I11+M11+Q11+U11+Y11+AC11+AG11+AK11+AO11+AS11+AW11) -> 0 | BB11: =SUM(AY11:BA11) -> 9
B12: SAN PEDRO PUXTLA | F12: =SUM(C12:E12) -> 0 | J12: =SUM(G12:I12) -> 0 | N12: =SUM(K12:M12) -> 0 | R12: =SUM(O12:Q12) -> 0 | V12: =SUM(S12:U12) -> 0 | Z12: =SUM(W12:Y12) -> 0 | AD12: =SUM(AA12:AC12) -> 0 | AH12: =SUM(AE12:AG12) -> 0 | AI12: 2 | AL12: =SUM(AI12:AK12) -> 2 | AP12: =SUM(AM12:AO12) -> 0 | AR12: 0 | AT12: =SUM(AQ12:AS12) -> 0 | AX12: =SUM(AU12:AW12) -> 0 | AY12: =SUM(C12+G12+K12+O12+S12+W12+AA12+AE12+AI12+AM12+AQ12+AU12) -> 2 | AZ12: =SUM(D12+H12+L12+P12+T12+X12+AB12+AF12+AJ12+AN12+AR12+AV12) -> 0 | BA12: =SUM(E12+I12+M12+Q12+U12+Y12+AC12+AG12+AK12+AO12+AS12+AW12) -> 0 | BB12: =SUM(AY12:BA12) -> 2
B13: TACUBA | C13: 6 | F13: =SUM(C13:E13) -> 6 | J13: =SUM(G13:I13) -> 0 | L13: 1 | N13: =SUM(K13:M13) -> 1 | O13: 1 | R13: =SUM(O13:Q13) -> 1 | S13: 3 | V13: =SUM(S13:U13) -> 3 | W13: 1 | Z13: =SUM(W13:Y13) -> 1 | AD13: =SUM(AA13:AC13) -> 0 | AH13: =SUM(AE13:AG13) -> 0 | AL13: =SUM(AI13:AK13) -> 0 | AM13: 1 | AP13: =SUM(AM13:AO13) -> 1 | AQ13: 3 | AT13: =SUM(AQ13:AS13) -> 3 | AX13: =SUM(AU13:AW13) -> 0 | AY13: =SUM(C13+G13+K13+O13+S13+W13+AA13+AE13+AI13+AM13+AQ13+AU13) -> 15 | AZ13: =SUM(D13+H13+L13+P13+T13+X13+AB13+AF13+AJ13+AN13+AR13+AV13) -> 1 | BA13: =SUM(E13+I13+M13+Q13+U13+Y13+AC13+AG13+AK13+AO13+AS13+AW13) -> 0 | BB13: =SUM(AY13:BA13) -> 16
B14: TURIN | F14: =SUM(C14:E14) -> 0 | G14: 1 | J14: =SUM(G14:I14) -> 1 | K14: 1 | N14: =SUM(K14:M14) -> 1 | O14: 1 | R14: =SUM(O14:Q14) -> 1 | V14: =SUM(S14:U14) -> 0 | W14: 1 | Z14: =SUM(W14:Y14) -> 1 | AA14: 1 | AD14: =SUM(AA14:AC14) -> 1 | AH14: =SUM(AE14:AG14) -> 0 | AL14: =SUM(AI14:AK14) -> 0 | AP14: =SUM(AM14:AO14) -> 0 | AR14: 1 | AT14: =SUM(AQ14:AS14) -> 1 | AU14: 1 | AX14: =SUM(AU14:AW14) -> 1 | AY14: =SUM(C14+G14+K14+O14+S14+W14+AA14+AE14+AI14+AM14+AQ14+AU14) -> 6 | AZ14: =SUM(D14+H14+L14+P14+T14+X14+AB14+AF14+AJ14+AN14+AR14+AV14) -> 1 | BA14: =SUM(E14+I14+M14+Q14+U14+Y14+AC14+AG14+AK14+AO14+AS14+AW14) -> 0 | BB14: =SUM(AY14:BA14) -> 7
A15: TOTAL | C15: =SUM(C3:C14) -> 13 | D15: =SUM(D3:D14) -> 2 | E15: =SUM(E3:E14) -> 0 | F15: =SUM(C15:E15) -> 15 | G15: =SUM(G3:G14) -> 4 | H15: =SUM(H3:H14) -> 0 | I15: =SUM(I3:I14) -> 0 | J15: =SUM(G15:I15) -> 4 | K15: =SUM(K3:K14) -> 4 | L15: =SUM(L3:L14) -> 1 | M15: =SUM(M3:M14) -> 0 | N15: =SUM(K15:M15) -> 5 | O15: =SUM(O3:O14) -> 10 | P15: =SUM(P3:P14) -> 0 | Q15: =SUM(Q3:Q14) -> 0 | R15: =SUM(O15:Q15) -> 10 | S15: =SUM(S3:S14) -> 9 | T15: =SUM(T3:T14) -> 1 | U15: =SUM(U3:U14) -> 0 | V15: =SUM(S15:U15) -> 10 | W15: =SUM(W3:W14) -> 8 | X15: =SUM(X3:X14) -> 1 | Y15: =SUM(Y3:Y14) -> 0 | Z15: =SUM(W15:Y15) -> 9 | AA15: =SUM(AA3:AA14) -> 8 | AB15: =SUM(AB3:AB14) -> 0 | AC15: =SUM(AC3:AC14) -> 0 | AD15: =SUM(AA15:AC15) -> 8 | AE15: =SUM(AE3:AE14) -> 11 | AF15: =SUM(AF3:AF14) -> 1 | AG15: =SUM(AG3:AG14) -> 0 | AH15: =SUM(AE15:AG15) -> 12 | AI15: =SUM(AI3:AI14) -> 12 | AJ15: =SUM(AJ3:AJ14) -> 2 | AK15: =SUM(AK3:AK14) -> 0 | AL15: =SUM(AI15:AK15) -> 14 | AM15: =SUM(AM3:AM14) -> 7 | AN15: =SUM(AN3:AN14) -> 1 | AO15: =SUM(AO3:AO14) -> 0 | AP15: =SUM(AM15:AO15) -> 8 | AQ15: =SUM(AQ3:AQ14) -> 11 | AR15: =SUM(AR3:AR14) -> 3 | AS15: =SUM(AS3:AS14) -> 0 | AT15: =SUM(AQ15:AS15) -> 14 | AU15: =SUM(AU3:AU14) -> 21 | AV15: =SUM(AV3:AV14) -> 0 | AW15: =SUM(AW3:AW14) -> 0 | AX15: =SUM(AU15:AW15) -> 21 | AY15: =SUM(AY3:AY14) -> 118 | AZ15: =SUM(AZ3:AZ14) -> 12 | BA15: =SUM(BA3:BA14) -> 0 | BB15: =SUM(AY15:BA15) -> 130
A16: SANTA ANA | B16: CANDELARIA DE LA FRONTERA | F16: =SUM(C16:E16) -> 0 | J16: =SUM(G16:I16) -> 0 | L16: 1 | N16: =SUM(K16:M16) -> 1 | R16: =SUM(O16:Q16) -> 0 | V16: =SUM(S16:U16) -> 0 | Z16: =SUM(W16:Y16) -> 0 | AD16: =SUM(AA16:AC16) -> 0 | AH16: =SUM(AE16:AG16) -> 0 | AI16: 1 | AL16: =SUM(AI16:AK16) -> 1 | AM16: 1 | AN16: 1 | AP16: =SUM(AM16:AO16) -> 2 | AT16: =SUM(AQ16:AS16) -> 0 | AU16: 1 | AX16: =SUM(AU16:AW16) -> 1 | AY16: =SUM(C16+G16+K16+O16+S16+W16+AA16+AE16+AI16+AM16+AQ16+AU16) -> 3 | AZ16: =SUM(D16+H16+L16+P16+T16+X16+AB16+AF16+AJ16+AN16+AR16+AV16) -> 2 | BA16: =SUM(E16+I16+M16+Q16+U16+Y16+AC16+AG16+AK16+AO16+AS16+AW16) -> 0 | BB16: =SUM(AY16:BA16) -> 5
B17: CHALCHUAPA | C17: 2 | F17: =SUM(C17:E17) -> 2 | G17: 4 | H17: 1 | J17: =SUM(G17:I17) -> 5 | K17: 3 | L17: 2 | N17: =SUM(K17:M17) -> 5 | O17: 2 | P17: 1 | R17: =SUM(O17:Q17) -> 3 | S17: 6 | T17: 1 | V17: =SUM(S17:U17) -> 7 | W17: 9 | Z17: =SUM(W17:Y17) -> 9 | AA17: 5 | AD17: =SUM(AA17:AC17) -> 5 | AE17: 5 | AF17: 4 | AH17: =SUM(AE17:AG17) -> 9 | AI17: 8 | AL17: =SUM(AI17:AK17) -> 8 | AM17: 6 | AP17: =SUM(AM17:AO17) -> 6 | AQ17: 2 | AT17: =SUM(AQ17:AS17) -> 2 | AU17: 6 | AX17: =SUM(AU17:AW17) -> 6 | AY17: =SUM(C17+G17+K17+O17+S17+W17+AA17+AE17+AI17+AM17+AQ17+AU17) -> 58 | AZ17: =SUM(D17+H17+L17+P17+T17+X17+AB17+AF17+AJ17+AN17+AR17+AV17) -> 9 | BA17: =SUM(E17+I17+M17+Q17+U17+Y17+AC17+AG17+AK17+AO17+AS17+AW17) -> 0 | BB17: =SUM(AY17:BA17) -> 67
B18: COATEPEQUE | C18: 3 | F18: =SUM(C18:E18) -> 3 | J18: =SUM(G18:I18) -> 0 | K18: 1 | N18: =SUM(K18:M18) -> 1 | O18: 1 | R18: =SUM(O18:Q18) -> 1 | S18: 3 | T18: 1 | V18: =SUM(S18:U18) -> 4 | W18: 1 | Z18: =SUM(W18:Y18) -> 1 | AA18: 2 | AB18: 1 | AD18: =SUM(AA18:AC18) -> 3 | AE18: 1 | AG18: 1 | AH18: =SUM(AE18:AG18) -> 2 | AI18: 1 | AL18: =SUM(AI18:AK18) -> 1 | AM18: 2 | AP18: =SUM(AM18:AO18) -> 2 | AT18: =SUM(AQ18:AS18) -> 0 | AU18: 3 | AX18: =SUM(AU18:AW18) -> 3 | AY18: =SUM(C18+G18+K18+O18+S18+W18+AA18+AE18+AI18+AM18+AQ18+AU18) -> 18 | AZ18: =SUM(D18+H18+L18+P18+T18+X18+AB18+AF18+AJ18+AN18+AR18+AV18) -> 2 | BA18: =SUM(E18+I18+M18+Q18+U18+Y18+AC18+AG18+AK18+AO18+AS18+AW18) -> 1 | BB18: =SUM(AY18:BA18) -> 21
B19: EL CONGO | F19: =SUM(C19:E19) -> 0 | G19: 1 | J19: =SUM(G19:I19) -> 1 | K19: 1 | N19: =SUM(K19:M19) -> 1 | O19: 1 | R19: =SUM(O19:Q19) -> 1 | V19: =SUM(S19:U19) -> 0 | W19: 1 | X19: 1 | Z19: =SUM(W19:Y19) -> 2 | AD19: =SUM(AA19:AC19) -> 0 | AE19: 1 | AH19: =SUM(AE19:AG19) -> 1 | AI19: 2 | AL19: =SUM(AI19:AK19) -> 2 | AM19: 1 | AP19: =SUM(AM19:AO19) -> 1 | AQ19: 1 | AT19: =SUM(AQ19:AS19) -> 1 | AU19: 3 | AX19: =SUM(AU19:AW19) -> 3 | AY19: =SUM(C19+G19+K19+O19+S19+W19+AA19+AE19+AI19+AM19+AQ19+AU19) -> 12 | AZ19: =SUM(D19+H19+L19+P19+T19+X19+AB19+AF19+AJ19+AN19+AR19+AV19) -> 1 | BA19: =SUM(E19+I19+M19+Q19+U19+Y19+AC19+AG19+AK19+AO19+AS19+AW19) -> 0 | BB19: =SUM(AY19:BA19) -> 13
B20: EL PORVENIR | F20: =SUM(C20:E20) -> 0 | J20: =SUM(G20:I20) -> 0 | N20: =SUM(K20:M20) -> 0 | R20: =SUM(O20:Q20) -> 0 | V20: =SUM(S20:U20) -> 0 | Z20: =SUM(W20:Y20) -> 0 | AD20: =SUM(AA20:AC20) -> 0 | AE20: 1 | AH20: =SUM(AE20:AG20) -> 1 | AI20: 1 | AL20: =SUM(AI20:AK20) -> 1 | AM20: 1 | AP20: =SUM(AM20:AO20) -> 1 | AQ20: 1 | AT20: =SUM(AQ20:AS20) -> 1 | AX20: =SUM(AU20:AW20) -> 0 | AY20: =SUM(C20+G20+K20+O20+S20+W20+AA20+AE20+AI20+AM20+AQ20+AU20) -> 4 | AZ20: =SUM(D20+H20+L20+P20+T20+X20+AB20+AF20+AJ20+AN20+AR20+AV20) -> 0 | BA20: =SUM(E20+I20+M20+Q20+U20+Y20+AC20+AG20+AK20+AO20+AS20+AW20) -> 0 | BB20: =SUM(AY20:BA20) -> 4
B21: MASAHUAT | F21: =SUM(C21:E21) -> 0 | J21: =SUM(G21:I21) -> 0 | N21: =SUM(K21:M21) -> 0 | R21: =SUM(O21:Q21) -> 0 | V21: =SUM(S21:U21) -> 0 | Z21: =SUM(W21:Y21) -> 0 | AD21: =SUM(AA21:AC21) -> 0 | AH21: =SUM(AE21:AG21) -> 0 | AL21: =SUM(AI21:AK21) -> 0 | AP21: =SUM(AM21:AO21) -> 0 | AT21: =SUM(AQ21:AS21) -> 0 | AX21: =SUM(AU21:AW21) -> 0 | AY21: =SUM(C21+G21+K21+O21+S21+W21+AA21+AE21+AI21+AM21+AQ21+AU21) -> 0 | AZ21: =SUM(D21+H21+L21+P21+T21+X21+AB21+AF21+AJ21+AN21+AR21+AV21) -> 0 | BA21: =SUM(E21+I21+M21+Q21+U21+Y21+AC21+AG21+AK21+AO21+AS21+AW21) -> 0 | BB21: =SUM(AY21:BA21) -> 0
B22: METAPAN | C22: 3 | D22: 1 | F22: =SUM(C22:E22) -> 4 | J22: =SUM(G22:I22) -> 0 | K22: 2 | L22: 1 | N22: =SUM(K22:M22) -> 3 | O22: 1 | P22: 1 | R22: =SUM(O22:Q22) -> 2 | S22: 4 | V22: =SUM(S22:U22) -> 4 | W22: 5 | X22: 1 | Z22: =SUM(W22:Y22) -> 6 | AA22: 1 | AD22: =SUM(AA22:AC22) -> 1 | AE22: 5 | AH22: =SUM(AE22:AG22) -> 5 | AI22: 3 | AL22: =SUM(AI22:AK22) -> 3 | AM22: 2 | AP22: =SUM(AM22:AO22) -> 2 | AQ22: 1 | AR22: 1 | AT22: =SUM(AQ22:AS22) -> 2 | AU22: 1 | AX22: =SUM(AU22:AW22) -> 1 | AY22: =SUM(C22+G22+K22+O22+S22+W22+AA22+AE22+AI22+AM22+AQ22+AU22) -> 28 | AZ22: =SUM(D22+H22+L22+P22+T22+X22+AB22+AF22+AJ22+AN22+AR22+AV22) -> 5 | BA22: =SUM(E22+I22+M22+Q22+U22+Y22+AC22+AG22+AK22+AO22+AS22+AW22) -> 0 | BB22: =SUM(AY22:BA22) -> 33
B23: SAN ANTONIO PAJONAL | F23: =SUM(C23:E23) -> 0 | J23: =SUM(G23:I23) -> 0 | K23: 1 | N23: =SUM(K23:M23) -> 1 | R23: =SUM(O23:Q23) -> 0 | V23: =SUM(S23:U23) -> 0 | Z23: =SUM(W23:Y23) -> 0 | AD23: =SUM(AA23:AC23) -> 0 | AH23: =SUM(AE23:AG23) -> 0 | AL23: =SUM(AI23:AK23) -> 0 | AP23: =SUM(AM23:AO23) -> 0 | AT23: =SUM(AQ23:AS23) -> 0 | AX23: =SUM(AU23:AW23) -> 0 | AY23: =SUM(C23+G23+K23+O23+S23+W23+AA23+AE23+AI23+AM23+AQ23+AU23) -> 1 | AZ23: =SUM(D23+H23+L23+P23+T23+X23+AB23+AF23+AJ23+AN23+AR23+AV23) -> 0 | BA23: =SUM(E23+I23+M23+Q23+U23+Y23+AC23+AG23+AK23+AO23+AS23+AW23) -> 0 | BB23: =SUM(AY23:BA23) -> 1
B24: SAN SEBASTIAN SALITRILLO | F24: =SUM(C24:E24) -> 0 | G24: 1 | J24: =SUM(G24:I24) -> 1 | K24: 1 | N24: =SUM(K24:M24) -> 1 | O24: 1 | R24: =SUM(O24:Q24) -> 1 | S24: 2 | V24: =SUM(S24:U24) -> 2 | Z24: =SUM(W24:Y24) -> 0 | AA24: 2 | AD24: =SUM(AA24:AC24) -> 2 | AE24: 1 | AH24: =SUM(AE24:AG24) -> 1 | AI24: 1 | AL24: =SUM(AI24:AK24) -> 1 | AP24: =SUM(AM24:AO24) -> 0 | AQ24: 1 | AT24: =SUM(AQ24:AS24) -> 1 | AX24: =SUM(AU24:AW24) -> 0 | AY24: =SUM(C24+G24+K24+O24+S24+W24+AA24+AE24+AI24+AM24+AQ24+AU24) -> 10 | AZ24: =SUM(D24+H24+L24+P24+T24+X24+AB24+AF24+AJ24+AN24+AR24+AV24) -> 0 | BA24: =SUM(E24+I24+M24+Q24+U24+Y24+AC24+AG24+AK24+AO24+AS24+AW24) -> 0 | BB24: =SUM(AY24:BA24) -> 10
B25: SANTA ANA | C25: 7 | F25: =SUM(C25:E25) -> 7 | G25: 8 | J25: =SUM(G25:I25) -> 8 | K25: 11 | L25: 1 | N25: =SUM(K25:M25) -> 12 | O25: 6 | R25: =SUM(O25:Q25) -> 6 | S25: 5 | T25: 1 | V25: =SUM(S25:U25) -> 6 | W25: 7 | Z25: =SUM(W25:Y25) -> 7 | AA25: 11 | AD25: =SUM(AA25:AC25) -> 11 | AE25: 12 | AH25: =SUM(AE25:AG25) -> 12 | AI25: 6 | AJ25: 1 | AL25: =SUM(AI25:AK25) -> 7 | AM25: 9 | AN25: 1 | AP25: =SUM(AM25:AO25) -> 10 | AQ25: 13 | AT25: =SUM(AQ25:AS25) -> 13 | AU25: 7 | AX25: =SUM(AU25:AW25) -> 7 | AY25: =SUM(C25+G25+K25+O25+S25+W25+AA25+AE25+AI25+AM25+AQ25+AU25) -> 102 | AZ25: =SUM(D25+H25+L25+P25+T25+X25+AB25+AF25+AJ25+AN25+AR25+AV25) -> 4 | BA25: =SUM(E25+I25+M25+Q25+U25+Y25+AC25+AG25+AK25+AO25+AS25+AW25) -> 0 | BB25: =SUM(AY25:BA25) -> 106
B26: SANTA ROSA GUACHIPILIN | F26: =SUM(C26:E26) -> 0 | J26: =SUM(G26:I26) -> 0 | N26: =SUM(K26:M26) -> 0 | R26: =SUM(O26:Q26) -> 0 | V26: =SUM(S26:U26) -> 0 | Z26: =SUM(W26:Y26) -> 0 | AD26: =SUM(AA26:AC26) -> 0 | AH26: =SUM(AE26:AG26) -> 0 | AL26: =SUM(AI26:AK26) -> 0 | AP26: =SUM(AM26:AO26) -> 0 | AT26: =SUM(AQ26:AS26) -> 0 | AU26: 1 | AX26: =SUM(AU26:AW26) -> 1 | AY26: =SUM(C26+G26+K26+O26+S26+W26+AA26+AE26+AI26+AM26+AQ26+AU26) -> 1 | AZ26: =SUM(D26+H26+L26+P26+T26+X26+AB26+AF26+AJ26+AN26+AR26+AV26) -> 0 | BA26: =SUM(E26+I26+M26+Q26+U26+Y26+AC26+AG26+AK26+AO26+AS26+AW26) -> 0 | BB26: =SUM(AY26:BA26) -> 1
B27: SANTIAGO DE LA FRONTERA | F27: =SUM(C27:E27) -> 0 | J27: =SUM(G27:I27) -> 0 | N27: =SUM(K27:M27) -> 0 | R27: =SUM(O27:Q27) -> 0 | V27: =SUM(S27:U27) -> 0 | W27: 1 | Z27: =SUM(W27:Y27) -> 1 | AD27: =SUM(AA27:AC27) -> 0 | AH27: =SUM(AE27:AG27) -> 0 | AL27: =SUM(AI27:AK27) -> 0 | AP27: =SUM(AM27:AO27) -> 0 | AT27: =SUM(AQ27:AS27) -> 0 | AX27: =SUM(AU27:AW27) -> 0 | AY27: =SUM(C27+G27+K27+O27+S27+W27+AA27+AE27+AI27+AM27+AQ27+AU27) -> 1 | AZ27: =SUM(D27+H27+L27+P27+T27+X27+AB27+AF27+AJ27+AN27+AR27+AV27) -> 0 | BA27: =SUM(E27+I27+M27+Q27+U27+Y27+AC27+AG27+AK27+AO27+AS27+AW27) -> 0 | BB27: =SUM(AY27:BA27) -> 1
B28: TEXISTEPEQUE | F28: =SUM(C28:E28) -> 0 | J28: =SUM(G28:I28) -> 0 | N28: =SUM(K28:M28) -> 0 | R28: =SUM(O28:Q28) -> 0 | V28: =SUM(S28:U28) -> 0 | Z28: =SUM(W28:Y28) -> 0 | AD28: =SUM(AA28:AC28) -> 0 | AH28: =SUM(AE28:AG28) -> 0 | AL28: =SUM(AI28:AK28) -> 0 | AP28: =SUM(AM28:AO28) -> 0 | AT28: =SUM(AQ28:AS28) -> 0 | AX28: =SUM(AU28:AW28) -> 0 | AY28: =SUM(C28+G28+K28+O28+S28+W28+AA28+AE28+AI28+AM28+AQ28+AU28) -> 0 | AZ28: =SUM(D28+H28+L28+P28+T28+X28+AB28+AF28+AJ28+AN28+AR28+AV28) -> 0 | BA28: =SUM(E28+I28+M28+Q28+U28+Y28+AC28+AG28+AK28+AO28+AS28+AW28) -> 0 | BB28: =SUM(AY28:BA28) -> 0
A29: TOTAL | C29: =SUM(C16:C28) -> 15 | D29: =SUM(D16:D28) -> 1 | E29: =SUM(E16:E28) -> 0 | F29: =SUM(C29:E29) -> 16 | G29: =SUM(G16:G28) -> 14 | H29: =SUM(H16:H28) -> 1 | I29: =SUM(I16:I28) -> 0 | J29: =SUM(G29:I29) -> 15 | K29: =SUM(K16:K28) -> 20 | L29: =SUM(L16:L28) -> 5 | M29: =SUM(M16:M28) -> 0 | N29: =SUM(K29:M29) -> 25 | O29: =SUM(O16:O28) -> 12 | P29: =SUM(P16:P28) -> 2 | Q29: =SUM(Q16:Q28) -> 0 | R29: =SUM(O29:Q29) -> 14 | S29: =SUM(S16:S28) -> 20 | T29: =SUM(T16:T28) -> 3 | U29: =SUM(U16:U28) -> 0 | V29: =SUM(S29:U29) -> 23 | W29: =SUM(W16:W28) -> 24 | X29: =SUM(X16:X28) -> 2 | Y29: =SUM(Y16:Y28) -> 0 | Z29: =SUM(W29:Y29) -> 26 | AA29: =SUM(AA16:AA28) -> 21 | AB29: =SUM(AB16:AB28) -> 1 | AC29: =SUM(AC16:AC28) -> 0 | AD29: =SUM(AA29:AC29) -> 22 | AE29: =SUM(AE16:AE28) -> 26 | AF29: =SUM(AF16:AF28) -> 4 | AG29: =SUM(AG16:AG28) -> 1 | AH29: =SUM(AE29:AG29) -> 31 | AI29: =SUM(AI16:AI28) -> 23 | AJ29: =SUM(AJ16:AJ28) -> 1 | AK29: =SUM(AK16:AK28) -> 0 | AL29: =SUM(AI29:AK29) -> 24 | AM29: =SUM(AM16:AM28) -> 22 | AN29: =SUM(AN16:AN28) -> 2 | AO29: =SUM(AO16:AO28) -> 0 | AP29: =SUM(AM29:AO29) -> 24 | AQ29: =SUM(AQ16:AQ28) -> 19 | AR29: =SUM(AR16:AR28) -> 1 | AS29: =SUM(AS16:AS28) -> 0 | AT29: =SUM(AQ29:AS29) -> 20 | AU29: =SUM(AU16:AU28) -> 22 | AV29: =SUM(AV16:AV28) -> 0 | AW29: =SUM(AW16:AW28) -> 0 | AX29: =SUM(AU29:AW29) -> 22 | AY29: =SUM(AY16:AY28) -> 238 | AZ29: =SUM(AZ16:AZ28) -> 23 | BA29: =SUM(BA16:BA28) -> 1 | BB29: =SUM(AY29:BA29) -> 262
A31: SONSONATE | B31: ACAJUTLA | F31: =SUM(C31:E31) -> 0 | J31: =SUM(G31:I31) -> 0 | K31: 2 | N31: =SUM(K31:M31) -> 2 | P31: 1 | R31: =SUM(O31:Q31) -> 1 | V31: =SUM(S31:U31) -> 0 | W31: 3 | Z31: =SUM(W31:Y31) -> 3 | AA31: 3 | AD31: =SUM(AA31:AC31) -> 3 | AE31: 2 | AF31: 1 | AH31: =SUM(AE31:AG31) -> 3 | AI31: 5 | AL31: =SUM(AI31:AK31) -> 5 | AM31: 4 | AN31: 1 | AP31: =SUM(AM31:AO31) -> 5 | AR31: 1 | AT31: =SUM(AQ31:AS31) -> 1 | AU31: 1 | AX31: =SUM(AU31:AW31) -> 1 | AY31: =SUM(C31+G31+K31+O31+S31+W31+AA31+AE31+AI31+AM31+AQ31+AU31) -> 20 | AZ31: =SUM(D31+H31+L31+P31+T31+X31+AB31+AF31+AJ31+AN31+AR31+AV31) -> 4 | BA31: =SUM(E31+I31+M31+Q31+U31+Y31+AC31+AG31+AK31+AO31+AS31+AW31) -> 0 | BB31: =SUM(AY31:BA31) -> 24
B32: ARMENIA | C32: 3 | D32: 2 | F32: =SUM(C32:E32) -> 5 | G32: 2 | J32: =SUM(G32:I32) -> 2 | N32: =SUM(K32:M32) -> 0 | O32: 1 | R32: =SUM(O32:Q32) -> 1 | S32: 4 | V32: =SUM(S32:U32) -> 4 | W32: 8 | Z32: =SUM(W32:Y32) -> 8 | AA32: 9 | AD32: =SUM(AA32:AC32) -> 9 | AE32: 4 | AH32: =SUM(AE32:AG32) -> 4 | AI32: 4 | AL32: =SUM(AI32:AK32) -> 4 | AP32: =SUM(AM32:AO32) -> 0 | AQ32: 4 | AT32: =SUM(AQ32:AS32) -> 4 | AU32: 2 | AX32: =SUM(AU32:AW32) -> 2 | AY32: =SUM(C32+G32+K32+O32+S32+W32+AA32+AE32+AI32+AM32+AQ32+AU32) -> 41 | AZ32: =SUM(D32+H32+L32+P32+T32+X32+AB32+AF32+AJ32+AN32+AR32+AV32) -> 2 | BA32: =SUM(E32+I32+M32+Q32+U32+Y32+AC32+AG32+AK32+AO32+AS32+AW32) -> 0 | BB32: =SUM(AY32:BA32) -> 43
B33: CALUCO | C33: 2 | F33: =SUM(C33:E33) -> 2 | G33: 1 | J33: =SUM(G33:I33) -> 1 | N33: =SUM(K33:M33) -> 0 | O33: 2 | R33: =SUM(O33:Q33) -> 2 | S33: 2 | V33: =SUM(S33:U33) -> 2 | W33: 2 | Z33: =SUM(W33:Y33) -> 2 | AA33: 1 | AD33: =SUM(AA33:AC33) -> 1 | AE33: 1 | AH33: =SUM(AE33:AG33) -> 1 | AI33: 1 | AL33: =SUM(AI33:AK33) -> 1 | AM33: 1 | AP33: =SUM(AM33:AO33) -> 1 | AT33: =SUM(AQ33:AS33) -> 0 | AU33: 1 | AX33: =SUM(AU33:AW33) -> 1 | AY33: =SUM(C33+G33+K33+O33+S33+W33+AA33+AE33+AI33+AM33+AQ33+AU33) -> 14 | AZ33: =SUM(D33+H33+L33+P33+T33+X33+AB33+AF33+AJ33+AN33+AR33+AV33) -> 0 | BA33: =SUM(E33+I33+M33+Q33+U33+Y33+AC33+AG33+AK33+AO33+AS33+AW33) -> 0 | BB33: =SUM(AY33:BA33) -> 14
B34: CUISNAHUAT | F34: =SUM(C34:E34) -> 0 | J34: =SUM(G34:I34) -> 0 | N34: =SUM(K34:M34) -> 0 | R34: =SUM(O34:Q34) -> 0 | V34: =SUM(S34:U34) -> 0 | Z34: =SUM(W34:Y34) -> 0 | AD34: =SUM(AA34:AC34) -> 0 | AH34: =SUM(AE34:AG34) -> 0 | AL34: =SUM(AI34:AK34) -> 0 | AP34: =SUM(AM34:AO34) -> 0 | AQ34: 2 | AT34: =SUM(AQ34:AS34) -> 2 | AX34: =SUM(AU34:AW34) -> 0 | AY34: =SUM(C34+G34+K34+O34+S34+W34+AA34+AE34+AI34+AM34+AQ34+AU34) -> 2 | AZ34: =SUM(D34+H34+L34+P34+T34+X34+AB34+AF34+AJ34+AN34+AR34+AV34) -> 0 | BA34: =SUM(E34+I34+M34+Q34+U34+Y34+AC34+AG34+AK34+AO34+AS34+AW34) -> 0 | BB34: =SUM(AY34:BA34) -> 2
B35: IZALCO | C35: 4 | F35: =SUM(C35:E35) -> 4 | G35: 1 | J35: =SUM(G35:I35) -> 1 | K35: 6 | N35: =SUM(K35:M35) -> 6 | O35: 3 | R35: =SUM(O35:Q35) -> 3 | S35: 7 | T35: 1 | V35: =SUM(S35:U35) -> 8 | W35: 6 | Z35: =SUM(W35:Y35) -> 6 | AA35: 6 | AD35: =SUM(AA35:AC35) -> 6 | AE35: 8 | AH35: =SUM(AE35:AG35) -> 8 | AI35: 4 | AL35: =SUM(AI35:AK35) -> 4 | AM35: 4 | AN35: 1 | AP35: =SUM(AM35:AO35) -> 5 | AQ35: 4 | AR35: 1 | AT35: =SUM(AQ35:AS35) -> 5 | AU35: 12 | AX35: =SUM(AU35:AW35) -> 12 | AY35: =SUM(C35+G35+K35+O35+S35+W35+AA35+AE35+AI35+AM35+AQ35+AU35) -> 65 | AZ35: =SUM(D35+H35+L35+P35+T35+X35+AB35+AF35+AJ35+AN35+AR35+AV35) -> 3 | BA35: =SUM(E35+I35+M35+Q35+U35+Y35+AC35+AG35+AK35+AO35+AS35+AW35) -> 0 | BB35: =SUM(AY35:BA35) -> 68
B36: JUAYUA | F36: =SUM(C36:E36) -> 0 | G36: 2 | J36: =SUM(G36:I36) -> 2 | N36: =SUM(K36:M36) -> 0 | R36: =SUM(O36:Q36) -> 0 | S36: 1 | V36: =SUM(S36:U36) -> 1 | W36: 2 | Z36: =SUM(W36:Y36) -> 2 | AA36: 3 | AD36: =SUM(AA36:AC36) -> 3 | AE36: 1 | AH36: =SUM(AE36:AG36) -> 1 | AL36: =SUM(AI36:AK36) -> 0 | AP36: =SUM(AM36:AO36) -> 0 | AT36: =SUM(AQ36:AS36) -> 0 | AU36: 6 | AX36: =SUM(AU36:AW36) -> 6 | AY36: =SUM(C36+G36+K36+O36+S36+W36+AA36+AE36+AI36+AM36+AQ36+AU36) -> 15 | AZ36: =SUM(D36+H36+L36+P36+T36+X36+AB36+AF36+AJ36+AN36+AR36+AV36) -> 0 | BA36: =SUM(E36+I36+M36+Q36+U36+Y36+AC36+AG36+AK36+AO36+AS36+AW36) -> 0 | BB36: =SUM(AY36:BA36) -> 15
B37: NAHUIZALCO | C37: 5 | D37: 1 | F37: =SUM(C37:E37) -> 6 | G37: 2 | J37: =SUM(G37:I37) -> 2 | K37: 2 | L37: 1 | N37: =SUM(K37:M37) -> 3 | O37: 3 | R37: =SUM(O37:Q37) -> 3 | S37: 3 | V37: =SUM(S37:U37) -> 3 | W37: 6 | Z37: =SUM(W37:Y37) -> 6 | AA37: 6 | AB37: 1 | AD37: =SUM(AA37:AC37) -> 7 | AE37: 3 | AH37: =SUM(AE37:AG37) -> 3 | AI37: 2 | AL37: =SUM(AI37:AK37) -> 2 | AM37: 2 | AP37: =SUM(AM37:AO37) -> 2 | AQ37: 4 | AT37: =SUM(AQ37:AS37) -> 4 | AU37: 9 | AX37: =SUM(AU37:AW37) -> 9 | AY37: =SUM(C37+G37+K37+O37+S37+W37+AA37+AE37+AI37+AM37+AQ37+AU37) -> 47 | AZ37: =SUM(D37+H37+L37+P37+T37+X37+AB37+AF37+AJ37+AN37+AR37+AV37) -> 3 | BA37: =SUM(E37+I37+M37+Q37+U37+Y37+AC37+AG37+AK37+AO37+AS37+AW37) -> 0 | BB37: =SUM(AY37:BA37) -> 50
B38: NAHULINGO | F38: =SUM(C38:E38) -> 0 | J38: =SUM(G38:I38) -> 0 | K38: 2 | N38: =SUM(K38:M38) -> 2 | R38: =SUM(O38:Q38) -> 0 | S38: 1 | V38: =SUM(S38:U38) -> 1 | Z38: =SUM(W38:Y38) -> 0 | AD38: =SUM(AA38:AC38) -> 0 | AE38: 3 | AH38: =SUM(AE38:AG38) -> 3 | AL38: =SUM(AI38:AK38) -> 0 | AP38: =SUM(AM38:AO38) -> 0 | AQ38: 3 | AT38: =SUM(AQ38:AS38) -> 3 | AU38: 2 | AX38: =SUM(AU38:AW38) -> 2 | AY38: =SUM(C38+G38+K38+O38+S38+W38+AA38+AE38+AI38+AM38+AQ38+AU38) -> 11 | AZ38: =SUM(D38+H38+L38+P38+T38+X38+AB38+AF38+AJ38+AN38+AR38+AV38) -> 0 | BA38: =SUM(E38+I38+M38+Q38+U38+Y38+AC38+AG38+AK38+AO38+AS38+AW38) -> 0 | BB38: =SUM(AY38:BA38) -> 11
B39: SALCOATITAN | F39: =SUM(C39:E39) -> 0 | J39: =SUM(G39:I39) -> 0 | N39: =SUM(K39:M39) -> 0 | O39: 1 | R39: =SUM(O39:Q39) -> 1 | V39: =SUM(S39:U39) -> 0 | Z39: =SUM(W39:Y39) -> 0 | AD39: =SUM(AA39:AC39) -> 0 | AH39: =SUM(AE39:AG39) -> 0 | AI39: 1 | AL39: =SUM(AI39:AK39) -> 1 | AP39: =SUM(AM39:AO39) -> 0 | AT39: =SUM(AQ39:AS39) -> 0 | AU39: 1 | AX39: =SUM(AU39:AW39) -> 1 | AY39: =SUM(C39+G39+K39+O39+S39+W39+AA39+AE39+AI39+AM39+AQ39+AU39) -> 3 | AZ39: =SUM(D39+H39+L39+P39+T39+X39+AB39+AF39+AJ39+AN39+AR39+AV39) -> 0 | BA39: =SUM(E39+I39+M39+Q39+U39+Y39+AC39+AG39+AK39+AO39+AS39+AW39) -> 0 | BB39: =SUM(AY39:BA39) -> 3
B40: SAN ANTONIO DEL MONTE | C40: 1 | F40: =SUM(C40:E40) -> 1 | J40: =SUM(G40:I40) -> 0 | N40: =SUM(K40:M40) -> 0 | R40: =SUM(O40:Q40) -> 0 | V40: =SUM(S40:U40) -> 0 | Z40: =SUM(W40:Y40) -> 0 | AD40: =SUM(AA40:AC40) -> 0 | AE40: 1 | AH40: =SUM(AE40:AG40) -> 1 | AL40: =SUM(AI40:AK40) -> 0 | AM40: 1 | AP40: =SUM(AM40:AO40) -> 1 | AT40: =SUM(AQ40:AS40) -> 0 | AU40: 2 | AX40: =SUM(AU40:AW40) -> 2 | AY40: =SUM(C40+G40+K40+O40+S40+W40+AA40+AE40+AI40+AM40+AQ40+AU40) -> 5 | AZ40: =SUM(D40+H40+L40+P40+T40+X40+AB40+AF40+AJ40+AN40+AR40+AV40) -> 0 | BA40: =SUM(E40+I40+M40+Q40+U40+Y40+AC40+AG40+AK40+AO40+AS40+AW40) -> 0 | BB40: =SUM(AY40:BA40) -> 5
B41: SAN JULIAN | C41: 1 | F41: =SUM(C41:E41) -> 1 | J41: =SUM(G41:I41) -> 0 | K41: 2 | N41: =SUM(K41:M41) -> 2 | O41: 1 | R41: =SUM(O41:Q41) -> 1 | S41: 1 | V41: =SUM(S41:U41) -> 1 | Z41: =SUM(W41:Y41) -> 0 | AA41: 2 | AD41: =SUM(AA41:AC41) -> 2 | AE41: 2 | AH41: =SUM(AE41:AG41) -> 2 | AI41: 2 | AJ41: 2 | AL41: =SUM(AI41:AK41) -> 4 | AP41: =SUM(AM41:AO41) -> 0 | AQ41: 2 | AT41: =SUM(AQ41:AS41) -> 2 | AU41: 3 | AX41: =SUM(AU41:AW41) -> 3 | AY41: =SUM(C41+G41+K41+O41+S41+W41+AA41+AE41+AI41+AM41+AQ41+AU41) -> 16 | AZ41: =SUM(D41+H41+L41+P41+T41+X41+AB41+AF41+AJ41+AN41+AR41+AV41) -> 2 | BA41: =SUM(E41+I41+M41+Q41+U41+Y41+AC41+AG41+AK41+AO41+AS41+AW41) -> 0 | BB41: =SUM(AY41:BA41) -> 18
B42: SANTA CATARINA MASAHUAT | F42: =SUM(C42:E42) -> 0 | J42: =SUM(G42:I42) -> 0 | K42: 1 | N42: =SUM(K42:M42) -> 1 | R42: =SUM(O42:Q42) -> 0 | V42: =SUM(S42:U42) -> 0 | Z42: =SUM(W42:Y42) -> 0 | AD42: =SUM(AA42:AC42) -> 0 | AH42: =SUM(AE42:AG42) -> 0 | AL42: =SUM(AI42:AK42) -> 0 | AP42: =SUM(AM42:AO42) -> 0 | AT42: =SUM(AQ42:AS42) -> 0 | AX42: =SUM(AU42:AW42) -> 0 | AY42: =SUM(C42+G42+K42+O42+S42+W42+AA42+AE42+AI42+AM42+AQ42+AU42) -> 1 | AZ42: =SUM(D42+H42+L42+P42+T42+X42+AB42+AF42+AJ42+AN42+AR42+AV42) -> 0 | BA42: =SUM(E42+I42+M42+Q42+U42+Y42+AC42+AG42+AK42+AO42+AS42+AW42) -> 0 | BB42: =SUM(AY42:BA42) -> 1
B43: SANTA ISABEL ISHUATAN | F43: =SUM(C43:E43) -> 0 | G43: 1 | J43: =SUM(G43:I43) -> 1 | N43: =SUM(K43:M43) -> 0 | R43: =SUM(O43:Q43) -> 0 | S43: 1 | V43: =SUM(S43:U43) -> 1 | Z43: =SUM(W43:Y43) -> 0 | AD43: =SUM(AA43:AC43) -> 0 | AE43: 1 | AH43: =SUM(AE43:AG43) -> 1 | AL43: =SUM(AI43:AK43) -> 0 | AP43: =SUM(AM43:AO43) -> 0 | AQ43: 1 | AT43: =SUM(AQ43:AS43) -> 1 | AX43: =SUM(AU43:AW43) -> 0 | AY43: =SUM(C43+G43+K43+O43+S43+W43+AA43+AE43+AI43+AM43+AQ43+AU43) -> 4 | AZ43: =SUM(D43+H43+L43+P43+T43+X43+AB43+AF43+AJ43+AN43+AR43+AV43) -> 0 | BA43: =SUM(E43+I43+M43+Q43+U43+Y43+AC43+AG43+AK43+AO43+AS43+AW43) -> 0 | BB43: =SUM(AY43:BA43) -> 4
B44: SANTO DOMINGO DE GUZMAN | F44: =SUM(C44:E44) -> 0 | J44: =SUM(G44:I44) -> 0 | N44: =SUM(K44:M44) -> 0 | R44: =SUM(O44:Q44) -> 0 | V44: =SUM(S44:U44) -> 0 | Z44: =SUM(W44:Y44) -> 0 | AD44: =SUM(AA44:AC44) -> 0 | AH44: =SUM(AE44:AG44) -> 0 | AL44: =SUM(AI44:AK44) -> 0 | AP44: =SUM(AM44:AO44) -> 0 | AQ44: 1 | AT44: =SUM(AQ44:AS44) -> 1 | AX44: =SUM(AU44:AW44) -> 0 | AY44: =SUM(C44+G44+K44+O44+S44+W44+AA44+AE44+AI44+AM44+AQ44+AU44) -> 1 | AZ44: =SUM(D44+H44+L44+P44+T44+X44+AB44+AF44+AJ44+AN44+AR44+AV44) -> 0 | BA44: =SUM(E44+I44+M44+Q44+U44+Y44+AC44+AG44+AK44+AO44+AS44+AW44) -> 0 | BB44: =SUM(AY44:BA44) -> 1
B45: SONSONATE | C45: 2 | D45: 1 | F45: =SUM(C45:E45) -> 3 | G45: 1 | J45: =SUM(G45:I45) -> 1 | K45: 2 | N45: =SUM(K45:M45) -> 2 | O45: 2 | P45: 1 | R45: =SUM(O45:Q45) -> 3 | V45: =SUM(S45:U45) -> 0 | W45: 1 | Z45: =SUM(W45:Y45) -> 1 | AD45: =SUM(AA45:AC45) -> 0 | AE45: 1 | AH45: =SUM(AE45:AG45) -> 1 | AI45: 3 | AJ45: 1 | AL45: =SUM(AI45:AK45) -> 4 | AM45: 2 | AP45: =SUM(AM45:AO45) -> 2 | AQ45: 10 | AR45: 2 | AT45: =SUM(AQ45:AS45) -> 12 | AU45: 4 | AX45: =SUM(AU45:AW45) -> 4 | AY45: =SUM(C45+G45+K45+O45+S45+W45+AA45+AE45+AI45+AM45+AQ45+AU45) -> 28 | AZ45: =SUM(D45+H45+L45+P45+T45+X45+AB45+AF45+AJ45+AN45+AR45+AV45) -> 5 | BA45: =SUM(E45+I45+M45+Q45+U45+Y45+AC45+AG45+AK45+AO45+AS45+AW45) -> 0 | BB45: =SUM(AY45:BA45) -> 33
B46: SONZACATE | F46: =SUM(C46:E46) -> 0 | G46: 1 | J46: =SUM(G46:I46) -> 1 | K46: 1 | L46: 2 | N46: =SUM(K46:M46) -> 3 | R46: =SUM(O46:Q46) -> 0 | V46: =SUM(S46:U46) -> 0 | W46: 1 | Z46: =SUM(W46:Y46) -> 1 | AD46: =SUM(AA46:AC46) -> 0 | AH46: =SUM(AE46:AG46) -> 0 | AI46: 1 | AL46: =SUM(AI46:AK46) -> 1 | AP46: =SUM(AM46:AO46) -> 0 | AT46: =SUM(AQ46:AS46) -> 0 | AU46: 1 | AX46: =SUM(AU46:AW46) -> 1 | AY46: =SUM(C46+G46+K46+O46+S46+W46+AA46+AE46+AI46+AM46+AQ46+AU46) -> 5 | AZ46: =SUM(D46+H46+L46+P46+T46+X46+AB46+AF46+AJ46+AN46+AR46+AV46) -> 2 | BA46: =SUM(E46+I46+M46+Q46+U46+Y46+AC46+AG46+AK46+AO46+AS46+AW46) -> 0 | BB46: =SUM(AY46:BA46) -> 7
A47: TOTAL | C47: =SUM(C31:C46) -> 18 | D47: =SUM(D31:D46) -> 4 | E47: =SUM(E31:E46) -> 0 | F47: =SUM(C47:E47) -> 22 | G47: =SUM(G31:G46) -> 11 | H47: =SUM(H31:H46) -> 0 | I47: =SUM(I31:I46) -> 0 | J47: =SUM(G47:I47) -> 11 | K47: =SUM(K31:K46) -> 18 | L47: =SUM(L31:L46) -> 3 | M47: =SUM(M31:M46) -> 0 | N47: =SUM(K47:M47) -> 21 | O47: =SUM(O31:O46) -> 13 | P47: =SUM(P31:P46) -> 2 | Q47: =SUM(Q31:Q46) -> 0 | R47: =SUM(O47:Q47) -> 15 | S47: =SUM(S31:S46) -> 20 | T47: =SUM(T31:T46) -> 1 | U47: =SUM(U31:U46) -> 0 | V47: =SUM(S47:U47) -> 21 | W47: =SUM(W31:W46) -> 29 | X47: =SUM(X31:X46) -> 0 | Y47: =SUM(Y31:Y46) -> 0 | Z47: =SUM(W47:Y47) -> 29 | AA47: =SUM(AA31:AA46) -> 30 | AB47: =SUM(AB31:AB46) -> 1 | AC47: =SUM(AC31:AC46) -> 0 | AD47: =SUM(AA47:AC47) -> 31 | AE47: =SUM(AE31:AE46) -> 27 | AF47: =SUM(AF31:AF46) -> 1 | AG47: =SUM(AG31:AG46) -> 0 | AH47: =SUM(AE47:AG47) -> 28 | AI47: =SUM(AI31:AI46) -> 23 | AJ47: =SUM(AJ31:AJ46) -> 3 | AK47: =SUM(AK31:AK46) -> 0 | AL47: =SUM(AI47:AK47) -> 26 | AM47: =SUM(AM31:AM46) -> 14 | AN47: =SUM(AN31:AN46) -> 2 | AO47: =SUM(AO31:AO46) -> 0 | AP47: =SUM(AM47:AO47) -> 16 | AQ47: =SUM(AQ31:AQ46) -> 31 | AR47: =SUM(AR31:AR46) -> 4 | AS47: =SUM(AS31:AS46) -> 0 | AT47: =SUM(AQ47:AS47) -> 35 | AU47: =SUM(AU31:AU46) -> 44 | AV47: =SUM(AV31:AV46) -> 0 | AW47: =SUM(AW31:AW46) -> 0 | AX47: =SUM(AU47:AW47) -> 44 | AY47: =SUM(AY31:AY46) -> 278 | AZ47: =SUM(AZ31:AZ46) -> 21 | BA47: =SUM(BA31:BA46) -> 0 | BB47: =SUM(AY47:BA47) -> 299
A49: CHALATENANGO | B49: AGUA CALIENTE | C49: 1 | F49: =SUM(C49:E49) -> 1 | J49: =SUM(G49:I49) -> 0 | N49: =SUM(K49:M49) -> 0 | O49: 1 | R49: =SUM(O49:Q49) -> 1 | S49: 1 | V49: =SUM(S49:U49) -> 1 | X49: 1 | Z49: =SUM(W49:Y49) -> 1 | AA49: 2 | AD49: =SUM(AA49:AC49) -> 2 | AF49: 1 | AH49: =SUM(AE49:AG49) -> 1 | AI49: 2 | AL49: =SUM(AI49:AK49) -> 2 | AP49: =SUM(AM49:AO49) -> 0 | AT49: =SUM(AQ49:AS49) -> 0 | AX49: =SUM(AU49:AW49) -> 0 | AY49: =SUM(C49+G49+K49+O49+S49+W49+AA49+AE49+AI49+AM49+AQ49+AU49) -> 7 | AZ49: =SUM(D49+H49+L49+P49+T49+X49+AB49+AF49+AJ49+AN49+AR49+AV49) -> 2 | BA49: =SUM(E49+I49+M49+Q49+U49+Y49+AC49+AG49+AK49+AO49+AS49+AW49) -> 0 | BB49: =SUM(AY49:BA49) -> 9
B50: ARCATAO | F50: =SUM(C50:E50) -> 0 | J50: =SUM(G50:I50) -> 0 | N50: =SUM(K50:M50) -> 0 | R50: =SUM(O50:Q50) -> 0 | V50: =SUM(S50:U50) -> 0 | Z50: =SUM(W50:Y50) -> 0 | AD50: =SUM(AA50:AC50) -> 0 | AH50: =SUM(AE50:AG50) -> 0 | AL50: =SUM(AI50:AK50) -> 0 | AP50: =SUM(AM50:AO50) -> 0 | AT50: =SUM(AQ50:AS50) -> 0 | AX50: =SUM(AU50:AW50) -> 0 | AY50: =SUM(C50+G50+K50+O50+S50+W50+AA50+AE50+AI50+AM50+AQ50+AU50) -> 0 | AZ50: =SUM(D50+H50+L50+P50+T50+X50+AB50+AF50+AJ50+AN50+AR50+AV50) -> 0 | BA50: =SUM(E50+I50+M50+Q50+U50+Y50+AC50+AG50+AK50+AO50+AS50+AW50) -> 0 | BB50: =SUM(AY50:BA50) -> 0
B51: AZACUALPA | F51: =SUM(C51:E51) -> 0 | J51: =SUM(G51:I51) -> 0 | N51: =SUM(K51:M51) -> 0 | R51: =SUM(O51:Q51) -> 0 | V51: =SUM(S51:U51) -> 0 | Z51: =SUM(W51:Y51) -> 0 | AD51: =SUM(AA51:AC51) -> 0 | AH51: =SUM(AE51:AG51) -> 0 | AL51: =SUM(AI51:AK51) -> 0 | AP51: =SUM(AM51:AO51) -> 0 | AT51: =SUM(AQ51:AS51) -> 0 | AX51: =SUM(AU51:AW51) -> 0 | AY51: =SUM(C51+G51+K51+O51+S51+W51+AA51+AE51+AI51+AM51+AQ51+AU51) -> 0 | AZ51: =SUM(D51+H51+L51+P51+T51+X51+AB51+AF51+AJ51+AN51+AR51+AV51) -> 0 | BA51: =SUM(E51+I51+M51+Q51+U51+Y51+AC51+AG51+AK51+AO51+AS51+AW51) -> 0 | BB51: =SUM(AY51:BA51) -> 0
B52: CHALATENANGO (CIUDAD) | F52: =SUM(C52:E52) -> 0 | J52: =SUM(G52:I52) -> 0 | N52: =SUM(K52:M52) -> 0 | O52: 2 | R52: =SUM(O52:Q52) -> 2 | S52: 3 | V52: =SUM(S52:U52) -> 3 | W52: 1 | Z52: =SUM(W52:Y52) -> 1 | AB52: 2 | AD52: =SUM(AA52:AC52) -> 2 | AE52: 3 | AH52: =SUM(AE52:AG52) -> 3 | AL52: =SUM(AI52:AK52) -> 0 | AM52: 2 | AP52: =SUM(AM52:AO52) -> 2 | AT52: =SUM(AQ52:AS52) -> 0 | AX52: =SUM(AU52:AW52) -> 0 | AY52: =SUM(C52+G52+K52+O52+S52+W52+AA52+AE52+AI52+AM52+AQ52+AU52) -> 11 | AZ52: =SUM(D52+H52+L52+P52+T52+X52+AB52+AF52+AJ52+AN52+AR52+AV52) -> 2 | BA52: =SUM(E52+I52+M52+Q52+U52+Y52+AC52+AG52+AK52+AO52+AS52+AW52) -> 0 | BB52: =SUM(AY52:BA52) -> 13
B53: CITALA | F53: =SUM(C53:E53) -> 0 | G53: 1 | J53: =SUM(G53:I53) -> 1 | N53: =SUM(K53:M53) -> 0 | R53: =SUM(O53:Q53) -> 0 | S53: 1 | V53: =SUM(S53:U53) -> 1 | Z53: =SUM(W53:Y53) -> 0 | AA53: 1 | AD53: =SUM(AA53:AC53) -> 1 | AH53: =SUM(AE53:AG53) -> 0 | AL53: =SUM(AI53:AK53) -> 0 | AP53: =SUM(AM53:AO53) -> 0 | AT53: =SUM(AQ53:AS53) -> 0 | AX53: =SUM(AU53:AW53) -> 0 | AY53: =SUM(C53+G53+K53+O53+S53+W53+AA53+AE53+AI53+AM53+AQ53+AU53) -> 3 | AZ53: =SUM(D53+H53+L53+P53+T53+X53+AB53+AF53+AJ53+AN53+AR53+AV53) -> 0 | BA53: =SUM(E53+I53+M53+Q53+U53+Y53+AC53+AG53+AK53+AO53+AS53+AW53) -> 0 | BB53: =SUM(AY53:BA53) -> 3
B54: COMALAPA | F54: =SUM(C54:E54) -> 0 | J54: =SUM(G54:I54) -> 0 | N54: =SUM(K54:M54) -> 0 | R54: =SUM(O54:Q54) -> 0 | V54: =SUM(S54:U54) -> 0 | Z54: =SUM(W54:Y54) -> 0 | AD54: =SUM(AA54:AC54) -> 0 | AH54: =SUM(AE54:AG54) -> 0 | AL54: =SUM(AI54:AK54) -> 0 | AP54: =SUM(AM54:AO54) -> 0 | AT54: =SUM(AQ54:AS54) -> 0 | AX54: =SUM(AU54:AW54) -> 0 | AY54: =SUM(C54+G54+K54+O54+S54+W54+AA54+AE54+AI54+AM54+AQ54+AU54) -> 0 | AZ54: =SUM(D54+H54+L54+P54+T54+X54+AB54+AF54+AJ54+AN54+AR54+AV54) -> 0 | BA54: =SUM(E54+I54+M54+Q54+U54+Y54+AC54+AG54+AK54+AO54+AS54+AW54) -> 0 | BB54: =SUM(AY54:BA54) -> 0
B55: CONCEPCION QUEZALTEPEQUE | F55: =SUM(C55:E55) -> 0 | J55: =SUM(G55:I55) -> 0 | N55: =SUM(K55:M55) -> 0 | R55: =SUM(O55:Q55) -> 0 | S55: 1 | V55: =SUM(S55:U55) -> 1 | Z55: =SUM(W55:Y55) -> 0 | AD55: =SUM(AA55:AC55) -> 0 | AH55: =SUM(AE55:AG55) -> 0 | AL55: =SUM(AI55:AK55) -> 0 | AP55: =SUM(AM55:AO55) -> 0 | AT55: =SUM(AQ55:AS55) -> 0 | AX55: =SUM(AU55:AW55) -> 0 | AY55: =SUM(C55+G55+K55+O55+S55+W55+AA55+AE55+AI55+AM55+AQ55+AU55) -> 1 | AZ55: =SUM(D55+H55+L55+P55+T55+X55+AB55+AF55+AJ55+AN55+AR55+AV55) -> 0 | BA55: =SUM(E55+I55+M55+Q55+U55+Y55+AC55+AG55+AK55+AO55+AS55+AW55) -> 0 | BB55: =SUM(AY55:BA55) -> 1
B56: DULCE NOMBRE DE MARIA | F56: =SUM(C56:E56) -> 0 | J56: =SUM(G56:I56) -> 0 | N56: =SUM(K56:M56) -> 0 | O56: 1 | R56: =SUM(O56:Q56) -> 1 | V56: =SUM(S56:U56) -> 0 | Z56: =SUM(W56:Y56) -> 0 | AD56: =SUM(AA56:AC56) -> 0 | AH56: =SUM(AE56:AG56) -> 0 | AL56: =SUM(AI56:AK56) -> 0 | AP56: =SUM(AM56:AO56) -> 0 | AT56: =SUM(AQ56:AS56) -> 0 | AX56: =SUM(AU56:AW56) -> 0 | AY56: =SUM(C56+G56+K56+O56+S56+W56+AA56+AE56+AI56+AM56+AQ56+AU56) -> 1 | AZ56: =SUM(D56+H56+L56+P56+T56+X56+AB56+AF56+AJ56+AN56+AR56+AV56) -> 0 | BA56: =SUM(E56+I56+M56+Q56+U56+Y56+AC56+AG56+AK56+AO56+AS56+AW56) -> 0 | BB56: =SUM(AY56:BA56) -> 1
B57: EL CARRIZAL | F57: =SUM(C57:E57) -> 0 | J57: =SUM(G57:I57) -> 0 | N57: =SUM(K57:M57) -> 0 | R57: =SUM(O57:Q57) -> 0 | V57: =SUM(S57:U57) -> 0 | Z57: =SUM(W57:Y57) -> 0 | AD57: =SUM(AA57:AC57) -> 0 | AH57: =SUM(AE57:AG57) -> 0 | AL57: =SUM(AI57:AK57) -> 0 | AP57: =SUM(AM57:AO57) -> 0 | AT57: =SUM(AQ57:AS57) -> 0 | AX57: =SUM(AU57:AW57) -> 0 | AY57: =SUM(C57+G57+K57+O57+S57+W57+AA57+AE57+AI57+AM57+AQ57+AU57) -> 0 | AZ57: =SUM(D57+H57+L57+P57+T57+X57+AB57+AF57+AJ57+AN57+AR57+AV57) -> 0 | BA57: =SUM(E57+I57+M57+Q57+U57+Y57+AC57+AG57+AK57+AO57+AS57+AW57) -> 0 | BB57: =SUM(AY57:BA57) -> 0
B58: EL PARAISO | F58: =SUM(C58:E58) -> 0 | G58: 1 | J58: =SUM(G58:I58) -> 1 | N58: =SUM(K58:M58) -> 0 | R58: =SUM(O58:Q58) -> 0 | V58: =SUM(S58:U58) -> 0 | Z58: =SUM(W58:Y58) -> 0 | AA58: 1 | AD58: =SUM(AA58:AC58) -> 1 | AH58: =SUM(AE58:AG58) -> 0 | AI58: 1 | AK58: 1 | AL58: =SUM(AI58:AK58) -> 2 | AM58: 2 | AP58: =SUM(AM58:AO58) -> 2 | AQ58: 1 | AT58: =SUM(AQ58:AS58) -> 1 | AU58: 1 | AX58: =SUM(AU58:AW58) -> 1 | AY58: =SUM(C58+G58+K58+O58+S58+W58+AA58+AE58+AI58+AM58+AQ58+AU58) -> 7 | AZ58: =SUM(D58+H58+L58+P58+T58+X58+AB58+AF58+AJ58+AN58+AR58+AV58) -> 0 | BA58: =SUM(E58+I58+M58+Q58+U58+Y58+AC58+AG58+AK58+AO58+AS58+AW58) -> 1 | BB58: =SUM(AY58:BA58) -> 8
B59: LA LAGUNA | F59: =SUM(C59:E59) -> 0 | J59: =SUM(G59:I59) -> 0 | N59: =SUM(K59:M59) -> 0 | R59: =SUM(O59:Q59) -> 0 | S59: 1 | V59: =SUM(S59:U59) -> 1 | Z59: =SUM(W59:Y59) -> 0 | AD59: =SUM(AA59:AC59) -> 0 | AH59: =SUM(AE59:AG59) -> 0 | AL59: =SUM(AI59:AK59) -> 0 | AP59: =SUM(AM59:AO59) -> 0 | AT59: =SUM(AQ59:AS59) -> 0 | AX59: =SUM(AU59:AW59) -> 0 | AY59: =SUM(C59+G59+K59+O59+S59+W59+AA59+AE59+AI59+AM59+AQ59+AU59) -> 1 | AZ59: =SUM(D59+H59+L59+P59+T59+X59+AB59+AF59+AJ59+AN59+AR59+AV59) -> 0 | BA59: =SUM(E59+I59+M59+Q59+U59+Y59+AC59+AG59+AK59+AO59+AS59+AW59) -> 0 | BB59: =SUM(AY59:BA59) -> 1
B60: LA PALMA | F60: =SUM(C60:E60) -> 0 | J60: =SUM(G60:I60) -> 0 | N60: =SUM(K60:M60) -> 0 | R60: =SUM(O60:Q60) -> 0 | V60: =SUM(S60:U60) -> 0 | Z60: =SUM(W60:Y60) -> 0 | AD60: =SUM(AA60:AC60) -> 0 | AH60: =SUM(AE60:AG60) -> 0 | AL60: =SUM(AI60:AK60) -> 0 | AP60: =SUM(AM60:AO60) -> 0 | AT60: =SUM(AQ60:AS60) -> 0 | AU60: 2 | AX60: =SUM(AU60:AW60) -> 2 | AY60: =SUM(C60+G60+K60+O60+S60+W60+AA60+AE60+AI60+AM60+AQ60+AU60) -> 2 | AZ60: =SUM(D60+H60+L60+P60+T60+X60+AB60+AF60+AJ60+AN60+AR60+AV60) -> 0 | BA60: =SUM(E60+I60+M60+Q60+U60+Y60+AC60+AG60+AK60+AO60+AS60+AW60) -> 0 | BB60: =SUM(AY60:BA60) -> 2
B61: LA REINA | F61: =SUM(C61:E61) -> 0 | G61: 1 | J61: =SUM(G61:I61) -> 1 | K61: 2 | N61: =SUM(K61:M61) -> 2 | R61: =SUM(O61:Q61) -> 0 | S61: 2 | V61: =SUM(S61:U61) -> 2 | W61: 1 | Z61: =SUM(W61:Y61) -> 1 | AD61: =SUM(AA61:AC61) -> 0 | AH61: =SUM(AE61:AG61) -> 0 | AL61: =SUM(AI61:AK61) -> 0 | AP61: =SUM(AM61:AO61) -> 0 | AR61: 1 | AT61: =SUM(AQ61:AS61) -> 1 | AX61: =SUM(AU61:AW61) -> 0 | AY61: =SUM(C61+G61+K61+O61+S61+W61+AA61+AE61+AI61+AM61+AQ61+AU61) -> 6 | AZ61: =SUM(D61+H61+L61+P61+T61+X61+AB61+AF61+AJ61+AN61+AR61+AV61) -> 1 | BA61: =SUM(E61+I61+M61+Q61+U61+Y61+AC61+AG61+AK61+AO61+AS61+AW61) -> 0 | BB61: =SUM(AY61:BA61) -> 7
B62: LAS FLORES | F62: =SUM(C62:E62) -> 0 | J62: =SUM(G62:I62) -> 0 | N62: =SUM(K62:M62) -> 0 | R62: =SUM(O62:Q62) -> 0 | V62: =SUM(S62:U62) -> 0 | Z62: =SUM(W62:Y62) -> 0 | AD62: =SUM(AA62:AC62) -> 0 | AH62: =SUM(AE62:AG62) -> 0 | AL62: =SUM(AI62:AK62) -> 0 | AP62: =SUM(AM62:AO62) -> 0 | AT62: =SUM(AQ62:AS62) -> 0 | AX62: =SUM(AU62:AW62) -> 0 | AY62: =SUM(C62+G62+K62+O62+S62+W62+AA62+AE62+AI62+AM62+AQ62+AU62) -> 0 | AZ62: =SUM(D62+H62+L62+P62+T62+X62+AB62+AF62+AJ62+AN62+AR62+AV62) -> 0 | BA62: =SUM(E62+I62+M62+Q62+U62+Y62+AC62+AG62+AK62+AO62+AS62+AW62) -> 0 | BB62: =SUM(AY62:BA62) -> 0
B63: LAS VUELTAS | F63: =SUM(C63:E63) -> 0 | J63: =SUM(G63:I63) -> 0 | N63: =SUM(K63:M63) -> 0 | R63: =SUM(O63:Q63) -> 0 | V63: =SUM(S63:U63) -> 0 | Z63: =SUM(W63:Y63) -> 0 | AD63: =SUM(AA63:AC63) -> 0 | AH63: =SUM(AE63:AG63) -> 0 | AL63: =SUM(AI63:AK63) -> 0 | AP63: =SUM(AM63:AO63) -> 0 | AT63: =SUM(AQ63:AS63) -> 0 | AX63: =SUM(AU63:AW63) -> 0 | AY63: =SUM(C63+G63+K63+O63+S63+W63+AA63+AE63+AI63+AM63+AQ63+AU63) -> 0 | AZ63: =SUM(D63+H63+L63+P63+T63+X63+AB63+AF63+AJ63+AN63+AR63+AV63) -> 0 | BA63: =SUM(E63+I63+M63+Q63+U63+Y63+AC63+AG63+AK63+AO63+AS63+AW63) -> 0 | BB63: =SUM(AY63:BA63) -> 0
B64: NOMBRE DE JESUS | F64: =SUM(C64:E64) -> 0 | J64: =SUM(G64:I64) -> 0 | N64: =SUM(K64:M64) -> 0 | R64: =SUM(O64:Q64) -> 0 | V64: =SUM(S64:U64) -> 0 | W64: 1 | Z64: =SUM(W64:Y64) -> 1 | AA64: 1 | AD64: =SUM(AA64:AC64) -> 1 | AH64: =SUM(AE64:AG64) -> 0 | AL64: =SUM(AI64:AK64) -> 0 | AP64: =SUM(AM64:AO64) -> 0 | AT64: =SUM(AQ64:AS64) -> 0 | AX64: =SUM(AU64:AW64) -> 0 | AY64: =SUM(C64+G64+K64+O64+S64+W64+AA64+AE64+AI64+AM64+AQ64+AU64) -> 2 | AZ64: =SUM(D64+H64+L64+P64+T64+X64+AB64+AF64+AJ64+AN64+AR64+AV64) -> 0 | BA64: =SUM(E64+I64+M64+Q64+U64+Y64+AC64+AG64+AK64+AO64+AS64+AW64) -> 0 | BB64: =SUM(AY64:BA64) -> 2
B65: NUEVA CONCEPCION | C65: 1 | F65: =SUM(C65:E65) -> 1 | J65: =SUM(G65:I65) -> 0 | N65: =SUM(K65:M65) -> 0 | R65: =SUM(O65:Q65) -> 0 | S65: 7 | V65: =SUM(S65:U65) -> 7 | Z65: =SUM(W65:Y65) -> 0 | AD65: =SUM(AA65:AC65) -> 0 | AH65: =SUM(AE65:AG65) -> 0 | AI65: 1 | AL65: =SUM(AI65:AK65) -> 1 | AP65: =SUM(AM65:AO65) -> 0 | AQ65: 1 | AT65: =SUM(AQ65:AS65) -> 1 | AU65: 2 | AX65: =SUM(AU65:AW65) -> 2 | AY65: =SUM(C65+G65+K65+O65+S65+W65+AA65+AE65+AI65+AM65+AQ65+AU65) -> 12 | AZ65: =SUM(D65+H65+L65+P65+T65+X65+AB65+AF65+AJ65+AN65+AR65+AV65) -> 0 | BA65: =SUM(E65+I65+M65+Q65+U65+Y65+AC65+AG65+AK65+AO65+AS65+AW65) -> 0 | BB65: =SUM(AY65:BA65) -> 12
B66: NUEVA TRINIDAD | F66: =SUM(C66:E66) -> 0 | J66: =SUM(G66:I66) -> 0 | N66: =SUM(K66:M66) -> 0 | R66: =SUM(O66:Q66) -> 0 | V66: =SUM(S66:U66) -> 0 | Z66: =SUM(W66:Y66) -> 0 | AD66: =SUM(AA66:AC66) -> 0 | AH66: =SUM(AE66:AG66) -> 0 | AL66: =SUM(AI66:AK66) -> 0 | AP66: =SUM(AM66:AO66) -> 0 | AT66: =SUM(AQ66:AS66) -> 0 | AX66: =SUM(AU66:AW66) -> 0 | AY66: =SUM(C66+G66+K66+O66+S66+W66+AA66+AE66+AI66+AM66+AQ66+AU66) -> 0 | AZ66: =SUM(D66+H66+L66+P66+T66+X66+AB66+AF66+AJ66+AN66+AR66+AV66) -> 0 | BA66: =SUM(E66+I66+M66+Q66+U66+Y66+AC66+AG66+AK66+AO66+AS66+AW66) -> 0 | BB66: =SUM(AY66:BA66) -> 0
B67: OJOS DE AGUA | F67: =SUM(C67:E67) -> 0 | J67: =SUM(G67:I67) -> 0 | N67: =SUM(K67:M67) -> 0 | R67: =SUM(O67:Q67) -> 0 | V67: =SUM(S67:U67) -> 0 | Z67: =SUM(W67:Y67) -> 0 | AD67: =SUM(AA67:AC67) -> 0 | AH67: =SUM(AE67:AG67) -> 0 | AL67: =SUM(AI67:AK67) -> 0 | AM67: 1 | AP67: =SUM(AM67:AO67) -> 1 | AT67: =SUM(AQ67:AS67) -> 0 | AX67: =SUM(AU67:AW67) -> 0 | AY67: =SUM(C67+G67+K67+O67+S67+W67+AA67+AE67+AI67+AM67+AQ67+AU67) -> 1 | AZ67: =SUM(D67+H67+L67+P67+T67+X67+AB67+AF67+AJ67+AN67+AR67+AV67) -> 0 | BA67: =SUM(E67+I67+M67+Q67+U67+Y67+AC67+AG67+AK67+AO67+AS67+AW67) -> 0 | BB67: =SUM(AY67:BA67) -> 1
B68: POTONICO | F68: =SUM(C68:E68) -> 0 | J68: =SUM(G68:I68) -> 0 | N68: =SUM(K68:M68) -> 0 | R68: =SUM(O68:Q68) -> 0 | V68: =SUM(S68:U68) -> 0 | Z68: =SUM(W68:Y68) -> 0 | AD68: =SUM(AA68:AC68) -> 0 | AH68: =SUM(AE68:AG68) -> 0 | AL68: =SUM(AI68:AK68) -> 0 | AP68: =SUM(AM68:AO68) -> 0 | AT68: =SUM(AQ68:AS68) -> 0 | AX68: =SUM(AU68:AW68) -> 0 | AY68: =SUM(C68+G68+K68+O68+S68+W68+AA68+AE68+AI68+AM68+AQ68+AU68) -> 0 | AZ68: =SUM(D68+H68+L68+P68+T68+X68+AB68+AF68+AJ68+AN68+AR68+AV68) -> 0 | BA68: =SUM(E68+I68+M68+Q68+U68+Y68+AC68+AG68+AK68+AO68+AS68+AW68) -> 0 | BB68: =SUM(AY68:BA68) -> 0
B69: SAN ANTONIO DE LA CRUZ | F69: =SUM(C69:E69) -> 0 | J69: =SUM(G69:I69) -> 0 | N69: =SUM(K69:M69) -> 0 | R69: =SUM(O69:Q69) -> 0 | V69: =SUM(S69:U69) -> 0 | Z69: =SUM(W69:Y69) -> 0 | AD69: =SUM(AA69:AC69) -> 0 | AH69: =SUM(AE69:AG69) -> 0 | AL69: =SUM(AI69:AK69) -> 0 | AP69: =SUM(AM69:AO69) -> 0 | AT69: =SUM(AQ69:AS69) -> 0 | AX69: =SUM(AU69:AW69) -> 0 | AY69: =SUM(C69+G69+K69+O69+S69+W69+AA69+AE69+AI69+AM69+AQ69+AU69) -> 0 | AZ69: =SUM(D69+H69+L69+P69+T69+X69+AB69+AF69+AJ69+AN69+AR69+AV69) -> 0 | BA69: =SUM(E69+I69+M69+Q69+U69+Y69+AC69+AG69+AK69+AO69+AS69+AW69) -> 0 | BB69: =SUM(AY69:BA69) -> 0
B70: SAN ANTONIO LOS RANCHOS | F70: =SUM(C70:E70) -> 0 | J70: =SUM(G70:I70) -> 0 | N70: =SUM(K70:M70) -> 0 | R70: =SUM(O70:Q70) -> 0 | V70: =SUM(S70:U70) -> 0 | Z70: =SUM(W70:Y70) -> 0 | AD70: =SUM(AA70:AC70) -> 0 | AH70: =SUM(AE70:AG70) -> 0 | AL70: =SUM(AI70:AK70) -> 0 | AP70: =SUM(AM70:AO70) -> 0 | AT70: =SUM(AQ70:AS70) -> 0 | AX70: =SUM(AU70:AW70) -> 0 | AY70: =SUM(C70+G70+K70+O70+S70+W70+AA70+AE70+AI70+AM70+AQ70+AU70) -> 0 | AZ70: =SUM(D70+H70+L70+P70+T70+X70+AB70+AF70+AJ70+AN70+AR70+AV70) -> 0 | BA70: =SUM(E70+I70+M70+Q70+U70+Y70+AC70+AG70+AK70+AO70+AS70+AW70) -> 0 | BB70: =SUM(AY70:BA70) -> 0
B71: SAN FERNANDO | F71: =SUM(C71:E71) -> 0 | J71: =SUM(G71:I71) -> 0 | N71: =SUM(K71:M71) -> 0 | R71: =SUM(O71:Q71) -> 0 | V71: =SUM(S71:U71) -> 0 | Z71: =SUM(W71:Y71) -> 0 | AD71: =SUM(AA71:AC71) -> 0 | AH71: =SUM(AE71:AG71) -> 0 | AL71: =SUM(AI71:AK71) -> 0 | AP71: =SUM(AM71:AO71) -> 0 | AT71: =SUM(AQ71:AS71) -> 0 | AX71: =SUM(AU71:AW71) -> 0 | AY71: =SUM(C71+G71+K71+O71+S71+W71+AA71+AE71+AI71+AM71+AQ71+AU71) -> 0 | AZ71: =SUM(D71+H71+L71+P71+T71+X71+AB71+AF71+AJ71+AN71+AR71+AV71) -> 0 | BA71: =SUM(E71+I71+M71+Q71+U71+Y71+AC71+AG71+AK71+AO71+AS71+AW71) -> 0 | BB71: =SUM(AY71:BA71) -> 0
B72: SAN FRANCISCO LEMPA | C72: 2 | F72: =SUM(C72:E72) -> 2 | J72: =SUM(G72:I72) -> 0 | N72: =SUM(K72:M72) -> 0 | R72: =SUM(O72:Q72) -> 0 | V72: =SUM(S72:U72) -> 0 | Z72: =SUM(W72:Y72) -> 0 | AD72: =SUM(AA72:AC72) -> 0 | AH72: =SUM(AE72:AG72) -> 0 | AL72: =SUM(AI72:AK72) -> 0 | AP72: =SUM(AM72:AO72) -> 0 | AT72: =SUM(AQ72:AS72) -> 0 | AX72: =SUM(AU72:AW72) -> 0 | AY72: =SUM(C72+G72+K72+O72+S72+W72+AA72+AE72+AI72+AM72+AQ72+AU72) -> 2 | AZ72: =SUM(D72+H72+L72+P72+T72+X72+AB72+AF72+AJ72+AN72+AR72+AV72) -> 0 | BA72: =SUM(E72+I72+M72+Q72+U72+Y72+AC72+AG72+AK72+AO72+AS72+AW72) -> 0 | BB72: =SUM(AY72:BA72) -> 2
B73: SAN FRANCISCO MORAZAN | F73: =SUM(C73:E73) -> 0 | J73: =SUM(G73:I73) -> 0 | N73: =SUM(K73:M73) -> 0 | R73: =SUM(O73:Q73) -> 0 | V73: =SUM(S73:U73) -> 0 | Z73: =SUM(W73:Y73) -> 0 | AD73: =SUM(AA73:AC73) -> 0 | AE73: 1 | AH73: =SUM(AE73:AG73) -> 1 | AL73: =SUM(AI73:AK73) -> 0 | AP73: =SUM(AM73:AO73) -> 0 | AQ73: 1 | AT73: =SUM(AQ73:AS73) -> 1 | AX73: =SUM(AU73:AW73) -> 0 | AY73: =SUM(C73+G73+K73+O73+S73+W73+AA73+AE73+AI73+AM73+AQ73+AU73) -> 2 | AZ73: =SUM(D73+H73+L73+P73+T73+X73+AB73+AF73+AJ73+AN73+AR73+AV73) -> 0 | BA73: =SUM(E73+I73+M73+Q73+U73+Y73+AC73+AG73+AK73+AO73+AS73+AW73) -> 0 | BB73: =SUM(AY73:BA73) -> 2
B74: SAN IGNACIO | F74: =SUM(C74:E74) -> 0 | J74: =SUM(G74:I74) -> 0 | K74: 1 | N74: =SUM(K74:M74) -> 1 | R74: =SUM(O74:Q74) -> 0 | V74: =SUM(S74:U74) -> 0 | Z74: =SUM(W74:Y74) -> 0 | AD74: =SUM(AA74:AC74) -> 0 | AH74: =SUM(AE74:AG74) -> 0 | AL74: =SUM(AI74:AK74) -> 0 | AP74: =SUM(AM74:AO74) -> 0 | AT74: =SUM(AQ74:AS74) -> 0 | AX74: =SUM(AU74:AW74) -> 0 | AY74: =SUM(C74+G74+K74+O74+S74+W74+AA74+AE74+AI74+AM74+AQ74+AU74) -> 1 | AZ74: =SUM(D74+H74+L74+P74+T74+X74+AB74+AF74+AJ74+AN74+AR74+AV74) -> 0 | BA74: =SUM(E74+I74+M74+Q74+U74+Y74+AC74+AG74+AK74+AO74+AS74+AW74) -> 0 | BB74: =SUM(AY74:BA74) -> 1
B75: SAN ISIDRO LABRADOR | F75: =SUM(C75:E75) -> 0 | J75: =SUM(G75:I75) -> 0 | N75: =SUM(K75:M75) -> 0 | R75: =SUM(O75:Q75) -> 0 | V75: =SUM(S75:U75) -> 0 | Z75: =SUM(W75:Y75) -> 0 | AD75: =SUM(AA75:AC75) -> 0 | AF75: 1 | AH75: =SUM(AE75:AG75) -> 1 | AL75: =SUM(AI75:AK75) -> 0 | AP75: =SUM(AM75:AO75) -> 0 | AT75: =SUM(AQ75:AS75) -> 0 | AX75: =SUM(AU75:AW75) -> 0 | AY75: =SUM(C75+G75+K75+O75+S75+W75+AA75+AE75+AI75+AM75+AQ75+AU75) -> 0 | AZ75: =SUM(D75+H75+L75+P75+T75+X75+AB75+AF75+AJ75+AN75+AR75+AV75) -> 1 | BA75: =SUM(E75+I75+M75+Q75+U75+Y75+AC75+AG75+AK75+AO75+AS75+AW75) -> 0 | BB75: =SUM(AY75:BA75) -> 1
B76: SAN JOSE CANCASQUE | F76: =SUM(C76:E76) -> 0 | J76: =SUM(G76:I76) -> 0 | N76: =SUM(K76:M76) -> 0 | R76: =SUM(O76:Q76) -> 0 | V76: =SUM(S76:U76) -> 0 | Z76: =SUM(W76:Y76) -> 0 | AD76: =SUM(AA76:AC76) -> 0 | AH76: =SUM(AE76:AG76) -> 0 | AL76: =SUM(AI76:AK76) -> 0 | AP76: =SUM(AM76:AO76) -> 0 | AT76: =SUM(AQ76:AS76) -> 0 | AX76: =SUM(AU76:AW76) -> 0 | AY76: =SUM(C76+G76+K76+O76+S76+W76+AA76+AE76+AI76+AM76+AQ76+AU76) -> 0 | AZ76: =SUM(D76+H76+L76+P76+T76+X76+AB76+AF76+AJ76+AN76+AR76+AV76) -> 0 | BA76: =SUM(E76+I76+M76+Q76+U76+Y76+AC76+AG76+AK76+AO76+AS76+AW76) -> 0 | BB76: =SUM(AY76:BA76) -> 0
B77: SAN LUIS DEL CARMEN | F77: =SUM(C77:E77) -> 0 | J77: =SUM(G77:I77) -> 0 | N77: =SUM(K77:M77) -> 0 | O77: 1 | R77: =SUM(O77:Q77) -> 1 | S77: 1 | V77: =SUM(S77:U77) -> 1 | Z77: =SUM(W77:Y77) -> 0 | AD77: =SUM(AA77:AC77) -> 0 | AH77: =SUM(AE77:AG77) -> 0 | AL77: =SUM(AI77:AK77) -> 0 | AP77: =SUM(AM77:AO77) -> 0 | AT77: =SUM(AQ77:AS77) -> 0 | AU77: 1 | AX77: =SUM(AU77:AW77) -> 1 | AY77: =SUM(C77+G77+K77+O77+S77+W77+AA77+AE77+AI77+AM77+AQ77+AU77) -> 3 | AZ77: =SUM(D77+H77+L77+P77+T77+X77+AB77+AF77+AJ77+AN77+AR77+AV77) -> 0 | BA77: =SUM(E77+I77+M77+Q77+U77+Y77+AC77+AG77+AK77+AO77+AS77+AW77) -> 0 | BB77: =SUM(AY77:BA77) -> 3
B78: SAN MIGUEL DE MERCEDES | F78: =SUM(C78:E78) -> 0 | J78: =SUM(G78:I78) -> 0 | N78: =SUM(K78:M78) -> 0 | R78: =SUM(O78:Q78) -> 0 | V78: =SUM(S78:U78) -> 0 | Z78: =SUM(W78:Y78) -> 0 | AA78: 1 | AD78: =SUM(AA78:AC78) -> 1 | AH78: =SUM(AE78:AG78) -> 0 | AL78: =SUM(AI78:AK78) -> 0 | AP78: =SUM(AM78:AO78) -> 0 | AT78: =SUM(AQ78:AS78) -> 0 | AX78: =SUM(AU78:AW78) -> 0 | AY78: =SUM(C78+G78+K78+O78+S78+W78+AA78+AE78+AI78+AM78+AQ78+AU78) -> 1 | AZ78: =SUM(D78+H78+L78+P78+T78+X78+AB78+AF78+AJ78+AN78+AR78+AV78) -> 0 | BA78: =SUM(E78+I78+M78+Q78+U78+Y78+AC78+AG78+AK78+AO78+AS78+AW78) -> 0 | BB78: =SUM(AY78:BA78) -> 1
B79: SAN RAFAEL | F79: =SUM(C79:E79) -> 0 | J79: =SUM(G79:I79) -> 0 | N79: =SUM(K79:M79) -> 0 | R79: =SUM(O79:Q79) -> 0 | V79: =SUM(S79:U79) -> 0 | Z79: =SUM(W79:Y79) -> 0 | AD79: =SUM(AA79:AC79) -> 0 | AH79: =SUM(AE79:AG79) -> 0 | AL79: =SUM(AI79:AK79) -> 0 | AP79: =SUM(AM79:AO79) -> 0 | AQ79: 1 | AT79: =SUM(AQ79:AS79) -> 1 | AX79: =SUM(AU79:AW79) -> 0 | AY79: =SUM(C79+G79+K79+O79+S79+W79+AA79+AE79+AI79+AM79+AQ79+AU79) -> 1 | AZ79: =SUM(D79+H79+L79+P79+T79+X79+AB79+AF79+AJ79+AN79+AR79+AV79) -> 0 | BA79: =SUM(E79+I79+M79+Q79+U79+Y79+AC79+AG79+AK79+AO79+AS79+AW79) -> 0 | BB79: =SUM(AY79:BA79) -> 1
B80: SANTA RITA | F80: =SUM(C80:E80) -> 0 | J80: =SUM(G80:I80) -> 0 | N80: =SUM(K80:M80) -> 0 | R80: =SUM(O80:Q80) -> 0 | S80: 1 | V80: =SUM(S80:U80) -> 1 | Z80: =SUM(W80:Y80) -> 0 | AD80: =SUM(AA80:AC80) -> 0 | AH80: =SUM(AE80:AG80) -> 0 | AL80: =SUM(AI80:AK80) -> 0 | AP80: =SUM(AM80:AO80) -> 0 | AT80: =SUM(AQ80:AS80) -> 0 | AX80: =SUM(AU80:AW80) -> 0 | AY80: =SUM(C80+G80+K80+O80+S80+W80+AA80+AE80+AI80+AM80+AQ80+AU80) -> 1 | AZ80: =SUM(D80+H80+L80+P80+T80+X80+AB80+AF80+AJ80+AN80+AR80+AV80) -> 0 | BA80: =SUM(E80+I80+M80+Q80+U80+Y80+AC80+AG80+AK80+AO80+AS80+AW80) -> 0 | BB80: =SUM(AY80:BA80) -> 1
B81: TEJUTLA | F81: =SUM(C81:E81) -> 0 | G81: 3 | J81: =SUM(G81:I81) -> 3 | K81: 3 | L81: 1 | N81: =SUM(K81:M81) -> 4 | R81: =SUM(O81:Q81) -> 0 | S81: 1 | V81: =SUM(S81:U81) -> 1 | W81: 2 | X81: 2 | Z81: =SUM(W81:Y81) -> 4 | AA81: 1 | AD81: =SUM(AA81:AC81) -> 1 | AE81: 2 | AH81: =SUM(AE81:AG81) -> 2 | AI81: 3 | AL81: =SUM(AI81:AK81) -> 3 | AM81: 1 | AP81: =SUM(AM81:AO81) -> 1 | AT81: =SUM(AQ81:AS81) -> 0 | AU81: 3 | AX81: =SUM(AU81:AW81) -> 3 | AY81: =SUM(C81+G81+K81+O81+S81+W81+AA81+AE81+AI81+AM81+AQ81+AU81) -> 19 | AZ81: =SUM(D81+H81+L81+P81+T81+X81+AB81+AF81+AJ81+AN81+AR81+AV81) -> 3 | BA81: =SUM(E81+I81+M81+Q81+U81+Y81+AC81+AG81+AK81+AO81+AS81+AW81) -> 0 | BB81: =SUM(AY81:BA81) -> 22
A82: TOTAL | C82: =SUM(C49:C81) -> 4 | D82: =SUM(D49:D81) -> 0 | E82: =SUM(E49:E81) -> 0 | F82: =SUM(F49:F81) -> 4 | G82: =SUM(G49:G81) -> 6 | H82: =SUM(H49:H81) -> 0 | I82: =SUM(I49:I81) -> 0 | J82: =SUM(G82:I82) -> 6 | K82: =SUM(K49:K81) -> 6 | L82: =SUM(L49:L81) -> 1 | M82: =SUM(M49:M81) -> 0 | N82: =SUM(K82:M82) -> 7 | O82: =SUM(O49:O81) -> 5 | P82: =SUM(P49:P81) -> 0 | Q82: =SUM(Q49:Q81) -> 0 | R82: =SUM(O82:Q82) -> 5 | S82: =SUM(S49:S81) -> 19 | T82: =SUM(T49:T81) -> 0 | U82: =SUM(U49:U81) -> 0 | V82: =SUM(S82:U82) -> 19 | W82: =SUM(W49:W81) -> 5 | X82: =SUM(X49:X81) -> 3 | Y82: =SUM(Y49:Y81) -> 0 | Z82: =SUM(W82:Y82) -> 8 | AA82: =SUM(AA49:AA81) -> 7 | AB82: =SUM(AB49:AB81) -> 2 | AC82: =SUM(AC49:AC81) -> 0 | AD82: =SUM(AA82:AC82) -> 9 | AE82: =SUM(AE49:AE81) -> 6 | AF82: =SUM(AF49:AF81) -> 2 | AG82: =SUM(AG49:AG81) -> 0 | AH82: =SUM(AE82:AG82) -> 8 | AI82: =SUM(AI49:AI81) -> 7 | AJ82: =SUM(AJ49:AJ81) -> 0 | AK82: =SUM(AK49:AK81) -> 1 | AL82: =SUM(AI82:AK82) -> 8 | AM82: =SUM(AM49:AM81) -> 6 | AN82: =SUM(AN49:AN81) -> 0 | AO82: =SUM(AO49:AO81) -> 0 | AP82: =SUM(AM82:AO82) -> 6 | AQ82: =SUM(AQ49:AQ81) -> 4 | AR82: =SUM(AR49:AR81) -> 1 | AS82: =SUM(AS49:AS81) -> 0 | AT82: =SUM(AQ82:AS82) -> 5 | AU82: =SUM(AU49:AU81) -> 9 | AV82: =SUM(AV49:AV81) -> 0 | AW82: =SUM(AW49:AW81) -> 0 | AX82: =SUM(AU82:AW82) -> 9 | AY82: =SUM(AY49:AY81) -> 84 | AZ82: =SUM(AZ49:AZ81) -> 9 | BA82: =SUM(BA49:BA81) -> 1 | BB82: =SUM(AY82:BA82) -> 94
A84: LA LIBERTAD | B84: ANTIGUO CUSCATLAN | C84: 3 | F84: =SUM(C84:E84) -> 3 | G84: 2 | H84: 1 | J84: =SUM(G84:I84) -> 3 | N84: =SUM(K84:M84) -> 0 | R84: =SUM(O84:Q84) -> 0 | V84: =SUM(S84:U84) -> 0 | Z84: =SUM(W84:Y84) -> 0 | AD84: =SUM(AA84:AC84) -> 0 | AH84: =SUM(AE84:AG84) -> 0 | AL84: =SUM(AI84:AK84) -> 0 | AP84: =SUM(AM84:AO84) -> 0 | AT84: =SUM(AQ84:AS84) -> 0 | AU84: 1 | AX84: =SUM(AU84:AW84) -> 1 | AY84: =SUM(C84+G84+K84+O84+S84+W84+AA84+AE84+AI84+AM84+AQ84+AU84) -> 6 | AZ84: =SUM(D84+H84+L84+P84+T84+X84+AB84+AF84+AJ84+AN84+AR84+AV84) -> 1 | BA84: =SUM(E84+I84+M84+Q84+U84+Y84+AC84+AG84+AK84+AO84+AS84+AW84) -> 0 | BB84: =SUM(AY84:BA84) -> 7
B85: CHILTIUPAN | F85: =SUM(C85:E85) -> 0 | J85: =SUM(G85:I85) -> 0 | K85: 1 | N85: =SUM(K85:M85) -> 1 | R85: =SUM(O85:Q85) -> 0 | V85: =SUM(S85:U85) -> 0 | Z85: =SUM(W85:Y85) -> 0 | AD85: =SUM(AA85:AC85) -> 0 | AH85: =SUM(AE85:AG85) -> 0 | AI85: 1 | AL85: =SUM(AI85:AK85) -> 1 | AP85: =SUM(AM85:AO85) -> 0 | AT85: =SUM(AQ85:AS85) -> 0 | AX85: =SUM(AU85:AW85) -> 0 | AY85: =SUM(C85+G85+K85+O85+S85+W85+AA85+AE85+AI85+AM85+AQ85+AU85) -> 2 | AZ85: =SUM(D85+H85+L85+P85+T85+X85+AB85+AF85+AJ85+AN85+AR85+AV85) -> 0 | BA85: =SUM(E85+I85+M85+Q85+U85+Y85+AC85+AG85+AK85+AO85+AS85+AW85) -> 0 | BB85: =SUM(AY85:BA85) -> 2
B86: CIUDAD ARCE | F86: =SUM(C86:E86) -> 0 | G86: 1 | J86: =SUM(G86:I86) -> 1 | K86: 2 | N86: =SUM(K86:M86) -> 2 | O86: 2 | R86: =SUM(O86:Q86) -> 2 | S86: 1 | V86: =SUM(S86:U86) -> 1 | W86: 3 | Z86: =SUM(W86:Y86) -> 3 | AA86: 1 | AD86: =SUM(AA86:AC86) -> 1 | AE86: 2 | AH86: =SUM(AE86:AG86) -> 2 | AI86: 1 | AL86: =SUM(AI86:AK86) -> 1 | AM86: 1 | AP86: =SUM(AM86:AO86) -> 1 | AQ86: 2 | AT86: =SUM(AQ86:AS86) -> 2 | AU86: 2 | AX86: =SUM(AU86:AW86) -> 2 | AY86: =SUM(C86+G86+K86+O86+S86+W86+AA86+AE86+AI86+AM86+AQ86+AU86) -> 18 | AZ86: =SUM(D86+H86+L86+P86+T86+X86+AB86+AF86+AJ86+AN86+AR86+AV86) -> 0 | BA86: =SUM(E86+I86+M86+Q86+U86+Y86+AC86+AG86+AK86+AO86+AS86+AW86) -> 0 | BB86: =SUM(AY86:BA86) -> 18
B87: COLON | C87: 9 | D87: 1 | F87: =SUM(C87:E87) -> 10 | G87: 5 | J87: =SUM(G87:I87) -> 5 | K87: 9 | N87: =SUM(K87:M87) -> 9 | O87: 4 | P87: 2 | R87: =SUM(O87:Q87) -> 6 | S87: 11 | T87: 2 | V87: =SUM(S87:U87) -> 13 | W87: 4 | Z87: =SUM(W87:Y87) -> 4 | AA87: 6 | AD87: =SUM(AA87:AC87) -> 6 | AE87: 10 | AF87: 1 | AH87: =SUM(AE87:AG87) -> 11 | AI87: 10 | AL87: =SUM(AI87:AK87) -> 10 | AM87: 7 | AP87: =SUM(AM87:AO87) -> 7 | AQ87: 4 | AR87: 1 | AT87: =SUM(AQ87:AS87) -> 5 | AU87: 12 | AX87: =SUM(AU87:AW87) -> 12 | AY87: =SUM(C87+G87+K87+O87+S87+W87+AA87+AE87+AI87+AM87+AQ87+AU87) -> 91 | AZ87: =SUM(D87+H87+L87+P87+T87+X87+AB87+AF87+AJ87+AN87+AR87+AV87) -> 7 | BA87: =SUM(E87+I87+M87+Q87+U87+Y87+AC87+AG87+AK87+AO87+AS87+AW87) -> 0 | BB87: =SUM(AY87:BA87) -> 98
B88: COMASAGUA | F88: =SUM(C88:E88) -> 0 | J88: =SUM(G88:I88) -> 0 | N88: =SUM(K88:M88) -> 0 | R88: =SUM(O88:Q88) -> 0 | S88: 2 | V88: =SUM(S88:U88) -> 2 | Z88: =SUM(W88:Y88) -> 0 | AA88: 1 | AD88: =SUM(AA88:AC88) -> 1 | AH88: =SUM(AE88:AG88) -> 0 | AL88: =SUM(AI88:AK88) -> 0 | AP88: =SUM(AM88:AO88) -> 0 | AQ88: 2 | AT88: =SUM(AQ88:AS88) -> 2 | AX88: =SUM(AU88:AW88) -> 0 | AY88: =SUM(C88+G88+K88+O88+S88+W88+AA88+AE88+AI88+AM88+AQ88+AU88) -> 5 | AZ88: =SUM(D88+H88+L88+P88+T88+X88+AB88+AF88+AJ88+AN88+AR88+AV88) -> 0 | BA88: =SUM(E88+I88+M88+Q88+U88+Y88+AC88+AG88+AK88+AO88+AS88+AW88) -> 0 | BB88: =SUM(AY88:BA88) -> 5
B89: HUIZUCAR | F89: =SUM(C89:E89) -> 0 | J89: =SUM(G89:I89) -> 0 | N89: =SUM(K89:M89) -> 0 | O89: 1 | R89: =SUM(O89:Q89) -> 1 | S89: 1 | V89: =SUM(S89:U89) -> 1 | W89: 1 | Z89: =SUM(W89:Y89) -> 1 | AD89: =SUM(AA89:AC89) -> 0 | AE89: 1 | AH89: =SUM(AE89:AG89) -> 1 | AI89: 3 | AL89: =SUM(AI89:AK89) -> 3 | AM89: 2 | AP89: =SUM(AM89:AO89) -> 2 | AQ89: 4 | AT89: =SUM(AQ89:AS89) -> 4 | AU89: 5 | AX89: =SUM(AU89:AW89) -> 5 | AY89: =SUM(C89+G89+K89+O89+S89+W89+AA89+AE89+AI89+AM89+AQ89+AU89) -> 18 | AZ89: =SUM(D89+H89+L89+P89+T89+X89+AB89+AF89+AJ89+AN89+AR89+AV89) -> 0 | BA89: =SUM(E89+I89+M89+Q89+U89+Y89+AC89+AG89+AK89+AO89+AS89+AW89) -> 0 | BB89: =SUM(AY89:BA89) -> 18
B90: JAYAQUE | C90: 2 | F90: =SUM(C90:E90) -> 2 | J90: =SUM(G90:I90) -> 0 | N90: =SUM(K90:M90) -> 0 | R90: =SUM(O90:Q90) -> 0 | V90: =SUM(S90:U90) -> 0 | Z90: =SUM(W90:Y90) -> 0 | AD90: =SUM(AA90:AC90) -> 0 | AE90: 1 | AH90: =SUM(AE90:AG90) -> 1 | AL90: =SUM(AI90:AK90) -> 0 | AM90: 1 | AP90: =SUM(AM90:AO90) -> 1 | AT90: =SUM(AQ90:AS90) -> 0 | AX90: =SUM(AU90:AW90) -> 0 | AY90: =SUM(C90+G90+K90+O90+S90+W90+AA90+AE90+AI90+AM90+AQ90+AU90) -> 4 | AZ90: =SUM(D90+H90+L90+P90+T90+X90+AB90+AF90+AJ90+AN90+AR90+AV90) -> 0 | BA90: =SUM(E90+I90+M90+Q90+U90+Y90+AC90+AG90+AK90+AO90+AS90+AW90) -> 0 | BB90: =SUM(AY90:BA90) -> 4
B91: JICALAPA | F91: =SUM(C91:E91) -> 0 | J91: =SUM(G91:I91) -> 0 | N91: =SUM(K91:M91) -> 0 | R91: =SUM(O91:Q91) -> 0 | V91: =SUM(S91:U91) -> 0 | Z91: =SUM(W91:Y91) -> 0 | AD91: =SUM(AA91:AC91) -> 0 | AE91: 1 | AH91: =SUM(AE91:AG91) -> 1 | AL91: =SUM(AI91:AK91) -> 0 | AP91: =SUM(AM91:AO91) -> 0 | AT91: =SUM(AQ91:AS91) -> 0 | AU91: 1 | AX91: =SUM(AU91:AW91) -> 1 | AY91: =SUM(C91+G91+K91+O91+S91+W91+AA91+AE91+AI91+AM91+AQ91+AU91) -> 2 | AZ91: =SUM(D91+H91+L91+P91+T91+X91+AB91+AF91+AJ91+AN91+AR91+AV91) -> 0 | BA91: =SUM(E91+I91+M91+Q91+U91+Y91+AC91+AG91+AK91+AO91+AS91+AW91) -> 0 | BB91: =SUM(AY91:BA91) -> 2
B92: LA LIBERTAD | C92: 1 | F92: =SUM(C92:E92) -> 1 | G92: 1 | H92: 1 | J92: =SUM(G92:I92) -> 2 | N92: =SUM(K92:M92) -> 0 | R92: =SUM(O92:Q92) -> 0 | S92: 1 | V92: =SUM(S92:U92) -> 1 | W92: 3 | X92: 1 | Z92: =SUM(W92:Y92) -> 4 | AA92: 1 | AD92: =SUM(AA92:AC92) -> 1 | AH92: =SUM(AE92:AG92) -> 0 | AI92: 1 | AL92: =SUM(AI92:AK92) -> 1 | AM92: 1 | AP92: =SUM(AM92:AO92) -> 1 | AT92: =SUM(AQ92:AS92) -> 0 | AX92: =SUM(AU92:AW92) -> 0 | AY92: =SUM(C92+G92+K92+O92+S92+W92+AA92+AE92+AI92+AM92+AQ92+AU92) -> 9 | AZ92: =SUM(D92+H92+L92+P92+T92+X92+AB92+AF92+AJ92+AN92+AR92+AV92) -> 2 | BA92: =SUM(E92+I92+M92+Q92+U92+Y92+AC92+AG92+AK92+AO92+AS92+AW92) -> 0 | BB92: =SUM(AY92:BA92) -> 11
B93: NUEVO CUSCATLAN | F93: =SUM(C93:E93) -> 0 | J93: =SUM(G93:I93) -> 0 | N93: =SUM(K93:M93) -> 0 | R93: =SUM(O93:Q93) -> 0 | V93: =SUM(S93:U93) -> 0 | Z93: =SUM(W93:Y93) -> 0 | AA93: 1 | AD93: =SUM(AA93:AC93) -> 1 | AH93: =SUM(AE93:AG93) -> 0 | AL93: =SUM(AI93:AK93) -> 0 | AP93: =SUM(AM93:AO93) -> 0 | AT93: =SUM(AQ93:AS93) -> 0 | AX93: =SUM(AU93:AW93) -> 0 | AY93: =SUM(C93+G93+K93+O93+S93+W93+AA93+AE93+AI93+AM93+AQ93+AU93) -> 1 | AZ93: =SUM(D93+H93+L93+P93+T93+X93+AB93+AF93+AJ93+AN93+AR93+AV93) -> 0 | BA93: =SUM(E93+I93+M93+Q93+U93+Y93+AC93+AG93+AK93+AO93+AS93+AW93) -> 0 | BB93: =SUM(AY93:BA93) -> 1
B94: QUEZALTEPEQUE | C94: 1 | F94: =SUM(C94:E94) -> 1 | G94: 7 | J94: =SUM(G94:I94) -> 7 | K94: 5 | L94: 1 | M94: 1 | N94: =SUM(K94:M94) -> 7 | O94: 3 | R94: =SUM(O94:Q94) -> 3 | S94: 2 | V94: =SUM(S94:U94) -> 2 | W94: 3 | X94: 2 | Z94: =SUM(W94:Y94) -> 5 | AA94: 5 | AB94: 1 | AD94: =SUM(AA94:AC94) -> 6 | AE94: 6 | AF94: 1 | AH94: =SUM(AE94:AG94) -> 7 | AI94: 1 | AL94: =SUM(AI94:AK94) -> 1 | AM94: 5 | AN94: 1 | AP94: =SUM(AM94:AO94) -> 6 | AQ94: 4 | AT94: =SUM(AQ94:AS94) -> 4 | AU94: 7 | AX94: =SUM(AU94:AW94) -> 7 | AY94: =SUM(C94+G94+K94+O94+S94+W94+AA94+AE94+AI94+AM94+AQ94+AU94) -> 49 | AZ94: =SUM(D94+H94+L94+P94+T94+X94+AB94+AF94+AJ94+AN94+AR94+AV94) -> 6 | BA94: =SUM(E94+I94+M94+Q94+U94+Y94+AC94+AG94+AK94+AO94+AS94+AW94) -> 1 | BB94: =SUM(AY94:BA94) -> 56
B95: SACACOYO | F95: =SUM(C95:E95) -> 0 | J95: =SUM(G95:I95) -> 0 | N95: =SUM(K95:M95) -> 0 | R95: =SUM(O95:Q95) -> 0 | S95: 1 | V95: =SUM(S95:U95) -> 1 | Z95: =SUM(W95:Y95) -> 0 | AD95: =SUM(AA95:AC95) -> 0 | AH95: =SUM(AE95:AG95) -> 0 | AI95: 1 | AL95: =SUM(AI95:AK95) -> 1 | AP95: =SUM(AM95:AO95) -> 0 | AT95: =SUM(AQ95:AS95) -> 0 | AU95: 1 | AX95: =SUM(AU95:AW95) -> 1 | AY95: =SUM(C95+G95+K95+O95+S95+W95+AA95+AE95+AI95+AM95+AQ95+AU95) -> 3 | AZ95: =SUM(D95+H95+L95+P95+T95+X95+AB95+AF95+AJ95+AN95+AR95+AV95) -> 0 | BA95: =SUM(E95+I95+M95+Q95+U95+Y95+AC95+AG95+AK95+AO95+AS95+AW95) -> 0 | BB95: =SUM(AY95:BA95) -> 3
B96: SAN JOSE VILLANUEVA | F96: =SUM(C96:E96) -> 0 | G96: 1 | J96: =SUM(G96:I96) -> 1 | K96: 2 | L96: 1 | N96: =SUM(K96:M96) -> 3 | O96: 1 | R96: =SUM(O96:Q96) -> 1 | S96: 3 | V96: =SUM(S96:U96) -> 3 | W96: 4 | Z96: =SUM(W96:Y96) -> 4 | AA96: 2 | AD96: =SUM(AA96:AC96) -> 2 | AE96: 1 | AH96: =SUM(AE96:AG96) -> 1 | AI96: 1 | AL96: =SUM(AI96:AK96) -> 1 | AP96: =SUM(AM96:AO96) -> 0 | AQ96: 5 | AT96: =SUM(AQ96:AS96) -> 5 | AX96: =SUM(AU96:AW96) -> 0 | AY96: =SUM(C96+G96+K96+O96+S96+W96+AA96+AE96+AI96+AM96+AQ96+AU96) -> 20 | AZ96: =SUM(D96+H96+L96+P96+T96+X96+AB96+AF96+AJ96+AN96+AR96+AV96) -> 1 | BA96: =SUM(E96+I96+M96+Q96+U96+Y96+AC96+AG96+AK96+AO96+AS96+AW96) -> 0 | BB96: =SUM(AY96:BA96) -> 21
B97: SAN JUAN OPICO | C97: 2 | F97: =SUM(C97:E97) -> 2 | G97: 2 | J97: =SUM(G97:I97) -> 2 | K97: 3 | L97: 2 | M97: 1 | N97: =SUM(K97:M97) -> 6 | O97: 2 | R97: =SUM(O97:Q97) -> 2 | S97: 2 | V97: =SUM(S97:U97) -> 2 | W97: 1 | X97: 1 | Z97: =SUM(W97:Y97) -> 2 | AA97: 3 | AD97: =SUM(AA97:AC97) -> 3 | AE97: 3 | AH97: =SUM(AE97:AG97) -> 3 | AI97: 3 | AL97: =SUM(AI97:AK97) -> 3 | AM97: 3 | AP97: =SUM(AM97:AO97) -> 3 | AQ97: 1 | AT97: =SUM(AQ97:AS97) -> 1 | AU97: 2 | AX97: =SUM(AU97:AW97) -> 2 | AY97: =SUM(C97+G97+K97+O97+S97+W97+AA97+AE97+AI97+AM97+AQ97+AU97) -> 27 | AZ97: =SUM(D97+H97+L97+P97+T97+X97+AB97+AF97+AJ97+AN97+AR97+AV97) -> 3 | BA97: =SUM(E97+I97+M97+Q97+U97+Y97+AC97+AG97+AK97+AO97+AS97+AW97) -> 1 | BB97: =SUM(AY97:BA97) -> 31
B98: SAN MATIAS | F98: =SUM(C98:E98) -> 0 | G98: 1 | J98: =SUM(G98:I98) -> 1 | N98: =SUM(K98:M98) -> 0 | O98: 1 | R98: =SUM(O98:Q98) -> 1 | S98: 2 | V98: =SUM(S98:U98) -> 2 | W98: 2 | Z98: =SUM(W98:Y98) -> 2 | AA98: 1 | AD98: =SUM(AA98:AC98) -> 1 | AE98: 2 | AF98: 1 | AH98: =SUM(AE98:AG98) -> 3 | AL98: =SUM(AI98:AK98) -> 0 | AM98: 2 | AP98: =SUM(AM98:AO98) -> 2 | AT98: =SUM(AQ98:AS98) -> 0 | AX98: =SUM(AU98:AW98) -> 0 | AY98: =SUM(C98+G98+K98+O98+S98+W98+AA98+AE98+AI98+AM98+AQ98+AU98) -> 11 | AZ98: =SUM(D98+H98+L98+P98+T98+X98+AB98+AF98+AJ98+AN98+AR98+AV98) -> 1 | BA98: =SUM(E98+I98+M98+Q98+U98+Y98+AC98+AG98+AK98+AO98+AS98+AW98) -> 0 | BB98: =SUM(AY98:BA98) -> 12
B99: SAN PABLO TACACHICO | C99: 3 | F99: =SUM(C99:E99) -> 3 | G99: 3 | H99: 1 | J99: =SUM(G99:I99) -> 4 | K99: 2 | N99: =SUM(K99:M99) -> 2 | R99: =SUM(O99:Q99) -> 0 | V99: =SUM(S99:U99) -> 0 | W99: 2 | Z99: =SUM(W99:Y99) -> 2 | AA99: 1 | AD99: =SUM(AA99:AC99) -> 1 | AE99: 2 | AH99: =SUM(AE99:AG99) -> 2 | AI99: 3 | AJ99: 1 | AL99: =SUM(AI99:AK99) -> 4 | AP99: =SUM(AM99:AO99) -> 0 | AQ99: 2 | AT99: =SUM(AQ99:AS99) -> 2 | AU99: 3 | AX99: =SUM(AU99:AW99) -> 3 | AY99: =SUM(C99+G99+K99+O99+S99+W99+AA99+AE99+AI99+AM99+AQ99+AU99) -> 21 | AZ99: =SUM(D99+H99+L99+P99+T99+X99+AB99+AF99+AJ99+AN99+AR99+AV99) -> 2 | BA99: =SUM(E99+I99+M99+Q99+U99+Y99+AC99+AG99+AK99+AO99+AS99+AW99) -> 0 | BB99: =SUM(AY99:BA99) -> 23
B100: SANTA TECLA | F100: =SUM(C100:E100) -> 0 | G100: 1 | J100: =SUM(G100:I100) -> 1 | K100: 1 | N100: =SUM(K100:M100) -> 1 | O100: 4 | P100: 1 | R100: =SUM(O100:Q100) -> 5 | V100: =SUM(S100:U100) -> 0 | Z100: =SUM(W100:Y100) -> 0 | AA100: 4 | AD100: =SUM(AA100:AC100) -> 4 | AE100: 1 | AH100: =SUM(AE100:AG100) -> 1 | AI100: 3 | AL100: =SUM(AI100:AK100) -> 3 | AM100: 1 | AP100: =SUM(AM100:AO100) -> 1 | AQ100: 3 | AT100: =SUM(AQ100:AS100) -> 3 | AU100: 2 | AX100: =SUM(AU100:AW100) -> 2 | AY100: =SUM(C100+G100+K100+O100+S100+W100+AA100+AE100+AI100+AM100+AQ100+AU100) -> 20 | AZ100: =SUM(D100+H100+L100+P100+T100+X100+AB100+AF100+AJ100+AN100+AR100+AV100) -> 1 | BA100: =SUM(E100+I100+M100+Q100+U100+Y100+AC100+AG100+AK100+AO100+AS100+AW100) -> 0 | BB100: =SUM(AY100:BA100) -> 21
B101: TALNIQUE | F101: =SUM(C101:E101) -> 0 | J101: =SUM(G101:I101) -> 0 | N101: =SUM(K101:M101) -> 0 | R101: =SUM(O101:Q101) -> 0 | S101: 1 | V101: =SUM(S101:U101) -> 1 | Z101: =SUM(W101:Y101) -> 0 | AD101: =SUM(AA101:AC101) -> 0 | AH101: =SUM(AE101:AG101) -> 0 | AL101: =SUM(AI101:AK101) -> 0 | AP101: =SUM(AM101:AO101) -> 0 | AQ101: 1 | AT101: =SUM(AQ101:AS101) -> 1 | AX101: =SUM(AU101:AW101) -> 0 | AY101: =SUM(C101+G101+K101+O101+S101+W101+AA101+AE101+AI101+AM101+AQ101+AU101) -> 2 | AZ101: =SUM(D101+H101+L101+P101+T101+X101+AB101+AF101+AJ101+AN101+AR101+AV101) -> 0 | BA101: =SUM(E101+I101+M101+Q101+U101+Y101+AC101+AG101+AK101+AO101+AS101+AW101) -> 0 | BB101: =SUM(AY101:BA101) -> 2
B102: TAMANIQUE | C102: 1 | F102: =SUM(C102:E102) -> 1 | J102: =SUM(G102:I102) -> 0 | N102: =SUM(K102:M102) -> 0 | R102: =SUM(O102:Q102) -> 0 | V102: =SUM(S102:U102) -> 0 | W102: 1 | Z102: =SUM(W102:Y102) -> 1 | AA102: 1 | AD102: =SUM(AA102:AC102) -> 1 | AH102: =SUM(AE102:AG102) -> 0 | AL102: =SUM(AI102:AK102) -> 0 | AP102: =SUM(AM102:AO102) -> 0 | AT102: =SUM(AQ102:AS102) -> 0 | AX102: =SUM(AU102:AW102) -> 0 | AY102: =SUM(C102+G102+K102+O102+S102+W102+AA102+AE102+AI102+AM102+AQ102+AU102) -> 3 | AZ102: =SUM(D102+H102+L102+P102+T102+X102+AB102+AF102+AJ102+AN102+AR102+AV102) -> 0 | BA102: =SUM(E102+I102+M102+Q102+U102+Y102+AC102+AG102+AK102+AO102+AS102+AW102) -> 0 | BB102: =SUM(AY102:BA102) -> 3
B103: TEOTEPEQUE | F103: =SUM(C103:E103) -> 0 | J103: =SUM(G103:I103) -> 0 | N103: =SUM(K103:M103) -> 0 | R103: =SUM(O103:Q103) -> 0 | V103: =SUM(S103:U103) -> 0 | Z103: =SUM(W103:Y103) -> 0 | AD103: =SUM(AA103:AC103) -> 0 | AH103: =SUM(AE103:AG103) -> 0 | AL103: =SUM(AI103:AK103) -> 0 | AP103: =SUM(AM103:AO103) -> 0 | AT103: =SUM(AQ103:AS103) -> 0 | AU103: 1 | AX103: =SUM(AU103:AW103) -> 1 | AY103: =SUM(C103+G103+K103+O103+S103+W103+AA103+AE103+AI103+AM103+AQ103+AU103) -> 1 | AZ103: =SUM(D103+H103+L103+P103+T103+X103+AB103+AF103+AJ103+AN103+AR103+AV103) -> 0 | BA103: =SUM(E103+I103+M103+Q103+U103+Y103+AC103+AG103+AK103+AO103+AS103+AW103) -> 0 | BB103: =SUM(AY103:BA103) -> 1
B104: TEPECOYO | F104: =SUM(C104:E104) -> 0 | G104: 1 | J104: =SUM(G104:I104) -> 1 | N104: =SUM(K104:M104) -> 0 | R104: =SUM(O104:Q104) -> 0 | S104: 1 | V104: =SUM(S104:U104) -> 1 | Z104: =SUM(W104:Y104) -> 0 | AD104: =SUM(AA104:AC104) -> 0 | AH104: =SUM(AE104:AG104) -> 0 | AL104: =SUM(AI104:AK104) -> 0 | AP104: =SUM(AM104:AO104) -> 0 | AT104: =SUM(AQ104:AS104) -> 0 | AX104: =SUM(AU104:AW104) -> 0 | AY104: =SUM(C104+G104+K104+O104+S104+W104+AA104+AE104+AI104+AM104+AQ104+AU104) -> 2 | AZ104: =SUM(D104+H104+L104+P104+T104+X104+AB104+AF104+AJ104+AN104+AR104+AV104) -> 0 | BA104: =SUM(E104+I104+M104+Q104+U104+Y104+AC104+AG104+AK104+AO104+AS104+AW104) -> 0 | BB104: =SUM(AY104:BA104) -> 2
B105: ZARAGOZA | C105: 1 | D105: 1 | F105: =SUM(C105:E105) -> 2 | G105: 1 | J105: =SUM(G105:I105) -> 1 | L105: 1 | N105: =SUM(K105:M105) -> 1 | O105: 2 | R105: =SUM(O105:Q105) -> 2 | S105: 4 | V105: =SUM(S105:U105) -> 4 | W105: 3 | Z105: =SUM(W105:Y105) -> 3 | AA105: 2 | AD105: =SUM(AA105:AC105) -> 2 | AE105: 3 | AH105: =SUM(AE105:AG105) -> 3 | AI105: 1 | AL105: =SUM(AI105:AK105) -> 1 | AM105: 1 | AP105: =SUM(AM105:AO105) -> 1 | AQ105: 1 | AT105: =SUM(AQ105:AS105) -> 1 | AU105: 3 | AX105: =SUM(AU105:AW105) -> 3 | AY105: =SUM(C105+G105+K105+O105+S105+W105+AA105+AE105+AI105+AM105+AQ105+AU105) -> 22 | AZ105: =SUM(D105+H105+L105+P105+T105+X105+AB105+AF105+AJ105+AN105+AR105+AV105) -> 2 | BA105: =SUM(E105+I105+M105+Q105+U105+Y105+AC105+AG105+AK105+AO105+AS105+AW105) -> 0 | BB105: =SUM(AY105:BA105) -> 24
A106: TOTAL | C106: =SUM(C84:C105) -> 23 | D106: =SUM(D84:D105) -> 2 | E106: =SUM(E84:E105) -> 0 | F106: =SUM(C106:E106) -> 25 | G106: =SUM(G84:G105) -> 26 | H106: =SUM(H84:H105) -> 3 | I106: =SUM(I84:I105) -> 0 | J106: =SUM(G106:I106) -> 29 | K106: =SUM(K84:K105) -> 25 | L106: =SUM(L84:L105) -> 5 | M106: =SUM(M84:M105) -> 2 | N106: =SUM(K106:M106) -> 32 | O106: =SUM(O84:O105) -> 20 | P106: =SUM(P84:P105) -> 3 | Q106: =SUM(Q84:Q105) -> 0 | R106: =SUM(O106:Q106) -> 23 | S106: =SUM(S84:S105) -> 32 | T106: =SUM(T84:T105) -> 2 | U106: =SUM(U84:U105) -> 0 | V106: =SUM(S106:U106) -> 34 | W106: =SUM(W84:W105) -> 27 | X106: =SUM(X84:X105) -> 4 | Y106: =SUM(Y84:Y105) -> 0 | Z106: =SUM(W106:Y106) -> 31 | AA106: =SUM(AA84:AA105) -> 29 | AB106: =SUM(AB84:AB105) -> 1 | AC106: =SUM(AC84:AC105) -> 0 | AD106: =SUM(AA106:AC106) -> 30 | AE106: =SUM(AE84:AE105) -> 33 | AF106: =SUM(AF84:AF105) -> 3 | AG106: =SUM(AG84:AG105) -> 0 | AH106: =SUM(AE106:AG106) -> 36 | AI106: =SUM(AI84:AI105) -> 29 | AJ106: =SUM(AJ84:AJ105) -> 1 | AK106: =SUM(AK84:AK105) -> 0 | AL106: =SUM(AI106:AK106) -> 30 | AM106: =SUM(AM84:AM105) -> 24 | AN106: =SUM(AN84:AN105) -> 1 | AO106: =SUM(AO84:AO105) -> 0 | AP106: =SUM(AM106:AO106) -> 25 | AQ106: =SUM(AQ84:AQ105) -> 29 | AR106: =SUM(AR84:AR105) -> 1 | AS106: =SUM(AS84:AS105) -> 0 | AT106: =SUM(AQ106:AS106) -> 30 | AU106: =SUM(AU84:AU105) -> 40 | AV106: =SUM(AV84:AV105) -> 0 | AW106: =SUM(AW84:AW105) -> 0 | AX106: =SUM(AU106:AW106) -> 40 | AY106: =SUM(AY84:AY105) -> 337 | AZ106: =SUM(AZ84:AZ105) -> 26 | BA106: =SUM(BA84:BA105) -> 2 | BB106: =SUM(AY106:BA106) -> 365
A108: SAN SALVADOR | B108: AGUILARES | F108: =SUM(C108:E108) -> 0 | G108: 2 | J108: =SUM(G108:I108) -> 2 | K108: 2 | N108: =SUM(K108:M108) -> 2 | O108: 3 | R108: =SUM(O108:Q108) -> 3 | V108: =SUM(S108:U108) -> 0 | Z108: =SUM(W108:Y108) -> 0 | AA108: 1 | AD108: =SUM(AA108:AC108) -> 1 | AH108: =SUM(AE108:AG108) -> 0 | AI108: 2 | AL108: =SUM(AI108:AK108) -> 2 | AM108: 2 | AP108: =SUM(AM108:AO108) -> 2 | AT108: =SUM(AQ108:AS108) -> 0 | AU108: 1 | AX108: =SUM(AU108:AW108) -> 1 | AY108: =SUM(C108+G108+K108+O108+S108+W108+AA108+AE108+AI108+AM108+AQ108+AU108) -> 13 | AZ108: =SUM(D108+H108+L108+P108+T108+X108+AB108+AF108+AJ108+AN108+AR108+AV108) -> 0 | BA108: =SUM(E108+I108+M108+Q108+U108+Y108+AC108+AG108+AK108+AO108+AS108+AW108) -> 0 | BB108: =SUM(AY108:BA108) -> 13
B109: APOPA | C109: 14 | D109: 2 | F109: =SUM(C109:E109) -> 16 | G109: 6 | J109: =SUM(G109:I109) -> 6 | K109: 3 | L109: 1 | N109: =SUM(K109:M109) -> 4 | O109: 6 | P109: 1 | R109: =SUM(O109:Q109) -> 7 | S109: 10 | T109: 1 | V109: =SUM(S109:U109) -> 11 | W109: 6 | X109: 1 | Z109: =SUM(W109:Y109) -> 7 | AA109: 6 | AD109: =SUM(AA109:AC109) -> 6 | AE109: 5 | AF109: 1 | AH109: =SUM(AE109:AG109) -> 6 | AI109: 8 | AJ109: 1 | AL109: =SUM(AI109:AK109) -> 9 | AM109: 9 | AN109: 2 | AP109: =SUM(AM109:AO109) -> 11 | AQ109: 13 | AR109: 1 | AT109: =SUM(AQ109:AS109) -> 14 | AU109: 18 | AX109: =SUM(AU109:AW109) -> 18 | AY109: =SUM(C109+G109+K109+O109+S109+W109+AA109+AE109+AI109+AM109+AQ109+AU109) -> 104 | AZ109: =SUM(D109+H109+L109+P109+T109+X109+AB109+AF109+AJ109+AN109+AR109+AV109) -> 11 | BA109: =SUM(E109+I109+M109+Q109+U109+Y109+AC109+AG109+AK109+AO109+AS109+AW109) -> 0 | BB109: =SUM(AY109:BA109) -> 115
B110: AYUTUXTEPEQUE | C110: 1 | F110: =SUM(C110:E110) -> 1 | J110: =SUM(G110:I110) -> 0 | K110: 5 | N110: =SUM(K110:M110) -> 5 | R110: =SUM(O110:Q110) -> 0 | S110: 2 | T110: 1 | V110: =SUM(S110:U110) -> 3 | Z110: =SUM(W110:Y110) -> 0 | AA110: 1 | AD110: =SUM(AA110:AC110) -> 1 | AH110: =SUM(AE110:AG110) -> 0 | AL110: =SUM(AI110:AK110) -> 0 | AP110: =SUM(AM110:AO110) -> 0 | AT110: =SUM(AQ110:AS110) -> 0 | AX110: =SUM(AU110:AW110) -> 0 | AY110: =SUM(C110+G110+K110+O110+S110+W110+AA110+AE110+AI110+AM110+AQ110+AU110) -> 9 | AZ110: =SUM(D110+H110+L110+P110+T110+X110+AB110+AF110+AJ110+AN110+AR110+AV110) -> 1 | BA110: =SUM(E110+I110+M110+Q110+U110+Y110+AC110+AG110+AK110+AO110+AS110+AW110) -> 0 | BB110: =SUM(AY110:BA110) -> 10
B111: CUSCATANCINGO | C111: 2 | F111: =SUM(C111:E111) -> 2 | G111: 2 | J111: =SUM(G111:I111) -> 2 | K111: 2 | N111: =SUM(K111:M111) -> 2 | R111: =SUM(O111:Q111) -> 0 | S111: 4 | V111: =SUM(S111:U111) -> 4 | W111: 6 | Z111: =SUM(W111:Y111) -> 6 | AA111: 5 | AD111: =SUM(AA111:AC111) -> 5 | AH111: =SUM(AE111:AG111) -> 0 | AI111: 1 | AL111: =SUM(AI111:AK111) -> 1 | AM111: 9 | AP111: =SUM(AM111:AO111) -> 9 | AQ111: 4 | AT111: =SUM(AQ111:AS111) -> 4 | AU111: 2 | AX111: =SUM(AU111:AW111) -> 2 | AY111: =SUM(C111+G111+K111+O111+S111+W111+AA111+AE111+AI111+AM111+AQ111+AU111) -> 37 | AZ111: =SUM(D111+H111+L111+P111+T111+X111+AB111+AF111+AJ111+AN111+AR111+AV111) -> 0 | BA111: =SUM(E111+I111+M111+Q111+U111+Y111+AC111+AG111+AK111+AO111+AS111+AW111) -> 0 | BB111: =SUM(AY111:BA111) -> 37
B112: DELGADO | C112: 5 | F112: =SUM(C112:E112) -> 5 | G112: 1 | J112: =SUM(G112:I112) -> 1 | K112: 6 | L112: 1 | N112: =SUM(K112:M112) -> 7 | P112: 1 | R112: =SUM(O112:Q112) -> 1 | S112: 9 | V112: =SUM(S112:U112) -> 9 | W112: 9 | X112: 1 | Z112: =SUM(W112:Y112) -> 10 | AA112: 6 | AB112: 1 | AD112: =SUM(AA112:AC112) -> 7 | AE112: 9 | AF112: 1 | AH112: =SUM(AE112:AG112) -> 10 | AI112: 2 | AL112: =SUM(AI112:AK112) -> 2 | AM112: 10 | AN112: 1 | AP112: =SUM(AM112:AO112) -> 11 | AQ112: 11 | AS112: 1 | AT112: =SUM(AQ112:AS112) -> 12 | AU112: 9 | AX112: =SUM(AU112:AW112) -> 9 | AY112: =SUM(C112+G112+K112+O112+S112+W112+AA112+AE112+AI112+AM112+AQ112+AU112) -> 77 | AZ112: =SUM(D112+H112+L112+P112+T112+X112+AB112+AF112+AJ112+AN112+AR112+AV112) -> 6 | BA112: =SUM(E112+I112+M112+Q112+U112+Y112+AC112+AG112+AK112+AO112+AS112+AW112) -> 1 | BB112: =SUM(AY112:BA112) -> 84
B113: EL PAISNAL | C113: 1 | F113: =SUM(C113:E113) -> 1 | G113: 3 | J113: =SUM(G113:I113) -> 3 | K113: 3 | L113: 1 | N113: =SUM(K113:M113) -> 4 | O113: 2 | R113: =SUM(O113:Q113) -> 2 | S113: 2 | V113: =SUM(S113:U113) -> 2 | W113: 2 | X113: 1 | Z113: =SUM(W113:Y113) -> 3 | AA113: 4 | AB113: 2 | AD113: =SUM(AA113:AC113) -> 6 | AE113: 1 | AH113: =SUM(AE113:AG113) -> 1 | AI113: 2 | AL113: =SUM(AI113:AK113) -> 2 | AM113: 3 | AP113: =SUM(AM113:AO113) -> 3 | AT113: =SUM(AQ113:AS113) -> 0 | AU113: 4 | AX113: =SUM(AU113:AW113) -> 4 | AY113: =SUM(C113+G113+K113+O113+S113+W113+AA113+AE113+AI113+AM113+AQ113+AU113) -> 27 | AZ113: =SUM(D113+H113+L113+P113+T113+X113+AB113+AF113+AJ113+AN113+AR113+AV113) -> 4 | BA113: =SUM(E113+I113+M113+Q113+U113+Y113+AC113+AG113+AK113+AO113+AS113+AW113) -> 0 | BB113: =SUM(AY113:BA113) -> 31
B114: GUAZAPA | C114: 1 | F114: =SUM(C114:E114) -> 1 | G114: 1 | J114: =SUM(G114:I114) -> 1 | K114: 6 | L114: 1 | N114: =SUM(K114:M114) -> 7 | O114: 3 | R114: =SUM(O114:Q114) -> 3 | V114: =SUM(S114:U114) -> 0 | X114: 1 | Z114: =SUM(W114:Y114) -> 1 | AA114: 1 | AD114: =SUM(AA114:AC114) -> 1 | AE114: 2 | AF114: 1 | AH114: =SUM(AE114:AG114) -> 3 | AL114: =SUM(AI114:AK114) -> 0 | AM114: 2 | AN114: 1 | AP114: =SUM(AM114:AO114) -> 3 | AQ114: 1 | AT114: =SUM(AQ114:AS114) -> 1 | AU114: 2 | AX114: =SUM(AU114:AW114) -> 2 | AY114: =SUM(C114+G114+K114+O114+S114+W114+AA114+AE114+AI114+AM114+AQ114+AU114) -> 19 | AZ114: =SUM(D114+H114+L114+P114+T114+X114+AB114+AF114+AJ114+AN114+AR114+AV114) -> 4 | BA114: =SUM(E114+I114+M114+Q114+U114+Y114+AC114+AG114+AK114+AO114+AS114+AW114) -> 0 | BB114: =SUM(AY114:BA114) -> 23
B115: ILOPANGO | C115: 3 | F115: =SUM(C115:E115) -> 3 | G115: 3 | J115: =SUM(G115:I115) -> 3 | K115: 6 | N115: =SUM(K115:M115) -> 6 | O115: 4 | P115: 1 | R115: =SUM(O115:Q115) -> 5 | S115: 4 | V115: =SUM(S115:U115) -> 4 | W115: 3 | Z115: =SUM(W115:Y115) -> 3 | AA115: 7 | AD115: =SUM(AA115:AC115) -> 7 | AE115: 4 | AF115: 1 | AH115: =SUM(AE115:AG115) -> 5 | AI115: 8 | AL115: =SUM(AI115:AK115) -> 8 | AM115: 1 | AP115: =SUM(AM115:AO115) -> 1 | AQ115: 2 | AT115: =SUM(AQ115:AS115) -> 2 | AU115: 3 | AX115: =SUM(AU115:AW115) -> 3 | AY115: =SUM(C115+G115+K115+O115+S115+W115+AA115+AE115+AI115+AM115+AQ115+AU115) -> 48 | AZ115: =SUM(D115+H115+L115+P115+T115+X115+AB115+AF115+AJ115+AN115+AR115+AV115) -> 2 | BA115: =SUM(E115+I115+M115+Q115+U115+Y115+AC115+AG115+AK115+AO115+AS115+AW115) -> 0 | BB115: =SUM(AY115:BA115) -> 50
B116: MEJICANOS | C116: 11 | F116: =SUM(C116:E116) -> 11 | G116: 7 | J116: =SUM(G116:I116) -> 7 | K116: 9 | L116: 1 | N116: =SUM(K116:M116) -> 10 | O116: 7 | P116: 3 | R116: =SUM(O116:Q116) -> 10 | S116: 11 | T116: 2 | V116: =SUM(S116:U116) -> 13 | W116: 8 | X116: 1 | Z116: =SUM(W116:Y116) -> 9 | AA116: 11 | AB116: 1 | AD116: =SUM(AA116:AC116) -> 12 | AE116: 8 | AH116: =SUM(AE116:AG116) -> 8 | AI116: 6 | AJ116: 1 | AL116: =SUM(AI116:AK116) -> 7 | AM116: 7 | AP116: =SUM(AM116:AO116) -> 7 | AQ116: 8 | AR116: 2 | AT116: =SUM(AQ116:AS116) -> 10 | AU116: 7 | AX116: =SUM(AU116:AW116) -> 7 | AY116: =SUM(C116+G116+K116+O116+S116+W116+AA116+AE116+AI116+AM116+AQ116+AU116) -> 100 | AZ116: =SUM(D116+H116+L116+P116+T116+X116+AB116+AF116+AJ116+AN116+AR116+AV116) -> 11 | BA116: =SUM(E116+I116+M116+Q116+U116+Y116+AC116+AG116+AK116+AO116+AS116+AW116) -> 0 | BB116: =SUM(AY116:BA116) -> 111
B117: NEJAPA | C117: 1 | F117: =SUM(C117:E117) -> 1 | J117: =SUM(G117:I117) -> 0 | K117: 2 | N117: =SUM(K117:M117) -> 2 | O117: 3 | R117: =SUM(O117:Q117) -> 3 | S117: 2 | V117: =SUM(S117:U117) -> 2 | W117: 1 | Z117: =SUM(W117:Y117) -> 1 | AA117: 1 | AB117: 1 | AD117: =SUM(AA117:AC117) -> 2 | AE117: 2 | AF117: 1 | AH117: =SUM(AE117:AG117) -> 3 | AI117: 2 | AL117: =SUM(AI117:AK117) -> 2 | AM117: 3 | AP117: =SUM(AM117:AO117) -> 3 | AR117: 1 | AT117: =SUM(AQ117:AS117) -> 1 | AU117: 2 | AX117: =SUM(AU117:AW117) -> 2 | AY117: =SUM(C117+G117+K117+O117+S117+W117+AA117+AE117+AI117+AM117+AQ117+AU117) -> 19 | AZ117: =SUM(D117+H117+L117+P117+T117+X117+AB117+AF117+AJ117+AN117+AR117+AV117) -> 3 | BA117: =SUM(E117+I117+M117+Q117+U117+Y117+AC117+AG117+AK117+AO117+AS117+AW117) -> 0 | BB117: =SUM(AY117:BA117) -> 22
B118: PANCHIMALCO | C118: 5 | F118: =SUM(C118:E118) -> 5 | G118: 2 | J118: =SUM(G118:I118) -> 2 | K118: 6 | L118: 1 | N118: =SUM(K118:M118) -> 7 | O118: 4 | R118: =SUM(O118:Q118) -> 4 | S118: 2 | V118: =SUM(S118:U118) -> 2 | W118: 8 | Z118: =SUM(W118:Y118) -> 8 | AA118: 2 | AD118: =SUM(AA118:AC118) -> 2 | AE118: 2 | AH118: =SUM(AE118:AG118) -> 2 | AI118: 1 | AL118: =SUM(AI118:AK118) -> 1 | AM118: 2 | AP118: =SUM(AM118:AO118) -> 2 | AQ118: 3 | AR118: 1 | AT118: =SUM(AQ118:AS118) -> 4 | AU118: 5 | AX118: =SUM(AU118:AW118) -> 5 | AY118: =SUM(C118+G118+K118+O118+S118+W118+AA118+AE118+AI118+AM118+AQ118+AU118) -> 42 | AZ118: =SUM(D118+H118+L118+P118+T118+X118+AB118+AF118+AJ118+AN118+AR118+AV118) -> 2 | BA118: =SUM(E118+I118+M118+Q118+U118+Y118+AC118+AG118+AK118+AO118+AS118+AW118) -> 0 | BB118: =SUM(AY118:BA118) -> 44
B119: ROSARIO DE MORA | C119: 1 | D119: 1 | F119: =SUM(C119:E119) -> 2 | J119: =SUM(G119:I119) -> 0 | K119: 1 | N119: =SUM(K119:M119) -> 1 | R119: =SUM(O119:Q119) -> 0 | V119: =SUM(S119:U119) -> 0 | W119: 1 | Z119: =SUM(W119:Y119) -> 1 | AA119: 2 | AD119: =SUM(AA119:AC119) -> 2 | AH119: =SUM(AE119:AG119) -> 0 | AI119: 4 | AL119: =SUM(AI119:AK119) -> 4 | AM119: 1 | AP119: =SUM(AM119:AO119) -> 1 | AT119: =SUM(AQ119:AS119) -> 0 | AU119: 1 | AX119: =SUM(AU119:AW119) -> 1 | AY119: =SUM(C119+G119+K119+O119+S119+W119+AA119+AE119+AI119+AM119+AQ119+AU119) -> 11 | AZ119: =SUM(D119+H119+L119+P119+T119+X119+AB119+AF119+AJ119+AN119+AR119+AV119) -> 1 | BA119: =SUM(E119+I119+M119+Q119+U119+Y119+AC119+AG119+AK119+AO119+AS119+AW119) -> 0 | BB119: =SUM(AY119:BA119) -> 12
B120: SAN MARCOS | C120: 1 | F120: =SUM(C120:E120) -> 1 | J120: =SUM(G120:I120) -> 0 | K120: 2 | N120: =SUM(K120:M120) -> 2 | O120: 1 | R120: =SUM(O120:Q120) -> 1 | S120: 2 | V120: =SUM(S120:U120) -> 2 | W120: 2 | Z120: =SUM(W120:Y120) -> 2 | AA120: 1 | AB120: 1 | AD120: =SUM(AA120:AC120) -> 2 | AE120: 4 | AH120: =SUM(AE120:AG120) -> 4 | AI120: 3 | AL120: =SUM(AI120:AK120) -> 3 | AM120: 1 | AP120: =SUM(AM120:AO120) -> 1 | AQ120: 1 | AT120: =SUM(AQ120:AS120) -> 1 | AU120: 8 | AX120: =SUM(AU120:AW120) -> 8 | AY120: =SUM(C120+G120+K120+O120+S120+W120+AA120+AE120+AI120+AM120+AQ120+AU120) -> 26 | AZ120: =SUM(D120+H120+L120+P120+T120+X120+AB120+AF120+AJ120+AN120+AR120+AV120) -> 1 | BA120: =SUM(E120+I120+M120+Q120+U120+Y120+AC120+AG120+AK120+AO120+AS120+AW120) -> 0 | BB120: =SUM(AY120:BA120) -> 27
B121: SAN MARTIN | C121: 1 | F121: =SUM(C121:E121) -> 1 | G121: 7 | J121: =SUM(G121:I121) -> 7 | K121: 7 | N121: =SUM(K121:M121) -> 7 | O121: 6 | R121: =SUM(O121:Q121) -> 6 | S121: 14 | V121: =SUM(S121:U121) -> 14 | W121: 17 | Z121: =SUM(W121:Y121) -> 17 | AA121: 10 | AD121: =SUM(AA121:AC121) -> 10 | AE121: 9 | AH121: =SUM(AE121:AG121) -> 9 | AI121: 8 | AL121: =SUM(AI121:AK121) -> 8 | AM121: 4 | AN121: 1 | AP121: =SUM(AM121:AO121) -> 5 | AQ121: 3 | AT121: =SUM(AQ121:AS121) -> 3 | AU121: 9 | AX121: =SUM(AU121:AW121) -> 9 | AY121: =SUM(C121+G121+K121+O121+S121+W121+AA121+AE121+AI121+AM121+AQ121+AU121) -> 95 | AZ121: =SUM(D121+H121+L121+P121+T121+X121+AB121+AF121+AJ121+AN121+AR121+AV121) -> 1 | BA121: =SUM(E121+I121+M121+Q121+U121+Y121+AC121+AG121+AK121+AO121+AS121+AW121) -> 0 | BB121: =SUM(AY121:BA121) -> 96
B122: SAN SALVADOR | C122: 17 | D122: 2 | F122: =SUM(C122:E122) -> 19 | G122: 22 | H122: 1 | J122: =SUM(G122:I122) -> 23 | K122: 22 | N122: =SUM(K122:M122) -> 22 | O122: 32 | P122: 3 | R122: =SUM(O122:Q122) -> 35 | S122: 23 | T122: 2 | V122: =SUM(S122:U122) -> 25 | W122: 28 | X122: 4 | Z122: =SUM(W122:Y122) -> 32 | AA122: 28 | AB122: 5 | AD122: =SUM(AA122:AC122) -> 33 | AE122: 26 | AF122: 1 | AH122: =SUM(AE122:AG122) -> 27 | AI122: 36 | AJ122: 2 | AL122: =SUM(AI122:AK122) -> 38 | AM122: 25 | AN122: 3 | AP122: =SUM(AM122:AO122) -> 28 | AQ122: 27 | AR122: 1 | AT122: =SUM(AQ122:AS122) -> 28 | AU122: 27 | AX122: =SUM(AU122:AW122) -> 27 | AY122: =SUM(C122+G122+K122+O122+S122+W122+AA122+AE122+AI122+AM122+AQ122+AU122) -> 313 | AZ122: =SUM(D122+H122+L122+P122+T122+X122+AB122+AF122+AJ122+AN122+AR122+AV122) -> 24 | BA122: =SUM(E122+I122+M122+Q122+U122+Y122+AC122+AG122+AK122+AO122+AS122+AW122) -> 0 | BB122: =SUM(AY122:BA122) -> 337
B123: SANTIAGO TEXACUANGOS | F123: =SUM(C123:E123) -> 0 | J123: =SUM(G123:I123) -> 0 | K123: 2 | N123: =SUM(K123:M123) -> 2 | O123: 6 | R123: =SUM(O123:Q123) -> 6 | T123: 1 | V123: =SUM(S123:U123) -> 1 | W123: 2 | Z123: =SUM(W123:Y123) -> 2 | AD123: =SUM(AA123:AC123) -> 0 | AE123: 5 | AH123: =SUM(AE123:AG123) -> 5 | AL123: =SUM(AI123:AK123) -> 0 | AM123: 2 | AP123: =SUM(AM123:AO123) -> 2 | AQ123: 1 | AT123: =SUM(AQ123:AS123) -> 1 | AU123: 1 | AX123: =SUM(AU123:AW123) -> 1 | AY123: =SUM(C123+G123+K123+O123+S123+W123+AA123+AE123+AI123+AM123+AQ123+AU123) -> 19 | AZ123: =SUM(D123+H123+L123+P123+T123+X123+AB123+AF123+AJ123+AN123+AR123+AV123) -> 1 | BA123: =SUM(E123+I123+M123+Q123+U123+Y123+AC123+AG123+AK123+AO123+AS123+AW123) -> 0 | BB123: =SUM(AY123:BA123) -> 20
B124: SANTO TOMAS | C124: 2 | F124: =SUM(C124:E124) -> 2 | G124: 1 | J124: =SUM(G124:I124) -> 1 | K124: 3 | N124: =SUM(K124:M124) -> 3 | O124: 2 | R124: =SUM(O124:Q124) -> 2 | V124: =SUM(S124:U124) -> 0 | W124: 4 | X124: 1 | Z124: =SUM(W124:Y124) -> 5 | AA124: 2 | AD124: =SUM(AA124:AC124) -> 2 | AH124: =SUM(AE124:AG124) -> 0 | AI124: 3 | AL124: =SUM(AI124:AK124) -> 3 | AM124: 3 | AP124: =SUM(AM124:AO124) -> 3 | AT124: =SUM(AQ124:AS124) -> 0 | AU124: 1 | AX124: =SUM(AU124:AW124) -> 1 | AY124: =SUM(C124+G124+K124+O124+S124+W124+AA124+AE124+AI124+AM124+AQ124+AU124) -> 21 | AZ124: =SUM(D124+H124+L124+P124+T124+X124+AB124+AF124+AJ124+AN124+AR124+AV124) -> 1 | BA124: =SUM(E124+I124+M124+Q124+U124+Y124+AC124+AG124+AK124+AO124+AS124+AW124) -> 0 | BB124: =SUM(AY124:BA124) -> 22
B125: SOYAPANGO | C125: 2 | F125: =SUM(C125:E125) -> 2 | G125: 4 | J125: =SUM(G125:I125) -> 4 | K125: 5 | L125: 1 | N125: =SUM(K125:M125) -> 6 | O125: 7 | R125: =SUM(O125:Q125) -> 7 | S125: 21 | T125: 1 | V125: =SUM(S125:U125) -> 22 | W125: 7 | Z125: =SUM(W125:Y125) -> 7 | AA125: 17 | AD125: =SUM(AA125:AC125) -> 17 | AE125: 16 | AF125: 2 | AH125: =SUM(AE125:AG125) -> 18 | AI125: 13 | AJ125: 1 | AL125: =SUM(AI125:AK125) -> 14 | AM125: 10 | AN125: 3 | AP125: =SUM(AM125:AO125) -> 13 | AQ125: 16 | AR125: 2 | AT125: =SUM(AQ125:AS125) -> 18 | AU125: 10 | AX125: =SUM(AU125:AW125) -> 10 | AY125: =SUM(C125+G125+K125+O125+S125+W125+AA125+AE125+AI125+AM125+AQ125+AU125) -> 128 | AZ125: =SUM(D125+H125+L125+P125+T125+X125+AB125+AF125+AJ125+AN125+AR125+AV125) -> 10 | BA125: =SUM(E125+I125+M125+Q125+U125+Y125+AC125+AG125+AK125+AO125+AS125+AW125) -> 0 | BB125: =SUM(AY125:BA125) -> 138
B126: TONACATEPEQUE | C126: 2 | F126: =SUM(C126:E126) -> 2 | G126: 4 | J126: =SUM(G126:I126) -> 4 | K126: 5 | L126: 2 | N126: =SUM(K126:M126) -> 7 | O126: 1 | P126: 1 | R126: =SUM(O126:Q126) -> 2 | S126: 4 | V126: =SUM(S126:U126) -> 4 | W126: 1 | Z126: =SUM(W126:Y126) -> 1 | AA126: 8 | AD126: =SUM(AA126:AC126) -> 8 | AE126: 1 | AF126: 1 | AH126: =SUM(AE126:AG126) -> 2 | AI126: 4 | AL126: =SUM(AI126:AK126) -> 4 | AN126: 1 | AP126: =SUM(AM126:AO126) -> 1 | AQ126: 3 | AT126: =SUM(AQ126:AS126) -> 3 | AU126: 7 | AX126: =SUM(AU126:AW126) -> 7 | AY126: =SUM(C126+G126+K126+O126+S126+W126+AA126+AE126+AI126+AM126+AQ126+AU126) -> 40 | AZ126: =SUM(D126+H126+L126+P126+T126+X126+AB126+AF126+AJ126+AN126+AR126+AV126) -> 5 | BA126: =SUM(E126+I126+M126+Q126+U126+Y126+AC126+AG126+AK126+AO126+AS126+AW126) -> 0 | BB126: =SUM(AY126:BA126) -> 45
A127: TOTAL | C127: =SUM(C108:C126) -> 70 | D127: =SUM(D108:D126) -> 5 | E127: =SUM(E108:E126) -> 0 | F127: =SUM(C127:E127) -> 75 | G127: =SUM(G108:G126) -> 65 | H127: =SUM(H108:H126) -> 1 | I127: =SUM(I108:I126) -> 0 | J127: =SUM(G127:I127) -> 66 | K127: =SUM(K108:K126) -> 97 | L127: =SUM(L108:L126) -> 9 | M127: =SUM(M108:M126) -> 0 | N127: =SUM(K127:M127) -> 106 | O127: =SUM(O108:O126) -> 87 | P127: =SUM(P108:P126) -> 10 | Q127: =SUM(Q108:Q126) -> 0 | R127: =SUM(O127:Q127) -> 97 | S127: =SUM(S108:S126) -> 110 | T127: =SUM(T108:T126) -> 8 | U127: =SUM(U108:U126) -> 0 | V127: =SUM(S127:U127) -> 118 | W127: =SUM(W108:W126) -> 105 | X127: =SUM(X108:X126) -> 10 | Y127: =SUM(Y108:Y126) -> 0 | Z127: =SUM(W127:Y127) -> 115 | AA127: =SUM(AA108:AA126) -> 113 | AB127: =SUM(AB108:AB126) -> 11 | AC127: =SUM(AC108:AC126) -> 0 | AD127: =SUM(AA127:AC127) -> 124 | AE127: =SUM(AE108:AE126) -> 94 | AF127: =SUM(AF108:AF126) -> 9 | AG127: =SUM(AG108:AG126) -> 0 | AH127: =SUM(AE127:AG127) -> 103 | AI127: =SUM(AI108:AI126) -> 103 | AJ127: =SUM(AJ108:AJ126) -> 5 | AK127: =SUM(AK108:AK126) -> 0 | AL127: =SUM(AI127:AK127) -> 108 | AM127: =SUM(AM108:AM126) -> 94 | AN127: =SUM(AN108:AN126) -> 12 | AO127: =SUM(AO108:AO126) -> 0 | AP127: =SUM(AM127:AO127) -> 106 | AQ127: =SUM(AQ108:AQ126) -> 93 | AR127: =SUM(AR108:AR126) -> 8 | AS127: =SUM(AS108:AS126) -> 1 | AT127: =SUM(AQ127:AS127) -> 102 | AU127: =SUM(AU108:AU126) -> 117 | AV127: =SUM(AV108:AV126) -> 0 | AW127: =SUM(AW108:AW126) -> 0 | AX127: =SUM(AU127:AW127) -> 117 | AY127: =SUM(AY108:AY126) -> 1148 | AZ127: =SUM(AZ108:AZ126) -> 88 | BA127: =SUM(BA108:BA126) -> 1 | BB127: =SUM(AY127:BA127) -> 1237
A129: CUSCATLAN | B129: CANDELARIA | F129: =SUM(C129:E129) -> 0 | J129: =SUM(G129:I129) -> 0 | K129: 2 | N129: =SUM(K129:M129) -> 2 | R129: =SUM(O129:Q129) -> 0 | V129: =SUM(S129:U129) -> 0 | Z129: =SUM(W129:Y129) -> 0 | AD129: =SUM(AA129:AC129) -> 0 | AH129: =SUM(AE129:AG129) -> 0 | AL129: =SUM(AI129:AK129) -> 0 | AP129: =SUM(AM129:AO129) -> 0 | AT129: =SUM(AQ129:AS129) -> 0 | AU129: 1 | AX129: =SUM(AU129:AW129) -> 1 | AY129: =SUM(C129+G129+K129+O129+S129+W129+AA129+AE129+AI129+AM129+AQ129+AU129) -> 3 | AZ129: =SUM(D129+H129+L129+P129+T129+X129+AB129+AF129+AJ129+AN129+AR129+AV129) -> 0 | BA129: =SUM(E129+I129+M129+Q129+U129+Y129+AC129+AG129+AK129+AO129+AS129+AW129) -> 0 | BB129: =SUM(AY129:BA129) -> 3
B130: COJUTEPEQUE | C130: 6 | F130: =SUM(C130:E130) -> 6 | G130: 2 | J130: =SUM(G130:I130) -> 2 | K130: 5 | N130: =SUM(K130:M130) -> 5 | O130: 1 | R130: =SUM(O130:Q130) -> 1 | S130: 3 | T130: 1 | V130: =SUM(S130:U130) -> 4 | W130: 7 | X130: 1 | Z130: =SUM(W130:Y130) -> 8 | AA130: 5 | AD130: =SUM(AA130:AC130) -> 5 | AE130: 3 | AF130: 1 | AH130: =SUM(AE130:AG130) -> 4 | AI130: 6 | AL130: =SUM(AI130:AK130) -> 6 | AM130: 7 | AN130: 1 | AP130: =SUM(AM130:AO130) -> 8 | AQ130: 3 | AR130: 1 | AT130: =SUM(AQ130:AS130) -> 4 | AU130: 6 | AX130: =SUM(AU130:AW130) -> 6 | AY130: =SUM(C130+G130+K130+O130+S130+W130+AA130+AE130+AI130+AM130+AQ130+AU130) -> 54 | AZ130: =SUM(D130+H130+L130+P130+T130+X130+AB130+AF130+AJ130+AN130+AR130+AV130) -> 5 | BA130: =SUM(E130+I130+M130+Q130+U130+Y130+AC130+AG130+AK130+AO130+AS130+AW130) -> 0 | BB130: =SUM(AY130:BA130) -> 59
B131: EL CARMEN | F131: =SUM(C131:E131) -> 0 | H131: 1 | J131: =SUM(G131:I131) -> 1 | K131: 1 | N131: =SUM(K131:M131) -> 1 | R131: =SUM(O131:Q131) -> 0 | S131: 2 | T131: 1 | V131: =SUM(S131:U131) -> 3 | W131: 5 | X131: 1 | Z131: =SUM(W131:Y131) -> 6 | AA131: 4 | AD131: =SUM(AA131:AC131) -> 4 | AE131: 1 | AH131: =SUM(AE131:AG131) -> 1 | AI131: 1 | AL131: =SUM(AI131:AK131) -> 1 | AM131: 5 | AP131: =SUM(AM131:AO131) -> 5 | AQ131: 4 | AR131: 1 | AT131: =SUM(AQ131:AS131) -> 5 | AU131: 8 | AX131: =SUM(AU131:AW131) -> 8 | AY131: =SUM(C131+G131+K131+O131+S131+W131+AA131+AE131+AI131+AM131+AQ131+AU131) -> 31 | AZ131: =SUM(D131+H131+L131+P131+T131+X131+AB131+AF131+AJ131+AN131+AR131+AV131) -> 4 | BA131: =SUM(E131+I131+M131+Q131+U131+Y131+AC131+AG131+AK131+AO131+AS131+AW131) -> 0 | BB131: =SUM(AY131:BA131) -> 35
B132: EL ROSARIO | F132: =SUM(C132:E132) -> 0 | G132: 1 | J132: =SUM(G132:I132) -> 1 | N132: =SUM(K132:M132) -> 0 | O132: 2 | R132: =SUM(O132:Q132) -> 2 | V132: =SUM(S132:U132) -> 0 | Z132: =SUM(W132:Y132) -> 0 | AD132: =SUM(AA132:AC132) -> 0 | AH132: =SUM(AE132:AG132) -> 0 | AL132: =SUM(AI132:AK132) -> 0 | AP132: =SUM(AM132:AO132) -> 0 | AT132: =SUM(AQ132:AS132) -> 0 | AX132: =SUM(AU132:AW132) -> 0 | AY132: =SUM(C132+G132+K132+O132+S132+W132+AA132+AE132+AI132+AM132+AQ132+AU132) -> 3 | AZ132: =SUM(D132+H132+L132+P132+T132+X132+AB132+AF132+AJ132+AN132+AR132+AV132) -> 0 | BA132: =SUM(E132+I132+M132+Q132+U132+Y132+AC132+AG132+AK132+AO132+AS132+AW132) -> 0 | BB132: =SUM(AY132:BA132) -> 3
B133: MONTE SAN JUAN | C133: 2 | F133: =SUM(C133:E133) -> 2 | J133: =SUM(G133:I133) -> 0 | N133: =SUM(K133:M133) -> 0 | R133: =SUM(O133:Q133) -> 0 | V133: =SUM(S133:U133) -> 0 | W133: 4 | Z133: =SUM(W133:Y133) -> 4 | AA133: 1 | AD133: =SUM(AA133:AC133) -> 1 | AE133: 3 | AH133: =SUM(AE133:AG133) -> 3 | AL133: =SUM(AI133:AK133) -> 0 | AM133: 1 | AP133: =SUM(AM133:AO133) -> 1 | AT133: =SUM(AQ133:AS133) -> 0 | AX133: =SUM(AU133:AW133) -> 0 | AY133: =SUM(C133+G133+K133+O133+S133+W133+AA133+AE133+AI133+AM133+AQ133+AU133) -> 11 | AZ133: =SUM(D133+H133+L133+P133+T133+X133+AB133+AF133+AJ133+AN133+AR133+AV133) -> 0 | BA133: =SUM(E133+I133+M133+Q133+U133+Y133+AC133+AG133+AK133+AO133+AS133+AW133) -> 0 | BB133: =SUM(AY133:BA133) -> 11
B134: ORATORIO DE CONCEPCION | F134: =SUM(C134:E134) -> 0 | G134: 1 | J134: =SUM(G134:I134) -> 1 | N134: =SUM(K134:M134) -> 0 | O134: 1 | R134: =SUM(O134:Q134) -> 1 | V134: =SUM(S134:U134) -> 0 | Z134: =SUM(W134:Y134) -> 0 | AD134: =SUM(AA134:AC134) -> 0 | AH134: =SUM(AE134:AG134) -> 0 | AL134: =SUM(AI134:AK134) -> 0 | AP134: =SUM(AM134:AO134) -> 0 | AT134: =SUM(AQ134:AS134) -> 0 | AX134: =SUM(AU134:AW134) -> 0 | AY134: =SUM(C134+G134+K134+O134+S134+W134+AA134+AE134+AI134+AM134+AQ134+AU134) -> 2 | AZ134: =SUM(D134+H134+L134+P134+T134+X134+AB134+AF134+AJ134+AN134+AR134+AV134) -> 0 | BA134: =SUM(E134+I134+M134+Q134+U134+Y134+AC134+AG134+AK134+AO134+AS134+AW134) -> 0 | BB134: =SUM(AY134:BA134) -> 2
B135: SAN BARTOLOME PERULAPIA | F135: =SUM(C135:E135) -> 0 | J135: =SUM(G135:I135) -> 0 | N135: =SUM(K135:M135) -> 0 | O135: 1 | R135: =SUM(O135:Q135) -> 1 | S135: 2 | V135: =SUM(S135:U135) -> 2 | Z135: =SUM(W135:Y135) -> 0 | AD135: =SUM(AA135:AC135) -> 0 | AH135: =SUM(AE135:AG135) -> 0 | AL135: =SUM(AI135:AK135) -> 0 | AM135: 1 | AP135: =SUM(AM135:AO135) -> 1 | AQ135: 2 | AT135: =SUM(AQ135:AS135) -> 2 | AX135: =SUM(AU135:AW135) -> 0 | AY135: =SUM(C135+G135+K135+O135+S135+W135+AA135+AE135+AI135+AM135+AQ135+AU135) -> 6 | AZ135: =SUM(D135+H135+L135+P135+T135+X135+AB135+AF135+AJ135+AN135+AR135+AV135) -> 0 | BA135: =SUM(E135+I135+M135+Q135+U135+Y135+AC135+AG135+AK135+AO135+AS135+AW135) -> 0 | BB135: =SUM(AY135:BA135) -> 6
B136: SAN CRISTOBAL | F136: =SUM(C136:E136) -> 0 | G136: 1 | J136: =SUM(G136:I136) -> 1 | N136: =SUM(K136:M136) -> 0 | R136: =SUM(O136:Q136) -> 0 | V136: =SUM(S136:U136) -> 0 | Z136: =SUM(W136:Y136) -> 0 | AD136: =SUM(AA136:AC136) -> 0 | AH136: =SUM(AE136:AG136) -> 0 | AL136: =SUM(AI136:AK136) -> 0 | AP136: =SUM(AM136:AO136) -> 0 | AT136: =SUM(AQ136:AS136) -> 0 | AU136: 1 | AX136: =SUM(AU136:AW136) -> 1 | AY136: =SUM(C136+G136+K136+O136+S136+W136+AA136+AE136+AI136+AM136+AQ136+AU136) -> 2 | AZ136: =SUM(D136+H136+L136+P136+T136+X136+AB136+AF136+AJ136+AN136+AR136+AV136) -> 0 | BA136: =SUM(E136+I136+M136+Q136+U136+Y136+AC136+AG136+AK136+AO136+AS136+AW136) -> 0 | BB136: =SUM(AY136:BA136) -> 2
B137: SAN JOSE GUAYABAL | D137: 1 | F137: =SUM(C137:E137) -> 1 | G137: 1 | J137: =SUM(G137:I137) -> 1 | N137: =SUM(K137:M137) -> 0 | R137: =SUM(O137:Q137) -> 0 | S137: 1 | V137: =SUM(S137:U137) -> 1 | Z137: =SUM(W137:Y137) -> 0 | AA137: 1 | AD137: =SUM(AA137:AC137) -> 1 | AH137: =SUM(AE137:AG137) -> 0 | AL137: =SUM(AI137:AK137) -> 0 | AP137: =SUM(AM137:AO137) -> 0 | AQ137: 1 | AT137: =SUM(AQ137:AS137) -> 1 | AU137: 4 | AX137: =SUM(AU137:AW137) -> 4 | AY137: =SUM(C137+G137+K137+O137+S137+W137+AA137+AE137+AI137+AM137+AQ137+AU137) -> 8 | AZ137: =SUM(D137+H137+L137+P137+T137+X137+AB137+AF137+AJ137+AN137+AR137+AV137) -> 1 | BA137: =SUM(E137+I137+M137+Q137+U137+Y137+AC137+AG137+AK137+AO137+AS137+AW137) -> 0 | BB137: =SUM(AY137:BA137) -> 9
B138: SAN PEDRO PERULAPAN | C138: 5 | F138: =SUM(C138:E138) -> 5 | G138: 8 | J138: =SUM(G138:I138) -> 8 | K138: 9 | N138: =SUM(K138:M138) -> 9 | O138: 10 | R138: =SUM(O138:Q138) -> 10 | S138: 8 | V138: =SUM(S138:U138) -> 8 | W138: 3 | X138: 2 | Z138: =SUM(W138:Y138) -> 5 | AA138: 5 | AD138: =SUM(AA138:AC138) -> 5 | AE138: 7 | AH138: =SUM(AE138:AG138) -> 7 | AI138: 1 | AL138: =SUM(AI138:AK138) -> 1 | AM138: 8 | AO138: 1 | AP138: =SUM(AM138:AO138) -> 9 | AQ138: 8 | AR138: 1 | AT138: =SUM(AQ138:AS138) -> 9 | AU138: 8 | AX138: =SUM(AU138:AW138) -> 8 | AY138: =SUM(C138+G138+K138+O138+S138+W138+AA138+AE138+AI138+AM138+AQ138+AU138) -> 80 | AZ138: =SUM(D138+H138+L138+P138+T138+X138+AB138+AF138+AJ138+AN138+AR138+AV138) -> 3 | BA138: =SUM(E138+I138+M138+Q138+U138+Y138+AC138+AG138+AK138+AO138+AS138+AW138) -> 1 | BB138: =SUM(AY138:BA138) -> 84
B139: SAN RAFAEL CEDROS | C139: 2 | F139: =SUM(C139:E139) -> 2 | J139: =SUM(G139:I139) -> 0 | N139: =SUM(K139:M139) -> 0 | O139: 1 | R139: =SUM(O139:Q139) -> 1 | V139: =SUM(S139:U139) -> 0 | Z139: =SUM(W139:Y139) -> 0 | AD139: =SUM(AA139:AC139) -> 0 | AH139: =SUM(AE139:AG139) -> 0 | AL139: =SUM(AI139:AK139) -> 0 | AP139: =SUM(AM139:AO139) -> 0 | AT139: =SUM(AQ139:AS139) -> 0 | AU139: 1 | AX139: =SUM(AU139:AW139) -> 1 | AY139: =SUM(C139+G139+K139+O139+S139+W139+AA139+AE139+AI139+AM139+AQ139+AU139) -> 4 | AZ139: =SUM(D139+H139+L139+P139+T139+X139+AB139+AF139+AJ139+AN139+AR139+AV139) -> 0 | BA139: =SUM(E139+I139+M139+Q139+U139+Y139+AC139+AG139+AK139+AO139+AS139+AW139) -> 0 | BB139: =SUM(AY139:BA139) -> 4
B140: SAN RAMON | F140: =SUM(C140:E140) -> 0 | J140: =SUM(G140:I140) -> 0 | K140: 1 | L140: 1 | N140: =SUM(K140:M140) -> 2 | R140: =SUM(O140:Q140) -> 0 | V140: =SUM(S140:U140) -> 0 | Z140: =SUM(W140:Y140) -> 0 | AA140: 1 | AD140: =SUM(AA140:AC140) -> 1 | AH140: =SUM(AE140:AG140) -> 0 | AL140: =SUM(AI140:AK140) -> 0 | AP140: =SUM(AM140:AO140) -> 0 | AQ140: 1 | AT140: =SUM(AQ140:AS140) -> 1 | AX140: =SUM(AU140:AW140) -> 0 | AY140: =SUM(C140+G140+K140+O140+S140+W140+AA140+AE140+AI140+AM140+AQ140+AU140) -> 3 | AZ140: =SUM(D140+H140+L140+P140+T140+X140+AB140+AF140+AJ140+AN140+AR140+AV140) -> 1 | BA140: =SUM(E140+I140+M140+Q140+U140+Y140+AC140+AG140+AK140+AO140+AS140+AW140) -> 0 | BB140: =SUM(AY140:BA140) -> 4
B141: SANTA CRUZ ANALQUITO | C141: 2 | F141: =SUM(C141:E141) -> 2 | J141: =SUM(G141:I141) -> 0 | N141: =SUM(K141:M141) -> 0 | R141: =SUM(O141:Q141) -> 0 | V141: =SUM(S141:U141) -> 0 | W141: 1 | Z141: =SUM(W141:Y141) -> 1 | AD141: =SUM(AA141:AC141) -> 0 | AH141: =SUM(AE141:AG141) -> 0 | AI141: 2 | AL141: =SUM(AI141:AK141) -> 2 | AP141: =SUM(AM141:AO141) -> 0 | AQ141: 3 | AT141: =SUM(AQ141:AS141) -> 3 | AX141: =SUM(AU141:AW141) -> 0 | AY141: =SUM(C141+G141+K141+O141+S141+W141+AA141+AE141+AI141+AM141+AQ141+AU141) -> 8 | AZ141: =SUM(D141+H141+L141+P141+T141+X141+AB141+AF141+AJ141+AN141+AR141+AV141) -> 0 | BA141: =SUM(E141+I141+M141+Q141+U141+Y141+AC141+AG141+AK141+AO141+AS141+AW141) -> 0 | BB141: =SUM(AY141:BA141) -> 8
B142: SANTA CRUZ MICHAPA | F142: =SUM(C142:E142) -> 0 | G142: 1 | J142: =SUM(G142:I142) -> 1 | K142: 3 | N142: =SUM(K142:M142) -> 3 | O142: 1 | R142: =SUM(O142:Q142) -> 1 | S142: 5 | V142: =SUM(S142:U142) -> 5 | W142: 3 | Z142: =SUM(W142:Y142) -> 3 | AA142: 5 | AD142: =SUM(AA142:AC142) -> 5 | AE142: 2 | AH142: =SUM(AE142:AG142) -> 2 | AJ142: 1 | AL142: =SUM(AI142:AK142) -> 1 | AM142: 3 | AN142: 1 | AP142: =SUM(AM142:AO142) -> 4 | AQ142: 2 | AT142: =SUM(AQ142:AS142) -> 2 | AU142: 1 | AX142: =SUM(AU142:AW142) -> 1 | AY142: =SUM(C142+G142+K142+O142+S142+W142+AA142+AE142+AI142+AM142+AQ142+AU142) -> 26 | AZ142: =SUM(D142+H142+L142+P142+T142+X142+AB142+AF142+AJ142+AN142+AR142+AV142) -> 2 | BA142: =SUM(E142+I142+M142+Q142+U142+Y142+AC142+AG142+AK142+AO142+AS142+AW142) -> 0 | BB142: =SUM(AY142:BA142) -> 28
B143: SUCHITOTO | C143: 5 | F143: =SUM(C143:E143) -> 5 | J143: =SUM(G143:I143) -> 0 | K143: 2 | L143: 1 | N143: =SUM(K143:M143) -> 3 | O143: 6 | P143: 1 | R143: =SUM(O143:Q143) -> 7 | S143: 1 | V143: =SUM(S143:U143) -> 1 | W143: 1 | Z143: =SUM(W143:Y143) -> 1 | AA143: 3 | AD143: =SUM(AA143:AC143) -> 3 | AE143: 2 | AH143: =SUM(AE143:AG143) -> 2 | AI143: 1 | AL143: =SUM(AI143:AK143) -> 1 | AP143: =SUM(AM143:AO143) -> 0 | AQ143: 1 | AT143: =SUM(AQ143:AS143) -> 1 | AU143: 5 | AX143: =SUM(AU143:AW143) -> 5 | AY143: =SUM(C143+G143+K143+O143+S143+W143+AA143+AE143+AI143+AM143+AQ143+AU143) -> 27 | AZ143: =SUM(D143+H143+L143+P143+T143+X143+AB143+AF143+AJ143+AN143+AR143+AV143) -> 2 | BA143: =SUM(E143+I143+M143+Q143+U143+Y143+AC143+AG143+AK143+AO143+AS143+AW143) -> 0 | BB143: =SUM(AY143:BA143) -> 29
B144: TENANCINGO | F144: =SUM(C144:E144) -> 0 | J144: =SUM(G144:I144) -> 0 | K144: 1 | N144: =SUM(K144:M144) -> 1 | R144: =SUM(O144:Q144) -> 0 | V144: =SUM(S144:U144) -> 0 | Z144: =SUM(W144:Y144) -> 0 | AA144: 1 | AD144: =SUM(AA144:AC144) -> 1 | AE144: 2 | AH144: =SUM(AE144:AG144) -> 2 | AL144: =SUM(AI144:AK144) -> 0 | AP144: =SUM(AM144:AO144) -> 0 | AT144: =SUM(AQ144:AS144) -> 0 | AU144: 2 | AX144: =SUM(AU144:AW144) -> 2 | AY144: =SUM(C144+G144+K144+O144+S144+W144+AA144+AE144+AI144+AM144+AQ144+AU144) -> 6 | AZ144: =SUM(D144+H144+L144+P144+T144+X144+AB144+AF144+AJ144+AN144+AR144+AV144) -> 0 | BA144: =SUM(E144+I144+M144+Q144+U144+Y144+AC144+AG144+AK144+AO144+AS144+AW144) -> 0 | BB144: =SUM(AY144:BA144) -> 6
A145: TOTAL | C145: =SUM(C129:C144) -> 22 | D145: =SUM(D129:D144) -> 1 | E145: =SUM(E129:E144) -> 0 | F145: =SUM(C145:E145) -> 23 | G145: =SUM(G129:G144) -> 15 | H145: =SUM(H129:H144) -> 1 | I145: =SUM(I129:I144) -> 0 | J145: =SUM(G145:I145) -> 16 | K145: =SUM(K129:K144) -> 24 | L145: =SUM(L129:L144) -> 2 | M145: =SUM(M129:M144) -> 0 | N145: =SUM(K145:M145) -> 26 | O145: =SUM(O129:O144) -> 23 | P145: =SUM(P129:P144) -> 1 | Q145: =SUM(Q129:Q144) -> 0 | R145: =SUM(O145:Q145) -> 24 | S145: =SUM(S129:S144) -> 22 | T145: =SUM(T129:T144) -> 2 | U145: =SUM(U129:U144) -> 0 | V145: =SUM(S145:U145) -> 24 | W145: =SUM(W129:W144) -> 24 | X145: =SUM(X129:X144) -> 4 | Y145: =SUM(Y129:Y144) -> 0 | Z145: =SUM(W145:Y145) -> 28 | AA145: =SUM(AA129:AA144) -> 26 | AB145: =SUM(AB129:AB144) -> 0 | AC145: =SUM(AC129:AC144) -> 0 | AD145: =SUM(AA145:AC145) -> 26 | AE145: =SUM(AE129:AE144) -> 20 | AF145: =SUM(AF129:AF144) -> 1 | AG145: =SUM(AG129:AG144) -> 0 | AH145: =SUM(AE145:AG145) -> 21 | AI145: =SUM(AI129:AI144) -> 11 | AJ145: =SUM(AJ129:AJ144) -> 1 | AK145: =SUM(AK129:AK144) -> 0 | AL145: =SUM(AI145:AK145) -> 12 | AM145: =SUM(AM129:AM144) -> 25 | AN145: =SUM(AN129:AN144) -> 2 | AO145: =SUM(AO129:AO144) -> 1 | AP145: =SUM(AM145:AO145) -> 28 | AQ145: =SUM(AQ129:AQ144) -> 25 | AR145: =SUM(AR129:AR144) -> 3 | AS145: =SUM(AS129:AS144) -> 0 | AT145: =SUM(AQ145:AS145) -> 28 | AU145: =SUM(AU129:AU144) -> 37 | AV145: =SUM(AV129:AV144) -> 0 | AW145: =SUM(AW129:AW144) -> 0 | AX145: =SUM(AU145:AW145) -> 37 | AY145: =SUM(AY129:AY144) -> 274 | AZ145: =SUM(AZ129:AZ144) -> 18 | BA145: =SUM(BA129:BA144) -> 1 | BB145: =SUM(AY145:BA145) -> 293
A147: SAN VICENTE | B147: APASTEPEQUE | F147: =SUM(C147:E147) -> 0 | G147: 1 | J147: =SUM(G147:I147) -> 1 | K147: 1 | N147: =SUM(K147:M147) -> 1 | O147: 1 | R147: =SUM(O147:Q147) -> 1 | V147: =SUM(S147:U147) -> 0 | Z147: =SUM(W147:Y147) -> 0 | AD147: =SUM(AA147:AC147) -> 0 | AE147: 4 | AH147: =SUM(AE147:AG147) -> 4 | AI147: 2 | AJ147: 1 | AL147: =SUM(AI147:AK147) -> 3 | AM147: 1 | AP147: =SUM(AM147:AO147) -> 1 | AT147: =SUM(AQ147:AS147) -> 0 | AX147: =SUM(AU147:AW147) -> 0 | AY147: =SUM(C147+G147+K147+O147+S147+W147+AA147+AE147+AI147+AM147+AQ147+AU147) -> 10 | AZ147: =SUM(D147+H147+L147+P147+T147+X147+AB147+AF147+AJ147+AN147+AR147+AV147) -> 1 | BA147: =SUM(E147+I147+M147+Q147+U147+Y147+AC147+AG147+AK147+AO147+AS147+AW147) -> 0 | BB147: =SUM(AY147:BA147) -> 11
B148: GUADALUPE | F148: =SUM(C148:E148) -> 0 | J148: =SUM(G148:I148) -> 0 | N148: =SUM(K148:M148) -> 0 | R148: =SUM(O148:Q148) -> 0 | V148: =SUM(S148:U148) -> 0 | W148: 1 | Z148: =SUM(W148:Y148) -> 1 | AD148: =SUM(AA148:AC148) -> 0 | AH148: =SUM(AE148:AG148) -> 0 | AL148: =SUM(AI148:AK148) -> 0 | AM148: 1 | AP148: =SUM(AM148:AO148) -> 1 | AT148: =SUM(AQ148:AS148) -> 0 | AX148: =SUM(AU148:AW148) -> 0 | AY148: =SUM(C148+G148+K148+O148+S148+W148+AA148+AE148+AI148+AM148+AQ148+AU148) -> 2 | AZ148: =SUM(D148+H148+L148+P148+T148+X148+AB148+AF148+AJ148+AN148+AR148+AV148) -> 0 | BA148: =SUM(E148+I148+M148+Q148+U148+Y148+AC148+AG148+AK148+AO148+AS148+AW148) -> 0 | BB148: =SUM(AY148:BA148) -> 2
B149: SAN CAYETANO ISTEPEQUE | F149: =SUM(C149:E149) -> 0 | J149: =SUM(G149:I149) -> 0 | N149: =SUM(K149:M149) -> 0 | R149: =SUM(O149:Q149) -> 0 | V149: =SUM(S149:U149) -> 0 | Z149: =SUM(W149:Y149) -> 0 | AD149: =SUM(AA149:AC149) -> 0 | AH149: =SUM(AE149:AG149) -> 0 | AL149: =SUM(AI149:AK149) -> 0 | AP149: =SUM(AM149:AO149) -> 0 | AQ149: 1 | AT149: =SUM(AQ149:AS149) -> 1 | AX149: =SUM(AU149:AW149) -> 0 | AY149: =SUM(C149+G149+K149+O149+S149+W149+AA149+AE149+AI149+AM149+AQ149+AU149) -> 1 | AZ149: =SUM(D149+H149+L149+P149+T149+X149+AB149+AF149+AJ149+AN149+AR149+AV149) -> 0 | BA149: =SUM(E149+I149+M149+Q149+U149+Y149+AC149+AG149+AK149+AO149+AS149+AW149) -> 0 | BB149: =SUM(AY149:BA149) -> 1
B150: SAN ESTEBAN CATARINA | F150: =SUM(C150:E150) -> 0 | J150: =SUM(G150:I150) -> 0 | N150: =SUM(K150:M150) -> 0 | R150: =SUM(O150:Q150) -> 0 | V150: =SUM(S150:U150) -> 0 | Z150: =SUM(W150:Y150) -> 0 | AD150: =SUM(AA150:AC150) -> 0 | AH150: =SUM(AE150:AG150) -> 0 | AL150: =SUM(AI150:AK150) -> 0 | AM150: 1 | AP150: =SUM(AM150:AO150) -> 1 | AT150: =SUM(AQ150:AS150) -> 0 | AU150: 2 | AX150: =SUM(AU150:AW150) -> 2 | AY150: =SUM(C150+G150+K150+O150+S150+W150+AA150+AE150+AI150+AM150+AQ150+AU150) -> 3 | AZ150: =SUM(D150+H150+L150+P150+T150+X150+AB150+AF150+AJ150+AN150+AR150+AV150) -> 0 | BA150: =SUM(E150+I150+M150+Q150+U150+Y150+AC150+AG150+AK150+AO150+AS150+AW150) -> 0 | BB150: =SUM(AY150:BA150) -> 3
B151: SAN ILDEFONSO | F151: =SUM(C151:E151) -> 0 | G151: 1 | J151: =SUM(G151:I151) -> 1 | N151: =SUM(K151:M151) -> 0 | R151: =SUM(O151:Q151) -> 0 | V151: =SUM(S151:U151) -> 0 | Z151: =SUM(W151:Y151) -> 0 | AD151: =SUM(AA151:AC151) -> 0 | AH151: =SUM(AE151:AG151) -> 0 | AL151: =SUM(AI151:AK151) -> 0 | AP151: =SUM(AM151:AO151) -> 0 | AT151: =SUM(AQ151:AS151) -> 0 | AX151: =SUM(AU151:AW151) -> 0 | AY151: =SUM(C151+G151+K151+O151+S151+W151+AA151+AE151+AI151+AM151+AQ151+AU151) -> 1 | AZ151: =SUM(D151+H151+L151+P151+T151+X151+AB151+AF151+AJ151+AN151+AR151+AV151) -> 0 | BA151: =SUM(E151+I151+M151+Q151+U151+Y151+AC151+AG151+AK151+AO151+AS151+AW151) -> 0 | BB151: =SUM(AY151:BA151) -> 1
B152: SAN LORENZO | F152: =SUM(C152:E152) -> 0 | J152: =SUM(G152:I152) -> 0 | N152: =SUM(K152:M152) -> 0 | R152: =SUM(O152:Q152) -> 0 | S152: 2 | V152: =SUM(S152:U152) -> 2 | Z152: =SUM(W152:Y152) -> 0 | AD152: =SUM(AA152:AC152) -> 0 | AH152: =SUM(AE152:AG152) -> 0 | AL152: =SUM(AI152:AK152) -> 0 | AP152: =SUM(AM152:AO152) -> 0 | AT152: =SUM(AQ152:AS152) -> 0 | AX152: =SUM(AU152:AW152) -> 0 | AY152: =SUM(C152+G152+K152+O152+S152+W152+AA152+AE152+AI152+AM152+AQ152+AU152) -> 2 | AZ152: =SUM(D152+H152+L152+P152+T152+X152+AB152+AF152+AJ152+AN152+AR152+AV152) -> 0 | BA152: =SUM(E152+I152+M152+Q152+U152+Y152+AC152+AG152+AK152+AO152+AS152+AW152) -> 0 | BB152: =SUM(AY152:BA152) -> 2
B153: SAN SEBASTIAN | F153: =SUM(C153:E153) -> 0 | J153: =SUM(G153:I153) -> 0 | K153: 1 | N153: =SUM(K153:M153) -> 1 | R153: =SUM(O153:Q153) -> 0 | V153: =SUM(S153:U153) -> 0 | Z153: =SUM(W153:Y153) -> 0 | AD153: =SUM(AA153:AC153) -> 0 | AH153: =SUM(AE153:AG153) -> 0 | AI153: 1 | AL153: =SUM(AI153:AK153) -> 1 | AP153: =SUM(AM153:AO153) -> 0 | AQ153: 1 | AT153: =SUM(AQ153:AS153) -> 1 | AX153: =SUM(AU153:AW153) -> 0 | AY153: =SUM(C153+G153+K153+O153+S153+W153+AA153+AE153+AI153+AM153+AQ153+AU153) -> 3 | AZ153: =SUM(D153+H153+L153+P153+T153+X153+AB153+AF153+AJ153+AN153+AR153+AV153) -> 0 | BA153: =SUM(E153+I153+M153+Q153+U153+Y153+AC153+AG153+AK153+AO153+AS153+AW153) -> 0 | BB153: =SUM(AY153:BA153) -> 3
B154: SAN VICENTE | F154: =SUM(C154:E154) -> 0 | G154: 3 | J154: =SUM(G154:I154) -> 3 | K154: 1 | N154: =SUM(K154:M154) -> 1 | R154: =SUM(O154:Q154) -> 0 | S154: 4 | V154: =SUM(S154:U154) -> 4 | W154: 1 | Z154: =SUM(W154:Y154) -> 1 | AA154: 1 | AD154: =SUM(AA154:AC154) -> 1 | AE154: 1 | AH154: =SUM(AE154:AG154) -> 1 | AI154: 2 | AL154: =SUM(AI154:AK154) -> 2 | AM154: 1 | AP154: =SUM(AM154:AO154) -> 1 | AQ154: 2 | AT154: =SUM(AQ154:AS154) -> 2 | AU154: 4 | AX154: =SUM(AU154:AW154) -> 4 | AY154: =SUM(C154+G154+K154+O154+S154+W154+AA154+AE154+AI154+AM154+AQ154+AU154) -> 20 | AZ154: =SUM(D154+H154+L154+P154+T154+X154+AB154+AF154+AJ154+AN154+AR154+AV154) -> 0 | BA154: =SUM(E154+I154+M154+Q154+U154+Y154+AC154+AG154+AK154+AO154+AS154+AW154) -> 0 | BB154: =SUM(AY154:BA154) -> 20
B155: SANTA CLARA | F155: =SUM(C155:E155) -> 0 | J155: =SUM(G155:I155) -> 0 | K155: 1 | N155: =SUM(K155:M155) -> 1 | R155: =SUM(O155:Q155) -> 0 | V155: =SUM(S155:U155) -> 0 | Z155: =SUM(W155:Y155) -> 0 | AD155: =SUM(AA155:AC155) -> 0 | AH155: =SUM(AE155:AG155) -> 0 | AL155: =SUM(AI155:AK155) -> 0 | AP155: =SUM(AM155:AO155) -> 0 | AR155: 1 | AT155: =SUM(AQ155:AS155) -> 1 | AX155: =SUM(AU155:AW155) -> 0 | AY155: =SUM(C155+G155+K155+O155+S155+W155+AA155+AE155+AI155+AM155+AQ155+AU155) -> 1 | AZ155: =SUM(D155+H155+L155+P155+T155+X155+AB155+AF155+AJ155+AN155+AR155+AV155) -> 1 | BA155: =SUM(E155+I155+M155+Q155+U155+Y155+AC155+AG155+AK155+AO155+AS155+AW155) -> 0 | BB155: =SUM(AY155:BA155) -> 2
B156: SANTO DOMINGO | F156: =SUM(C156:E156) -> 0 | J156: =SUM(G156:I156) -> 0 | N156: =SUM(K156:M156) -> 0 | R156: =SUM(O156:Q156) -> 0 | V156: =SUM(S156:U156) -> 0 | Z156: =SUM(W156:Y156) -> 0 | AD156: =SUM(AA156:AC156) -> 0 | AH156: =SUM(AE156:AG156) -> 0 | AL156: =SUM(AI156:AK156) -> 0 | AP156: =SUM(AM156:AO156) -> 0 | AT156: =SUM(AQ156:AS156) -> 0 | AX156: =SUM(AU156:AW156) -> 0 | AY156: =SUM(C156+G156+K156+O156+S156+W156+AA156+AE156+AI156+AM156+AQ156+AU156) -> 0 | AZ156: =SUM(D156+H156+L156+P156+T156+X156+AB156+AF156+AJ156+AN156+AR156+AV156) -> 0 | BA156: =SUM(E156+I156+M156+Q156+U156+Y156+AC156+AG156+AK156+AO156+AS156+AW156) -> 0 | BB156: =SUM(AY156:BA156) -> 0
B157: TECOLUCA | F157: =SUM(C157:E157) -> 0 | G157: 6 | J157: =SUM(G157:I157) -> 6 | K157: 3 | N157: =SUM(K157:M157) -> 3 | O157: 2 | R157: =SUM(O157:Q157) -> 2 | S157: 1 | V157: =SUM(S157:U157) -> 1 | W157: 1 | Z157: =SUM(W157:Y157) -> 1 | AA157: 3 | AB157: 1 | AD157: =SUM(AA157:AC157) -> 4 | AE157: 1 | AF157: 1 | AH157: =SUM(AE157:AG157) -> 2 | AI157: 3 | AJ157: 1 | AL157: =SUM(AI157:AK157) -> 4 | AM157: 4 | AP157: =SUM(AM157:AO157) -> 4 | AQ157: 4 | AT157: =SUM(AQ157:AS157) -> 4 | AU157: 3 | AX157: =SUM(AU157:AW157) -> 3 | AY157: =SUM(C157+G157+K157+O157+S157+W157+AA157+AE157+AI157+AM157+AQ157+AU157) -> 31 | AZ157: =SUM(D157+H157+L157+P157+T157+X157+AB157+AF157+AJ157+AN157+AR157+AV157) -> 3 | BA157: =SUM(E157+I157+M157+Q157+U157+Y157+AC157+AG157+AK157+AO157+AS157+AW157) -> 0 | BB157: =SUM(AY157:BA157) -> 34
B158: TEPETITAN | F158: =SUM(C158:E158) -> 0 | J158: =SUM(G158:I158) -> 0 | N158: =SUM(K158:M158) -> 0 | R158: =SUM(O158:Q158) -> 0 | V158: =SUM(S158:U158) -> 0 | Z158: =SUM(W158:Y158) -> 0 | AD158: =SUM(AA158:AC158) -> 0 | AH158: =SUM(AE158:AG158) -> 0 | AL158: =SUM(AI158:AK158) -> 0 | AM158: 1 | AP158: =SUM(AM158:AO158) -> 1 | AQ158: 1 | AT158: =SUM(AQ158:AS158) -> 1 | AX158: =SUM(AU158:AW158) -> 0 | AY158: =SUM(C158+G158+K158+O158+S158+W158+AA158+AE158+AI158+AM158+AQ158+AU158) -> 2 | AZ158: =SUM(D158+H158+L158+P158+T158+X158+AB158+AF158+AJ158+AN158+AR158+AV158) -> 0 | BA158: =SUM(E158+I158+M158+Q158+U158+Y158+AC158+AG158+AK158+AO158+AS158+AW158) -> 0 | BB158: =SUM(AY158:BA158) -> 2
B159: VERAPAZ | F159: =SUM(C159:E159) -> 0 | J159: =SUM(G159:I159) -> 0 | N159: =SUM(K159:M159) -> 0 | R159: =SUM(O159:Q159) -> 0 | V159: =SUM(S159:U159) -> 0 | W159: 1 | Z159: =SUM(W159:Y159) -> 1 | AD159: =SUM(AA159:AC159) -> 0 | AH159: =SUM(AE159:AG159) -> 0 | AL159: =SUM(AI159:AK159) -> 0 | AP159: =SUM(AM159:AO159) -> 0 | AT159: =SUM(AQ159:AS159) -> 0 | AX159: =SUM(AU159:AW159) -> 0 | AY159: =SUM(C159+G159+K159+O159+S159+W159+AA159+AE159+AI159+AM159+AQ159+AU159) -> 1 | AZ159: =SUM(D159+H159+L159+P159+T159+X159+AB159+AF159+AJ159+AN159+AR159+AV159) -> 0 | BA159: =SUM(E159+I159+M159+Q159+U159+Y159+AC159+AG159+AK159+AO159+AS159+AW159) -> 0 | BB159: =SUM(AY159:BA159) -> 1
A160: TOTAL | C160: =SUM(C147:C159) -> 0 | D160: =SUM(D147:D159) -> 0 | E160: =SUM(E147:E159) -> 0 | F160: =SUM(F147:F159) -> 0 | G160: =SUM(G147:G159) -> 11 | H160: =SUM(H147:H159) -> 0 | I160: =SUM(I147:I159) -> 0 | J160: =SUM(G160:I160) -> 11 | K160: =SUM(K147:K159) -> 7 | L160: =SUM(L147:L159) -> 0 | M160: =SUM(M147:M159) -> 0 | N160: =SUM(K160:M160) -> 7 | O160: =SUM(O147:O159) -> 3 | P160: =SUM(P147:P159) -> 0 | Q160: =SUM(Q147:Q159) -> 0 | R160: =SUM(O160:Q160) -> 3 | S160: =SUM(S147:S159) -> 7 | T160: =SUM(T147:T159) -> 0 | U160: =SUM(U147:U159) -> 0 | V160: =SUM(S160:U160) -> 7 | W160: =SUM(W147:W159) -> 4 | X160: =SUM(X147:X159) -> 0 | Y160: =SUM(Y147:Y159) -> 0 | Z160: =SUM(W160:Y160) -> 4 | AA160: =SUM(AA147:AA159) -> 4 | AB160: =SUM(AB147:AB159) -> 1 | AC160: =SUM(AC147:AC159) -> 0 | AD160: =SUM(AA160:AC160) -> 5 | AE160: =SUM(AE147:AE159) -> 6 | AF160: =SUM(AF147:AF159) -> 1 | AG160: =SUM(AG147:AG159) -> 0 | AH160: =SUM(AE160:AG160) -> 7 | AI160: =SUM(AI147:AI159) -> 8 | AJ160: =SUM(AJ147:AJ159) -> 2 | AK160: =SUM(AK147:AK159) -> 0 | AL160: =SUM(AI160:AK160) -> 10 | AM160: =SUM(AM147:AM159) -> 9 | AN160: =SUM(AN147:AN159) -> 0 | AO160: =SUM(AO147:AO159) -> 0 | AP160: =SUM(AM160:AO160) -> 9 | AQ160: =SUM(AQ147:AQ159) -> 9 | AR160: =SUM(AR147:AR159) -> 1 | AS160: =SUM(AS147:AS159) -> 0 | AT160: =SUM(AQ160:AS160) -> 10 | AU160: =SUM(AU147:AU159) -> 9 | AV160: =SUM(AV147:AV159) -> 0 | AW160: =SUM(AW147:AW159) -> 0 | AX160: =SUM(AU160:AW160) -> 9 | AY160: =SUM(AY147:AY159) -> 77 | AZ160: =SUM(AZ147:AZ159) -> 5 | BA160: =SUM(BA147:BA159) -> 0 | BB160: =SUM(AY160:BA160) -> 82
A162: LA PAZ | B162: CUYULTITAN | F162: =SUM(C162:E162) -> 0 | J162: =SUM(G162:I162) -> 0 | N162: =SUM(K162:M162) -> 0 | R162: =SUM(O162:Q162) -> 0 | T162: 1 | V162: =SUM(S162:U162) -> 1 | Z162: =SUM(W162:Y162) -> 0 | AA162: 1 | AD162: =SUM(AA162:AC162) -> 1 | AH162: =SUM(AE162:AG162) -> 0 | AI162: 1 | AL162: =SUM(AI162:AK162) -> 1 | AM162: 1 | AP162: =SUM(AM162:AO162) -> 1 | AT162: =SUM(AQ162:AS162) -> 0 | AX162: =SUM(AU162:AW162) -> 0 | AY162: =SUM(C162+G162+K162+O162+S162+W162+AA162+AE162+AI162+AM162+AQ162+AU162) -> 3 | AZ162: =SUM(D162+H162+L162+P162+T162+X162+AB162+AF162+AJ162+AN162+AR162+AV162) -> 1 | BA162: =SUM(E162+I162+M162+Q162+U162+Y162+AC162+AG162+AK162+AO162+AS162+AW162) -> 0 | BB162: =SUM(AY162:BA162) -> 4
B163: EL ROSARIO | F163: =SUM(C163:E163) -> 0 | J163: =SUM(G163:I163) -> 0 | K163: 1 | N163: =SUM(K163:M163) -> 1 | R163: =SUM(O163:Q163) -> 0 | S163: 2 | V163: =SUM(S163:U163) -> 2 | Z163: =SUM(W163:Y163) -> 0 | AA163: 1 | AD163: =SUM(AA163:AC163) -> 1 | AH163: =SUM(AE163:AG163) -> 0 | AL163: =SUM(AI163:AK163) -> 0 | AM163: 1 | AP163: =SUM(AM163:AO163) -> 1 | AQ163: 1 | AT163: =SUM(AQ163:AS163) -> 1 | AU163: 1 | AX163: =SUM(AU163:AW163) -> 1 | AY163: =SUM(C163+G163+K163+O163+S163+W163+AA163+AE163+AI163+AM163+AQ163+AU163) -> 7 | AZ163: =SUM(D163+H163+L163+P163+T163+X163+AB163+AF163+AJ163+AN163+AR163+AV163) -> 0 | BA163: =SUM(E163+I163+M163+Q163+U163+Y163+AC163+AG163+AK163+AO163+AS163+AW163) -> 0 | BB163: =SUM(AY163:BA163) -> 7
B164: JERUSALEN | F164: =SUM(C164:E164) -> 0 | J164: =SUM(G164:I164) -> 0 | N164: =SUM(K164:M164) -> 0 | R164: =SUM(O164:Q164) -> 0 | V164: =SUM(S164:U164) -> 0 | W164: 1 | Z164: =SUM(W164:Y164) -> 1 | AD164: =SUM(AA164:AC164) -> 0 | AH164: =SUM(AE164:AG164) -> 0 | AL164: =SUM(AI164:AK164) -> 0 | AP164: =SUM(AM164:AO164) -> 0 | AT164: =SUM(AQ164:AS164) -> 0 | AX164: =SUM(AU164:AW164) -> 0 | AY164: =SUM(C164+G164+K164+O164+S164+W164+AA164+AE164+AI164+AM164+AQ164+AU164) -> 1 | AZ164: =SUM(D164+H164+L164+P164+T164+X164+AB164+AF164+AJ164+AN164+AR164+AV164) -> 0 | BA164: =SUM(E164+I164+M164+Q164+U164+Y164+AC164+AG164+AK164+AO164+AS164+AW164) -> 0 | BB164: =SUM(AY164:BA164) -> 1
B165: MERCEDES LA CEIBA | F165: =SUM(C165:E165) -> 0 | J165: =SUM(G165:I165) -> 0 | N165: =SUM(K165:M165) -> 0 | R165: =SUM(O165:Q165) -> 0 | V165: =SUM(S165:U165) -> 0 | Z165: =SUM(W165:Y165) -> 0 | AD165: =SUM(AA165:AC165) -> 0 | AH165: =SUM(AE165:AG165) -> 0 | AL165: =SUM(AI165:AK165) -> 0 | AP165: =SUM(AM165:AO165) -> 0 | AT165: =SUM(AQ165:AS165) -> 0 | AU165: 1 | AX165: =SUM(AU165:AW165) -> 1 | AY165: =SUM(C165+G165+K165+O165+S165+W165+AA165+AE165+AI165+AM165+AQ165+AU165) -> 1 | AZ165: =SUM(D165+H165+L165+P165+T165+X165+AB165+AF165+AJ165+AN165+AR165+AV165) -> 0 | BA165: =SUM(E165+I165+M165+Q165+U165+Y165+AC165+AG165+AK165+AO165+AS165+AW165) -> 0 | BB165: =SUM(AY165:BA165) -> 1
B166: OLOCUILTA | F166: =SUM(C166:E166) -> 0 | J166: =SUM(G166:I166) -> 0 | K166: 3 | N166: =SUM(K166:M166) -> 3 | O166: 1 | R166: =SUM(O166:Q166) -> 1 | T166: 1 | V166: =SUM(S166:U166) -> 1 | W166: 3 | Z166: =SUM(W166:Y166) -> 3 | AA166: 1 | AD166: =SUM(AA166:AC166) -> 1 | AE166: 1 | AH166: =SUM(AE166:AG166) -> 1 | AI166: 2 | AL166: =SUM(AI166:AK166) -> 2 | AM166: 1 | AP166: =SUM(AM166:AO166) -> 1 | AQ166: 1 | AR166: 1 | AT166: =SUM(AQ166:AS166) -> 2 | AU166: 2 | AX166: =SUM(AU166:AW166) -> 2 | AY166: =SUM(C166+G166+K166+O166+S166+W166+AA166+AE166+AI166+AM166+AQ166+AU166) -> 15 | AZ166: =SUM(D166+H166+L166+P166+T166+X166+AB166+AF166+AJ166+AN166+AR166+AV166) -> 2 | BA166: =SUM(E166+I166+M166+Q166+U166+Y166+AC166+AG166+AK166+AO166+AS166+AW166) -> 0 | BB166: =SUM(AY166:BA166) -> 17
B167: PARAISO DE OSORIO | F167: =SUM(C167:E167) -> 0 | J167: =SUM(G167:I167) -> 0 | N167: =SUM(K167:M167) -> 0 | R167: =SUM(O167:Q167) -> 0 | V167: =SUM(S167:U167) -> 0 | Z167: =SUM(W167:Y167) -> 0 | AD167: =SUM(AA167:AC167) -> 0 | AE167: 1 | AH167: =SUM(AE167:AG167) -> 1 | AL167: =SUM(AI167:AK167) -> 0 | AP167: =SUM(AM167:AO167) -> 0 | AT167: =SUM(AQ167:AS167) -> 0 | AU167: 1 | AX167: =SUM(AU167:AW167) -> 1 | AY167: =SUM(C167+G167+K167+O167+S167+W167+AA167+AE167+AI167+AM167+AQ167+AU167) -> 2 | AZ167: =SUM(D167+H167+L167+P167+T167+X167+AB167+AF167+AJ167+AN167+AR167+AV167) -> 0 | BA167: =SUM(E167+I167+M167+Q167+U167+Y167+AC167+AG167+AK167+AO167+AS167+AW167) -> 0 | BB167: =SUM(AY167:BA167) -> 2
B168: SAN ANTONIO MASAHUAT | F168: =SUM(C168:E168) -> 0 | J168: =SUM(G168:I168) -> 0 | N168: =SUM(K168:M168) -> 0 | R168: =SUM(O168:Q168) -> 0 | V168: =SUM(S168:U168) -> 0 | Z168: =SUM(W168:Y168) -> 0 | AD168: =SUM(AA168:AC168) -> 0 | AE168: 1 | AH168: =SUM(AE168:AG168) -> 1 | AL168: =SUM(AI168:AK168) -> 0 | AP168: =SUM(AM168:AO168) -> 0 | AT168: =SUM(AQ168:AS168) -> 0 | AX168: =SUM(AU168:AW168) -> 0 | AY168: =SUM(C168+G168+K168+O168+S168+W168+AA168+AE168+AI168+AM168+AQ168+AU168) -> 1 | AZ168: =SUM(D168+H168+L168+P168+T168+X168+AB168+AF168+AJ168+AN168+AR168+AV168) -> 0 | BA168: =SUM(E168+I168+M168+Q168+U168+Y168+AC168+AG168+AK168+AO168+AS168+AW168) -> 0 | BB168: =SUM(AY168:BA168) -> 1
B169: SAN EMIGDIO | F169: =SUM(C169:E169) -> 0 | J169: =SUM(G169:I169) -> 0 | N169: =SUM(K169:M169) -> 0 | R169: =SUM(O169:Q169) -> 0 | V169: =SUM(S169:U169) -> 0 | Z169: =SUM(W169:Y169) -> 0 | AA169: 1 | AD169: =SUM(AA169:AC169) -> 1 | AH169: =SUM(AE169:AG169) -> 0 | AL169: =SUM(AI169:AK169) -> 0 | AM169: 1 | AP169: =SUM(AM169:AO169) -> 1 | AT169: =SUM(AQ169:AS169) -> 0 | AX169: =SUM(AU169:AW169) -> 0 | AY169: =SUM(C169+G169+K169+O169+S169+W169+AA169+AE169+AI169+AM169+AQ169+AU169) -> 2 | AZ169: =SUM(D169+H169+L169+P169+T169+X169+AB169+AF169+AJ169+AN169+AR169+AV169) -> 0 | BA169: =SUM(E169+I169+M169+Q169+U169+Y169+AC169+AG169+AK169+AO169+AS169+AW169) -> 0 | BB169: =SUM(AY169:BA169) -> 2
B170: SAN FRANCISCO CHINAMECA | C170: 2 | F170: =SUM(C170:E170) -> 2 | H170: 2 | J170: =SUM(G170:I170) -> 2 | N170: =SUM(K170:M170) -> 0 | R170: =SUM(O170:Q170) -> 0 | V170: =SUM(S170:U170) -> 0 | W170: 2 | Z170: =SUM(W170:Y170) -> 2 | AD170: =SUM(AA170:AC170) -> 0 | AH170: =SUM(AE170:AG170) -> 0 | AL170: =SUM(AI170:AK170) -> 0 | AP170: =SUM(AM170:AO170) -> 0 | AT170: =SUM(AQ170:AS170) -> 0 | AX170: =SUM(AU170:AW170) -> 0 | AY170: =SUM(C170+G170+K170+O170+S170+W170+AA170+AE170+AI170+AM170+AQ170+AU170) -> 4 | AZ170: =SUM(D170+H170+L170+P170+T170+X170+AB170+AF170+AJ170+AN170+AR170+AV170) -> 2 | BA170: =SUM(E170+I170+M170+Q170+U170+Y170+AC170+AG170+AK170+AO170+AS170+AW170) -> 0 | BB170: =SUM(AY170:BA170) -> 6
B171: SAN JUAN NONUALCO | C171: 3 | D171: 1 | F171: =SUM(C171:E171) -> 4 | G171: 1 | J171: =SUM(G171:I171) -> 1 | K171: 1 | N171: =SUM(K171:M171) -> 1 | R171: =SUM(O171:Q171) -> 0 | S171: 1 | V171: =SUM(S171:U171) -> 1 | W171: 3 | Z171: =SUM(W171:Y171) -> 3 | AD171: =SUM(AA171:AC171) -> 0 | AE171: 2 | AH171: =SUM(AE171:AG171) -> 2 | AI171: 1 | AL171: =SUM(AI171:AK171) -> 1 | AM171: 5 | AP171: =SUM(AM171:AO171) -> 5 | AQ171: 2 | AT171: =SUM(AQ171:AS171) -> 2 | AU171: 1 | AX171: =SUM(AU171:AW171) -> 1 | AY171: =SUM(C171+G171+K171+O171+S171+W171+AA171+AE171+AI171+AM171+AQ171+AU171) -> 20 | AZ171: =SUM(D171+H171+L171+P171+T171+X171+AB171+AF171+AJ171+AN171+AR171+AV171) -> 1 | BA171: =SUM(E171+I171+M171+Q171+U171+Y171+AC171+AG171+AK171+AO171+AS171+AW171) -> 0 | BB171: =SUM(AY171:BA171) -> 21
B172: SAN JUAN TALPA | F172: =SUM(C172:E172) -> 0 | G172: 1 | J172: =SUM(G172:I172) -> 1 | N172: =SUM(K172:M172) -> 0 | R172: =SUM(O172:Q172) -> 0 | V172: =SUM(S172:U172) -> 0 | Z172: =SUM(W172:Y172) -> 0 | AD172: =SUM(AA172:AC172) -> 0 | AE172: 1 | AH172: =SUM(AE172:AG172) -> 1 | AL172: =SUM(AI172:AK172) -> 0 | AM172: 1 | AP172: =SUM(AM172:AO172) -> 1 | AT172: =SUM(AQ172:AS172) -> 0 | AX172: =SUM(AU172:AW172) -> 0 | AY172: =SUM(C172+G172+K172+O172+S172+W172+AA172+AE172+AI172+AM172+AQ172+AU172) -> 3 | AZ172: =SUM(D172+H172+L172+P172+T172+X172+AB172+AF172+AJ172+AN172+AR172+AV172) -> 0 | BA172: =SUM(E172+I172+M172+Q172+U172+Y172+AC172+AG172+AK172+AO172+AS172+AW172) -> 0 | BB172: =SUM(AY172:BA172) -> 3
B173: SAN JUAN TEPEZONTES | F173: =SUM(C173:E173) -> 0 | J173: =SUM(G173:I173) -> 0 | N173: =SUM(K173:M173) -> 0 | R173: =SUM(O173:Q173) -> 0 | V173: =SUM(S173:U173) -> 0 | Z173: =SUM(W173:Y173) -> 0 | AD173: =SUM(AA173:AC173) -> 0 | AH173: =SUM(AE173:AG173) -> 0 | AL173: =SUM(AI173:AK173) -> 0 | AM173: 1 | AP173: =SUM(AM173:AO173) -> 1 | AT173: =SUM(AQ173:AS173) -> 0 | AX173: =SUM(AU173:AW173) -> 0 | AY173: =SUM(C173+G173+K173+O173+S173+W173+AA173+AE173+AI173+AM173+AQ173+AU173) -> 1 | AZ173: =SUM(D173+H173+L173+P173+T173+X173+AB173+AF173+AJ173+AN173+AR173+AV173) -> 0 | BA173: =SUM(E173+I173+M173+Q173+U173+Y173+AC173+AG173+AK173+AO173+AS173+AW173) -> 0 | BB173: =SUM(AY173:BA173) -> 1
B174: SAN LUIS TALPA | C174: 2 | F174: =SUM(C174:E174) -> 2 | G174: 3 | J174: =SUM(G174:I174) -> 3 | K174: 1 | N174: =SUM(K174:M174) -> 1 | P174: 1 | R174: =SUM(O174:Q174) -> 1 | S174: 5 | T174: 1 | V174: =SUM(S174:U174) -> 6 | W174: 1 | Z174: =SUM(W174:Y174) -> 1 | AA174: 2 | AD174: =SUM(AA174:AC174) -> 2 | AE174: 1 | AH174: =SUM(AE174:AG174) -> 1 | AI174: 2 | AL174: =SUM(AI174:AK174) -> 2 | AM174: 1 | AP174: =SUM(AM174:AO174) -> 1 | AQ174: 1 | AT174: =SUM(AQ174:AS174) -> 1 | AU174: 2 | AX174: =SUM(AU174:AW174) -> 2 | AY174: =SUM(C174+G174+K174+O174+S174+W174+AA174+AE174+AI174+AM174+AQ174+AU174) -> 21 | AZ174: =SUM(D174+H174+L174+P174+T174+X174+AB174+AF174+AJ174+AN174+AR174+AV174) -> 2 | BA174: =SUM(E174+I174+M174+Q174+U174+Y174+AC174+AG174+AK174+AO174+AS174+AW174) -> 0 | BB174: =SUM(AY174:BA174) -> 23
B175: SAN LUIS LA HERRADURA | F175: =SUM(C175:E175) -> 0 | G175: 1 | J175: =SUM(G175:I175) -> 1 | N175: =SUM(K175:M175) -> 0 | O175: 1 | R175: =SUM(O175:Q175) -> 1 | S175: 1 | V175: =SUM(S175:U175) -> 1 | W175: 2 | Z175: =SUM(W175:Y175) -> 2 | AA175: 3 | AD175: =SUM(AA175:AC175) -> 3 | AE175: 1 | AH175: =SUM(AE175:AG175) -> 1 | AI175: 1 | AL175: =SUM(AI175:AK175) -> 1 | AM175: 1 | AP175: =SUM(AM175:AO175) -> 1 | AQ175: 2 | AT175: =SUM(AQ175:AS175) -> 2 | AU175: 6 | AX175: =SUM(AU175:AW175) -> 6 | AY175: =SUM(C175+G175+K175+O175+S175+W175+AA175+AE175+AI175+AM175+AQ175+AU175) -> 19 | AZ175: =SUM(D175+H175+L175+P175+T175+X175+AB175+AF175+AJ175+AN175+AR175+AV175) -> 0 | BA175: =SUM(E175+I175+M175+Q175+U175+Y175+AC175+AG175+AK175+AO175+AS175+AW175) -> 0 | BB175: =SUM(AY175:BA175) -> 19
B176: SAN MIGUEL TEPEZONTES | C176: 1 | F176: =SUM(C176:E176) -> 1 | J176: =SUM(G176:I176) -> 0 | N176: =SUM(K176:M176) -> 0 | R176: =SUM(O176:Q176) -> 0 | V176: =SUM(S176:U176) -> 0 | W176: 1 | Z176: =SUM(W176:Y176) -> 1 | AD176: =SUM(AA176:AC176) -> 0 | AH176: =SUM(AE176:AG176) -> 0 | AL176: =SUM(AI176:AK176) -> 0 | AP176: =SUM(AM176:AO176) -> 0 | AT176: =SUM(AQ176:AS176) -> 0 | AX176: =SUM(AU176:AW176) -> 0 | AY176: =SUM(C176+G176+K176+O176+S176+W176+AA176+AE176+AI176+AM176+AQ176+AU176) -> 2 | AZ176: =SUM(D176+H176+L176+P176+T176+X176+AB176+AF176+AJ176+AN176+AR176+AV176) -> 0 | BA176: =SUM(E176+I176+M176+Q176+U176+Y176+AC176+AG176+AK176+AO176+AS176+AW176) -> 0 | BB176: =SUM(AY176:BA176) -> 2
B177: SAN PEDRO MASAHUAT | C177: 2 | F177: =SUM(C177:E177) -> 2 | J177: =SUM(G177:I177) -> 0 | K177: 1 | N177: =SUM(K177:M177) -> 1 | O177: 2 | R177: =SUM(O177:Q177) -> 2 | S177: 1 | V177: =SUM(S177:U177) -> 1 | W177: 2 | Z177: =SUM(W177:Y177) -> 2 | AD177: =SUM(AA177:AC177) -> 0 | AH177: =SUM(AE177:AG177) -> 0 | AI177: 2 | AL177: =SUM(AI177:AK177) -> 2 | AM177: 1 | AP177: =SUM(AM177:AO177) -> 1 | AQ177: 1 | AR177: 1 | AT177: =SUM(AQ177:AS177) -> 2 | AU177: 1 | AX177: =SUM(AU177:AW177) -> 1 | AY177: =SUM(C177+G177+K177+O177+S177+W177+AA177+AE177+AI177+AM177+AQ177+AU177) -> 13 | AZ177: =SUM(D177+H177+L177+P177+T177+X177+AB177+AF177+AJ177+AN177+AR177+AV177) -> 1 | BA177: =SUM(E177+I177+M177+Q177+U177+Y177+AC177+AG177+AK177+AO177+AS177+AW177) -> 0 | BB177: =SUM(AY177:BA177) -> 14
B178: SAN PEDRO NONUALCO | C178: 1 | F178: =SUM(C178:E178) -> 1 | J178: =SUM(G178:I178) -> 0 | N178: =SUM(K178:M178) -> 0 | R178: =SUM(O178:Q178) -> 0 | S178: 1 | V178: =SUM(S178:U178) -> 1 | W178: 2 | Z178: =SUM(W178:Y178) -> 2 | AD178: =SUM(AA178:AC178) -> 0 | AH178: =SUM(AE178:AG178) -> 0 | AI178: 1 | AL178: =SUM(AI178:AK178) -> 1 | AP178: =SUM(AM178:AO178) -> 0 | AT178: =SUM(AQ178:AS178) -> 0 | AX178: =SUM(AU178:AW178) -> 0 | AY178: =SUM(C178+G178+K178+O178+S178+W178+AA178+AE178+AI178+AM178+AQ178+AU178) -> 5 | AZ178: =SUM(D178+H178+L178+P178+T178+X178+AB178+AF178+AJ178+AN178+AR178+AV178) -> 0 | BA178: =SUM(E178+I178+M178+Q178+U178+Y178+AC178+AG178+AK178+AO178+AS178+AW178) -> 0 | BB178: =SUM(AY178:BA178) -> 5
B179: SAN RAFAEL OBRAJUELO | F179: =SUM(C179:E179) -> 0 | J179: =SUM(G179:I179) -> 0 | K179: 1 | N179: =SUM(K179:M179) -> 1 | O179: 1 | R179: =SUM(O179:Q179) -> 1 | S179: 1 | V179: =SUM(S179:U179) -> 1 | W179: 1 | Z179: =SUM(W179:Y179) -> 1 | AA179: 2 | AD179: =SUM(AA179:AC179) -> 2 | AE179: 1 | AH179: =SUM(AE179:AG179) -> 1 | AI179: 2 | AL179: =SUM(AI179:AK179) -> 2 | AM179: 1 | AP179: =SUM(AM179:AO179) -> 1 | AT179: =SUM(AQ179:AS179) -> 0 | AU179: 1 | AX179: =SUM(AU179:AW179) -> 1 | AY179: =SUM(C179+G179+K179+O179+S179+W179+AA179+AE179+AI179+AM179+AQ179+AU179) -> 11 | AZ179: =SUM(D179+H179+L179+P179+T179+X179+AB179+AF179+AJ179+AN179+AR179+AV179) -> 0 | BA179: =SUM(E179+I179+M179+Q179+U179+Y179+AC179+AG179+AK179+AO179+AS179+AW179) -> 0 | BB179: =SUM(AY179:BA179) -> 11
B180: SANTA MARIA OSTUMA | F180: =SUM(C180:E180) -> 0 | J180: =SUM(G180:I180) -> 0 | N180: =SUM(K180:M180) -> 0 | R180: =SUM(O180:Q180) -> 0 | V180: =SUM(S180:U180) -> 0 | W180: 3 | X180: 1 | Z180: =SUM(W180:Y180) -> 4 | AD180: =SUM(AA180:AC180) -> 0 | AE180: 2 | AH180: =SUM(AE180:AG180) -> 2 | AI180: 2 | AL180: =SUM(AI180:AK180) -> 2 | AP180: =SUM(AM180:AO180) -> 0 | AQ180: 1 | AT180: =SUM(AQ180:AS180) -> 1 | AX180: =SUM(AU180:AW180) -> 0 | AY180: =SUM(C180+G180+K180+O180+S180+W180+AA180+AE180+AI180+AM180+AQ180+AU180) -> 8 | AZ180: =SUM(D180+H180+L180+P180+T180+X180+AB180+AF180+AJ180+AN180+AR180+AV180) -> 1 | BA180: =SUM(E180+I180+M180+Q180+U180+Y180+AC180+AG180+AK180+AO180+AS180+AW180) -> 0 | BB180: =SUM(AY180:BA180) -> 9
B181: SANTIAGO NONUALCO | C181: 1 | F181: =SUM(C181:E181) -> 1 | G181: 3 | J181: =SUM(G181:I181) -> 3 | K181: 4 | N181: =SUM(K181:M181) -> 4 | O181: 1 | R181: =SUM(O181:Q181) -> 1 | S181: 7 | V181: =SUM(S181:U181) -> 7 | W181: 4 | Z181: =SUM(W181:Y181) -> 4 | AA181: 4 | AD181: =SUM(AA181:AC181) -> 4 | AE181: 7 | AH181: =SUM(AE181:AG181) -> 7 | AI181: 3 | AL181: =SUM(AI181:AK181) -> 3 | AM181: 2 | AP181: =SUM(AM181:AO181) -> 2 | AQ181: 2 | AT181: =SUM(AQ181:AS181) -> 2 | AU181: 9 | AX181: =SUM(AU181:AW181) -> 9 | AY181: =SUM(C181+G181+K181+O181+S181+W181+AA181+AE181+AI181+AM181+AQ181+AU181) -> 47 | AZ181: =SUM(D181+H181+L181+P181+T181+X181+AB181+AF181+AJ181+AN181+AR181+AV181) -> 0 | BA181: =SUM(E181+I181+M181+Q181+U181+Y181+AC181+AG181+AK181+AO181+AS181+AW181) -> 0 | BB181: =SUM(AY181:BA181) -> 47
B182: TAPALHUACA | F182: =SUM(C182:E182) -> 0 | J182: =SUM(G182:I182) -> 0 | N182: =SUM(K182:M182) -> 0 | O182: 2 | R182: =SUM(O182:Q182) -> 2 | V182: =SUM(S182:U182) -> 0 | Z182: =SUM(W182:Y182) -> 0 | AD182: =SUM(AA182:AC182) -> 0 | AH182: =SUM(AE182:AG182) -> 0 | AL182: =SUM(AI182:AK182) -> 0 | AP182: =SUM(AM182:AO182) -> 0 | AT182: =SUM(AQ182:AS182) -> 0 | AX182: =SUM(AU182:AW182) -> 0 | AY182: =SUM(C182+G182+K182+O182+S182+W182+AA182+AE182+AI182+AM182+AQ182+AU182) -> 2 | AZ182: =SUM(D182+H182+L182+P182+T182+X182+AB182+AF182+AJ182+AN182+AR182+AV182) -> 0 | BA182: =SUM(E182+I182+M182+Q182+U182+Y182+AC182+AG182+AK182+AO182+AS182+AW182) -> 0 | BB182: =SUM(AY182:BA182) -> 2
B183: ZACATECOLUCA | C183: 2 | F183: =SUM(C183:E183) -> 2 | G183: 3 | H183: 1 | J183: =SUM(G183:I183) -> 4 | K183: 12 | N183: =SUM(K183:M183) -> 12 | O183: 20 | R183: =SUM(O183:Q183) -> 20 | S183: 12 | V183: =SUM(S183:U183) -> 12 | W183: 2 | Z183: =SUM(W183:Y183) -> 2 | AA183: 9 | AB183: 1 | AD183: =SUM(AA183:AC183) -> 10 | AE183: 8 | AH183: =SUM(AE183:AG183) -> 8 | AI183: 8 | AJ183: 1 | AL183: =SUM(AI183:AK183) -> 9 | AM183: 1 | AN183: 1 | AP183: =SUM(AM183:AO183) -> 2 | AQ183: 7 | AR183: 1 | AT183: =SUM(AQ183:AS183) -> 8 | AU183: 8 | AX183: =SUM(AU183:AW183) -> 8 | AY183: =SUM(C183+G183+K183+O183+S183+W183+AA183+AE183+AI183+AM183+AQ183+AU183) -> 92 | AZ183: =SUM(D183+H183+L183+P183+T183+X183+AB183+AF183+AJ183+AN183+AR183+AV183) -> 5 | BA183: =SUM(E183+I183+M183+Q183+U183+Y183+AC183+AG183+AK183+AO183+AS183+AW183) -> 0 | BB183: =SUM(AY183:BA183) -> 97
A184: TOTAL | C184: =SUM(C162:C183) -> 14 | D184: =SUM(D162:D183) -> 1 | E184: =SUM(E162:E183) -> 0 | F184: =SUM(C184:E184) -> 15 | G184: =SUM(G162:G183) -> 12 | H184: =SUM(H162:H183) -> 3 | I184: =SUM(I162:I183) -> 0 | J184: =SUM(G184:I184) -> 15 | K184: =SUM(K162:K183) -> 24 | L184: =SUM(L162:L183) -> 0 | M184: =SUM(M162:M183) -> 0 | N184: =SUM(K184:M184) -> 24 | O184: =SUM(O162:O183) -> 28 | P184: =SUM(P162:P183) -> 1 | Q184: =SUM(Q162:Q183) -> 0 | R184: =SUM(O184:Q184) -> 29 | S184: =SUM(S162:S183) -> 31 | T184: =SUM(T162:T183) -> 3 | U184: =SUM(U162:U183) -> 0 | V184: =SUM(S184:U184) -> 34 | W184: =SUM(W162:W183) -> 27 | X184: =SUM(X162:X183) -> 1 | Y184: =SUM(Y162:Y183) -> 0 | Z184: =SUM(W184:Y184) -> 28 | AA184: =SUM(AA162:AA183) -> 24 | AB184: =SUM(AB162:AB183) -> 1 | AC184: =SUM(AC162:AC183) -> 0 | AD184: =SUM(AA184:AC184) -> 25 | AE184: =SUM(AE162:AE183) -> 26 | AF184: =SUM(AF162:AF183) -> 0 | AG184: =SUM(AG162:AG183) -> 0 | AH184: =SUM(AE184:AG184) -> 26 | AI184: =SUM(AI162:AI183) -> 25 | AJ184: =SUM(AJ162:AJ183) -> 1 | AK184: =SUM(AK162:AK183) -> 0 | AL184: =SUM(AI184:AK184) -> 26 | AM184: =SUM(AM162:AM183) -> 18 | AN184: =SUM(AN162:AN183) -> 1 | AO184: =SUM(AO162:AO183) -> 0 | AP184: =SUM(AM184:AO184) -> 19 | AQ184: =SUM(AQ162:AQ183) -> 18 | AR184: =SUM(AR162:AR183) -> 3 | AS184: =SUM(AS162:AS183) -> 0 | AT184: =SUM(AQ184:AS184) -> 21 | AU184: =SUM(AU162:AU183) -> 33 | AV184: =SUM(AV162:AV183) -> 0 | AW184: =SUM(AW162:AW183) -> 0 | AX184: =SUM(AU184:AW184) -> 33 | AY184: =SUM(AY162:AY183) -> 280 | AZ184: =SUM(AZ162:AZ183) -> 15 | BA184: =SUM(BA162:BA183) -> 0 | BB184: =SUM(AY184:BA184) -> 295
A186: CABAÑAS | B186: CINQUERA | F186: =SUM(C186:E186) -> 0 | J186: =SUM(G186:I186) -> 0 | N186: =SUM(K186:M186) -> 0 | R186: =SUM(O186:Q186) -> 0 | V186: =SUM(S186:U186) -> 0 | Z186: =SUM(W186:Y186) -> 0 | AD186: =SUM(AA186:AC186) -> 0 | AH186: =SUM(AE186:AG186) -> 0 | AL186: =SUM(AI186:AK186) -> 0 | AP186: =SUM(AM186:AO186) -> 0 | AT186: =SUM(AQ186:AS186) -> 0 | AX186: =SUM(AU186:AW186) -> 0 | AY186: =SUM(C186+G186+K186+O186+S186+W186+AA186+AE186+AI186+AM186+AQ186+AU186) -> 0 | AZ186: =SUM(D186+H186+L186+P186+T186+X186+AB186+AF186+AJ186+AN186+AR186+AV186) -> 0 | BA186: =SUM(E186+I186+M186+Q186+U186+Y186+AC186+AG186+AK186+AO186+AS186+AW186) -> 0 | BB186: =SUM(AY186:BA186) -> 0
B187: DOLORES | F187: =SUM(C187:E187) -> 0 | J187: =SUM(G187:I187) -> 0 | N187: =SUM(K187:M187) -> 0 | R187: =SUM(O187:Q187) -> 0 | S187: 1 | V187: =SUM(S187:U187) -> 1 | Z187: =SUM(W187:Y187) -> 0 | AD187: =SUM(AA187:AC187) -> 0 | AH187: =SUM(AE187:AG187) -> 0 | AL187: =SUM(AI187:AK187) -> 0 | AP187: =SUM(AM187:AO187) -> 0 | AT187: =SUM(AQ187:AS187) -> 0 | AX187: =SUM(AU187:AW187) -> 0 | AY187: =SUM(C187+G187+K187+O187+S187+W187+AA187+AE187+AI187+AM187+AQ187+AU187) -> 1 | AZ187: =SUM(D187+H187+L187+P187+T187+X187+AB187+AF187+AJ187+AN187+AR187+AV187) -> 0 | BA187: =SUM(E187+I187+M187+Q187+U187+Y187+AC187+AG187+AK187+AO187+AS187+AW187) -> 0 | BB187: =SUM(AY187:BA187) -> 1
B188: GUACOTECTI | F188: =SUM(C188:E188) -> 0 | J188: =SUM(G188:I188) -> 0 | N188: =SUM(K188:M188) -> 0 | R188: =SUM(O188:Q188) -> 0 | S188: 1 | V188: =SUM(S188:U188) -> 1 | Z188: =SUM(W188:Y188) -> 0 | AD188: =SUM(AA188:AC188) -> 0 | AH188: =SUM(AE188:AG188) -> 0 | AI188: 2 | AL188: =SUM(AI188:AK188) -> 2 | AP188: =SUM(AM188:AO188) -> 0 | AQ188: 1 | AT188: =SUM(AQ188:AS188) -> 1 | AU188: 1 | AX188: =SUM(AU188:AW188) -> 1 | AY188: =SUM(C188+G188+K188+O188+S188+W188+AA188+AE188+AI188+AM188+AQ188+AU188) -> 5 | AZ188: =SUM(D188+H188+L188+P188+T188+X188+AB188+AF188+AJ188+AN188+AR188+AV188) -> 0 | BA188: =SUM(E188+I188+M188+Q188+U188+Y188+AC188+AG188+AK188+AO188+AS188+AW188) -> 0 | BB188: =SUM(AY188:BA188) -> 5
B189: ILOBASCO | C189: 3 | F189: =SUM(C189:E189) -> 3 | G189: 3 | J189: =SUM(G189:I189) -> 3 | K189: 11 | N189: =SUM(K189:M189) -> 11 | O189: 4 | P189: 1 | R189: =SUM(O189:Q189) -> 5 | S189: 9 | V189: =SUM(S189:U189) -> 9 | W189: 15 | X189: 1 | Z189: =SUM(W189:Y189) -> 16 | AA189: 7 | AD189: =SUM(AA189:AC189) -> 7 | AE189: 13 | AH189: =SUM(AE189:AG189) -> 13 | AI189: 11 | AL189: =SUM(AI189:AK189) -> 11 | AM189: 3 | AP189: =SUM(AM189:AO189) -> 3 | AQ189: 5 | AT189: =SUM(AQ189:AS189) -> 5 | AU189: 5 | AX189: =SUM(AU189:AW189) -> 5 | AY189: =SUM(C189+G189+K189+O189+S189+W189+AA189+AE189+AI189+AM189+AQ189+AU189) -> 89 | AZ189: =SUM(D189+H189+L189+P189+T189+X189+AB189+AF189+AJ189+AN189+AR189+AV189) -> 2 | BA189: =SUM(E189+I189+M189+Q189+U189+Y189+AC189+AG189+AK189+AO189+AS189+AW189) -> 0 | BB189: =SUM(AY189:BA189) -> 91
B190: JUTIAPA | F190: =SUM(C190:E190) -> 0 | J190: =SUM(G190:I190) -> 0 | N190: =SUM(K190:M190) -> 0 | R190: =SUM(O190:Q190) -> 0 | V190: =SUM(S190:U190) -> 0 | Z190: =SUM(W190:Y190) -> 0 | AD190: =SUM(AA190:AC190) -> 0 | AF190: 1 | AH190: =SUM(AE190:AG190) -> 1 | AL190: =SUM(AI190:AK190) -> 0 | AP190: =SUM(AM190:AO190) -> 0 | AT190: =SUM(AQ190:AS190) -> 0 | AX190: =SUM(AU190:AW190) -> 0 | AY190: =SUM(C190+G190+K190+O190+S190+W190+AA190+AE190+AI190+AM190+AQ190+AU190) -> 0 | AZ190: =SUM(D190+H190+L190+P190+T190+X190+AB190+AF190+AJ190+AN190+AR190+AV190) -> 1 | BA190: =SUM(E190+I190+M190+Q190+U190+Y190+AC190+AG190+AK190+AO190+AS190+AW190) -> 0 | BB190: =SUM(AY190:BA190) -> 1
B191: SENSUNTEPEQUE | F191: =SUM(C191:E191) -> 0 | G191: 1 | J191: =SUM(G191:I191) -> 1 | K191: 2 | N191: =SUM(K191:M191) -> 2 | O191: 4 | R191: =SUM(O191:Q191) -> 4 | V191: =SUM(S191:U191) -> 0 | W191: 1 | Z191: =SUM(W191:Y191) -> 1 | AA191: 1 | AD191: =SUM(AA191:AC191) -> 1 | AE191: 1 | AH191: =SUM(AE191:AG191) -> 1 | AI191: 1 | AL191: =SUM(AI191:AK191) -> 1 | AP191: =SUM(AM191:AO191) -> 0 | AQ191: 1 | AT191: =SUM(AQ191:AS191) -> 1 | AU191: 2 | AX191: =SUM(AU191:AW191) -> 2 | AY191: =SUM(C191+G191+K191+O191+S191+W191+AA191+AE191+AI191+AM191+AQ191+AU191) -> 14 | AZ191: =SUM(D191+H191+L191+P191+T191+X191+AB191+AF191+AJ191+AN191+AR191+AV191) -> 0 | BA191: =SUM(E191+I191+M191+Q191+U191+Y191+AC191+AG191+AK191+AO191+AS191+AW191) -> 0 | BB191: =SUM(AY191:BA191) -> 14
B192: SAN ISIDRO | F192: =SUM(C192:E192) -> 0 | J192: =SUM(G192:I192) -> 0 | N192: =SUM(K192:M192) -> 0 | O192: 1 | R192: =SUM(O192:Q192) -> 1 | V192: =SUM(S192:U192) -> 0 | Z192: =SUM(W192:Y192) -> 0 | AD192: =SUM(AA192:AC192) -> 0 | AH192: =SUM(AE192:AG192) -> 0 | AL192: =SUM(AI192:AK192) -> 0 | AP192: =SUM(AM192:AO192) -> 0 | AQ192: 1 | AT192: =SUM(AQ192:AS192) -> 1 | AX192: =SUM(AU192:AW192) -> 0 | AY192: =SUM(C192+G192+K192+O192+S192+W192+AA192+AE192+AI192+AM192+AQ192+AU192) -> 2 | AZ192: =SUM(D192+H192+L192+P192+T192+X192+AB192+AF192+AJ192+AN192+AR192+AV192) -> 0 | BA192: =SUM(E192+I192+M192+Q192+U192+Y192+AC192+AG192+AK192+AO192+AS192+AW192) -> 0 | BB192: =SUM(AY192:BA192) -> 2
B193: TEJUTEPEQUE | F193: =SUM(C193:E193) -> 0 | J193: =SUM(G193:I193) -> 0 | K193: 1 | N193: =SUM(K193:M193) -> 1 | P193: 1 | R193: =SUM(O193:Q193) -> 1 | V193: =SUM(S193:U193) -> 0 | W193: 1 | Z193: =SUM(W193:Y193) -> 1 | AA193: 1 | AD193: =SUM(AA193:AC193) -> 1 | AE193: 1 | AH193: =SUM(AE193:AG193) -> 1 | AL193: =SUM(AI193:AK193) -> 0 | AM193: 2 | AP193: =SUM(AM193:AO193) -> 2 | AT193: =SUM(AQ193:AS193) -> 0 | AU193: 1 | AX193: =SUM(AU193:AW193) -> 1 | AY193: =SUM(C193+G193+K193+O193+S193+W193+AA193+AE193+AI193+AM193+AQ193+AU193) -> 7 | AZ193: =SUM(D193+H193+L193+P193+T193+X193+AB193+AF193+AJ193+AN193+AR193+AV193) -> 1 | BA193: =SUM(E193+I193+M193+Q193+U193+Y193+AC193+AG193+AK193+AO193+AS193+AW193) -> 0 | BB193: =SUM(AY193:BA193) -> 8
B194: VICTORIA | F194: =SUM(C194:E194) -> 0 | J194: =SUM(G194:I194) -> 0 | K194: 2 | N194: =SUM(K194:M194) -> 2 | R194: =SUM(O194:Q194) -> 0 | V194: =SUM(S194:U194) -> 0 | Z194: =SUM(W194:Y194) -> 0 | AA194: 1 | AD194: =SUM(AA194:AC194) -> 1 | AH194: =SUM(AE194:AG194) -> 0 | AL194: =SUM(AI194:AK194) -> 0 | AP194: =SUM(AM194:AO194) -> 0 | AQ194: 1 | AT194: =SUM(AQ194:AS194) -> 1 | AX194: =SUM(AU194:AW194) -> 0 | AY194: =SUM(C194+G194+K194+O194+S194+W194+AA194+AE194+AI194+AM194+AQ194+AU194) -> 4 | AZ194: =SUM(D194+H194+L194+P194+T194+X194+AB194+AF194+AJ194+AN194+AR194+AV194) -> 0 | BA194: =SUM(E194+I194+M194+Q194+U194+Y194+AC194+AG194+AK194+AO194+AS194+AW194) -> 0 | BB194: =SUM(AY194:BA194) -> 4
A195: TOTAL | C195: =SUM(C186:C194) -> 3 | D195: =SUM(D186:D194) -> 0 | E195: =SUM(E186:E194) -> 0 | F195: =SUM(F186:F194) -> 3 | G195: =SUM(G186:G194) -> 4 | H195: =SUM(H186:H194) -> 0 | I195: =SUM(I186:I194) -> 0 | J195: =SUM(J186:J194) -> 4 | K195: =SUM(K186:K194) -> 16 | L195: =SUM(L186:L194) -> 0 | M195: =SUM(M186:M194) -> 0 | N195: =SUM(N186:N194) -> 16 | O195: =SUM(O186:O194) -> 9 | P195: =SUM(P186:P194) -> 2 | Q195: =SUM(Q186:Q194) -> 0 | R195: =SUM(R186:R194) -> 11 | S195: =SUM(S186:S194) -> 11 | T195: =SUM(T186:T194) -> 0 | U195: =SUM(U186:U194) -> 0 | V195: =SUM(V186:V194) -> 11 | W195: =SUM(W186:W194) -> 17 | X195: =SUM(X186:X194) -> 1 | Y195: =SUM(Y186:Y194) -> 0 | Z195: =SUM(Z186:Z194) -> 18 | AA195: =SUM(AA186:AA194) -> 10 | AB195: =SUM(AB186:AB194) -> 0 | AC195: =SUM(AC186:AC194) -> 0 | AD195: =SUM(AD186:AD194) -> 10 | AE195: =SUM(AE186:AE194) -> 15 | AF195: =SUM(AF186:AF194) -> 1 | AG195: =SUM(AG186:AG194) -> 0 | AH195: =SUM(AH186:AH194) -> 16 | AI195: =SUM(AI186:AI194) -> 14 | AJ195: =SUM(AJ186:AJ194) -> 0 | AK195: =SUM(AK186:AK194) -> 0 | AL195: =SUM(AL186:AL194) -> 14 | AM195: =SUM(AM186:AM194) -> 5 | AN195: =SUM(AN186:AN194) -> 0 | AO195: =SUM(AO186:AO194) -> 0 | AP195: =SUM(AP186:AP194) -> 5 | AQ195: =SUM(AQ186:AQ194) -> 9 | AR195: =SUM(AR186:AR194) -> 0 | AS195: =SUM(AS186:AS194) -> 0 | AT195: =SUM(AT186:AT194) -> 9 | AU195: =SUM(AU186:AU194) -> 9 | AV195: =SUM(AV186:AV194) -> 0 | AW195: =SUM(AW186:AW194) -> 0 | AX195: =SUM(AX186:AX194) -> 9 | AY195: =SUM(AY186:AY194) -> 122 | AZ195: =SUM(AZ186:AZ194) -> 4 | BA195: =SUM(BA186:BA194) -> 0 | BB195: =SUM(BB186:BB194) -> 126
A197: USULUTAN | B197: ALEGRIA | F197: =SUM(C197:E197) -> 0 | G197: 2 | J197: =SUM(G197:I197) -> 2 | N197: =SUM(K197:M197) -> 0 | O197: 1 | R197: =SUM(O197:Q197) -> 1 | S197: 1 | V197: =SUM(S197:U197) -> 1 | W197: 2 | Z197: =SUM(W197:Y197) -> 2 | AA197: 2 | AD197: =SUM(AA197:AC197) -> 2 | AE197: 2 | AH197: =SUM(AE197:AG197) -> 2 | AL197: =SUM(AI197:AK197) -> 0 | AP197: =SUM(AM197:AO197) -> 0 | AT197: =SUM(AQ197:AS197) -> 0 | AU197: 1 | AX197: =SUM(AU197:AW197) -> 1 | AY197: =SUM(C197+G197+K197+O197+S197+W197+AA197+AE197+AI197+AM197+AQ197+AU197) -> 11 | AZ197: =SUM(D197+H197+L197+P197+T197+X197+AB197+AF197+AJ197+AN197+AR197+AV197) -> 0 | BA197: =SUM(E197+I197+M197+Q197+U197+Y197+AC197+AG197+AK197+AO197+AS197+AW197) -> 0 | BB197: =SUM(AY197:BA197) -> 11
B198: BERLIN | F198: =SUM(C198:E198) -> 0 | J198: =SUM(G198:I198) -> 0 | N198: =SUM(K198:M198) -> 0 | R198: =SUM(O198:Q198) -> 0 | V198: =SUM(S198:U198) -> 0 | Z198: =SUM(W198:Y198) -> 0 | AD198: =SUM(AA198:AC198) -> 0 | AH198: =SUM(AE198:AG198) -> 0 | AL198: =SUM(AI198:AK198) -> 0 | AP198: =SUM(AM198:AO198) -> 0 | AT198: =SUM(AQ198:AS198) -> 0 | AU198: 1 | AX198: =SUM(AU198:AW198) -> 1 | AY198: =SUM(C198+G198+K198+O198+S198+W198+AA198+AE198+AI198+AM198+AQ198+AU198) -> 1 | AZ198: =SUM(D198+H198+L198+P198+T198+X198+AB198+AF198+AJ198+AN198+AR198+AV198) -> 0 | BA198: =SUM(E198+I198+M198+Q198+U198+Y198+AC198+AG198+AK198+AO198+AS198+AW198) -> 0 | BB198: =SUM(AY198:BA198) -> 1
B199: CALIFORNIA | F199: =SUM(C199:E199) -> 0 | J199: =SUM(G199:I199) -> 0 | N199: =SUM(K199:M199) -> 0 | R199: =SUM(O199:Q199) -> 0 | V199: =SUM(S199:U199) -> 0 | Z199: =SUM(W199:Y199) -> 0 | AD199: =SUM(AA199:AC199) -> 0 | AH199: =SUM(AE199:AG199) -> 0 | AL199: =SUM(AI199:AK199) -> 0 | AP199: =SUM(AM199:AO199) -> 0 | AT199: =SUM(AQ199:AS199) -> 0 | AX199: =SUM(AU199:AW199) -> 0 | AY199: =SUM(C199+G199+K199+O199+S199+W199+AA199+AE199+AI199+AM199+AQ199+AU199) -> 0 | AZ199: =SUM(D199+H199+L199+P199+T199+X199+AB199+AF199+AJ199+AN199+AR199+AV199) -> 0 | BA199: =SUM(E199+I199+M199+Q199+U199+Y199+AC199+AG199+AK199+AO199+AS199+AW199) -> 0 | BB199: =SUM(AY199:BA199) -> 0
B200: CONCEPCION BATRES | C200: 1 | F200: =SUM(C200:E200) -> 1 | J200: =SUM(G200:I200) -> 0 | N200: =SUM(K200:M200) -> 0 | O200: 1 | R200: =SUM(O200:Q200) -> 1 | S200: 2 | V200: =SUM(S200:U200) -> 2 | W200: 7 | Z200: =SUM(W200:Y200) -> 7 | AA200: 1 | AD200: =SUM(AA200:AC200) -> 1 | AE200: 1 | AH200: =SUM(AE200:AG200) -> 1 | AL200: =SUM(AI200:AK200) -> 0 | AM200: 3 | AP200: =SUM(AM200:AO200) -> 3 | AQ200: 2 | AT200: =SUM(AQ200:AS200) -> 2 | AU200: 1 | AX200: =SUM(AU200:AW200) -> 1 | AY200: =SUM(C200+G200+K200+O200+S200+W200+AA200+AE200+AI200+AM200+AQ200+AU200) -> 19 | AZ200: =SUM(D200+H200+L200+P200+T200+X200+AB200+AF200+AJ200+AN200+AR200+AV200) -> 0 | BA200: =SUM(E200+I200+M200+Q200+U200+Y200+AC200+AG200+AK200+AO200+AS200+AW200) -> 0 | BB200: =SUM(AY200:BA200) -> 19
B201: EL TRIUNFO | F201: =SUM(C201:E201) -> 0 | J201: =SUM(G201:I201) -> 0 | N201: =SUM(K201:M201) -> 0 | R201: =SUM(O201:Q201) -> 0 | S201: 1 | V201: =SUM(S201:U201) -> 1 | Z201: =SUM(W201:Y201) -> 0 | AD201: =SUM(AA201:AC201) -> 0 | AE201: 2 | AH201: =SUM(AE201:AG201) -> 2 | AL201: =SUM(AI201:AK201) -> 0 | AP201: =SUM(AM201:AO201) -> 0 | AT201: =SUM(AQ201:AS201) -> 0 | AX201: =SUM(AU201:AW201) -> 0 | AY201: =SUM(C201+G201+K201+O201+S201+W201+AA201+AE201+AI201+AM201+AQ201+AU201) -> 3 | AZ201: =SUM(D201+H201+L201+P201+T201+X201+AB201+AF201+AJ201+AN201+AR201+AV201) -> 0 | BA201: =SUM(E201+I201+M201+Q201+U201+Y201+AC201+AG201+AK201+AO201+AS201+AW201) -> 0 | BB201: =SUM(AY201:BA201) -> 3
B202: EREGUAYQUIN | F202: =SUM(C202:E202) -> 0 | G202: 2 | H202: 1 | J202: =SUM(G202:I202) -> 3 | N202: =SUM(K202:M202) -> 0 | O202: 2 | R202: =SUM(O202:Q202) -> 2 | V202: =SUM(S202:U202) -> 0 | W202: 1 | Z202: =SUM(W202:Y202) -> 1 | AA202: 1 | AD202: =SUM(AA202:AC202) -> 1 | AH202: =SUM(AE202:AG202) -> 0 | AL202: =SUM(AI202:AK202) -> 0 | AP202: =SUM(AM202:AO202) -> 0 | AT202: =SUM(AQ202:AS202) -> 0 | AX202: =SUM(AU202:AW202) -> 0 | AY202: =SUM(C202+G202+K202+O202+S202+W202+AA202+AE202+AI202+AM202+AQ202+AU202) -> 6 | AZ202: =SUM(D202+H202+L202+P202+T202+X202+AB202+AF202+AJ202+AN202+AR202+AV202) -> 1 | BA202: =SUM(E202+I202+M202+Q202+U202+Y202+AC202+AG202+AK202+AO202+AS202+AW202) -> 0 | BB202: =SUM(AY202:BA202) -> 7
B203: ESTANZUELAS | F203: =SUM(C203:E203) -> 0 | J203: =SUM(G203:I203) -> 0 | N203: =SUM(K203:M203) -> 0 | R203: =SUM(O203:Q203) -> 0 | V203: =SUM(S203:U203) -> 0 | Z203: =SUM(W203:Y203) -> 0 | AD203: =SUM(AA203:AC203) -> 0 | AE203: 1 | AH203: =SUM(AE203:AG203) -> 1 | AL203: =SUM(AI203:AK203) -> 0 | AP203: =SUM(AM203:AO203) -> 0 | AQ203: 2 | AT203: =SUM(AQ203:AS203) -> 2 | AX203: =SUM(AU203:AW203) -> 0 | AY203: =SUM(C203+G203+K203+O203+S203+W203+AA203+AE203+AI203+AM203+AQ203+AU203) -> 3 | AZ203: =SUM(D203+H203+L203+P203+T203+X203+AB203+AF203+AJ203+AN203+AR203+AV203) -> 0 | BA203: =SUM(E203+I203+M203+Q203+U203+Y203+AC203+AG203+AK203+AO203+AS203+AW203) -> 0 | BB203: =SUM(AY203:BA203) -> 3
B204: JIQUILISCO | C204: 4 | D204: 1 | F204: =SUM(C204:E204) -> 5 | G204: 7 | J204: =SUM(G204:I204) -> 7 | K204: 2 | N204: =SUM(K204:M204) -> 2 | O204: 5 | P204: 1 | R204: =SUM(O204:Q204) -> 6 | S204: 10 | V204: =SUM(S204:U204) -> 10 | W204: 3 | Z204: =SUM(W204:Y204) -> 3 | AA204: 3 | AD204: =SUM(AA204:AC204) -> 3 | AE204: 5 | AH204: =SUM(AE204:AG204) -> 5 | AI204: 3 | AL204: =SUM(AI204:AK204) -> 3 | AM204: 1 | AP204: =SUM(AM204:AO204) -> 1 | AQ204: 10 | AT204: =SUM(AQ204:AS204) -> 10 | AU204: 14 | AX204: =SUM(AU204:AW204) -> 14 | AY204: =SUM(C204+G204+K204+O204+S204+W204+AA204+AE204+AI204+AM204+AQ204+AU204) -> 67 | AZ204: =SUM(D204+H204+L204+P204+T204+X204+AB204+AF204+AJ204+AN204+AR204+AV204) -> 2 | BA204: =SUM(E204+I204+M204+Q204+U204+Y204+AC204+AG204+AK204+AO204+AS204+AW204) -> 0 | BB204: =SUM(AY204:BA204) -> 69
B205: JUCUAPA | C205: 3 | F205: =SUM(C205:E205) -> 3 | G205: 1 | J205: =SUM(G205:I205) -> 1 | N205: =SUM(K205:M205) -> 0 | O205: 2 | R205: =SUM(O205:Q205) -> 2 | S205: 2 | V205: =SUM(S205:U205) -> 2 | W205: 2 | X205: 1 | Z205: =SUM(W205:Y205) -> 3 | AA205: 1 | AD205: =SUM(AA205:AC205) -> 1 | AE205: 3 | AH205: =SUM(AE205:AG205) -> 3 | AI205: 1 | AL205: =SUM(AI205:AK205) -> 1 | AM205: 3 | AN205: 1 | AP205: =SUM(AM205:AO205) -> 4 | AQ205: 3 | AT205: =SUM(AQ205:AS205) -> 3 | AU205: 1 | AX205: =SUM(AU205:AW205) -> 1 | AY205: =SUM(C205+G205+K205+O205+S205+W205+AA205+AE205+AI205+AM205+AQ205+AU205) -> 22 | AZ205: =SUM(D205+H205+L205+P205+T205+X205+AB205+AF205+AJ205+AN205+AR205+AV205) -> 2 | BA205: =SUM(E205+I205+M205+Q205+U205+Y205+AC205+AG205+AK205+AO205+AS205+AW205) -> 0 | BB205: =SUM(AY205:BA205) -> 24
B206: JUCUARAN | F206: =SUM(C206:E206) -> 0 | J206: =SUM(G206:I206) -> 0 | K206: 1 | N206: =SUM(K206:M206) -> 1 | R206: =SUM(O206:Q206) -> 0 | S206: 1 | V206: =SUM(S206:U206) -> 1 | Z206: =SUM(W206:Y206) -> 0 | AA206: 3 | AD206: =SUM(AA206:AC206) -> 3 | AH206: =SUM(AE206:AG206) -> 0 | AI206: 1 | AL206: =SUM(AI206:AK206) -> 1 | AM206: 1 | AP206: =SUM(AM206:AO206) -> 1 | AQ206: 2 | AR206: 1 | AT206: =SUM(AQ206:AS206) -> 3 | AX206: =SUM(AU206:AW206) -> 0 | AY206: =SUM(C206+G206+K206+O206+S206+W206+AA206+AE206+AI206+AM206+AQ206+AU206) -> 9 | AZ206: =SUM(D206+H206+L206+P206+T206+X206+AB206+AF206+AJ206+AN206+AR206+AV206) -> 1 | BA206: =SUM(E206+I206+M206+Q206+U206+Y206+AC206+AG206+AK206+AO206+AS206+AW206) -> 0 | BB206: =SUM(AY206:BA206) -> 10
B207: MERCEDES UMAÑA | F207: =SUM(C207:E207) -> 0 | G207: 1 | J207: =SUM(G207:I207) -> 1 | K207: 1 | N207: =SUM(K207:M207) -> 1 | R207: =SUM(O207:Q207) -> 0 | S207: 1 | V207: =SUM(S207:U207) -> 1 | W207: 3 | Z207: =SUM(W207:Y207) -> 3 | AA207: 4 | AD207: =SUM(AA207:AC207) -> 4 | AE207: 1 | AH207: =SUM(AE207:AG207) -> 1 | AL207: =SUM(AI207:AK207) -> 0 | AP207: =SUM(AM207:AO207) -> 0 | AQ207: 3 | AT207: =SUM(AQ207:AS207) -> 3 | AU207: 1 | AX207: =SUM(AU207:AW207) -> 1 | AY207: =SUM(C207+G207+K207+O207+S207+W207+AA207+AE207+AI207+AM207+AQ207+AU207) -> 15 | AZ207: =SUM(D207+H207+L207+P207+T207+X207+AB207+AF207+AJ207+AN207+AR207+AV207) -> 0 | BA207: =SUM(E207+I207+M207+Q207+U207+Y207+AC207+AG207+AK207+AO207+AS207+AW207) -> 0 | BB207: =SUM(AY207:BA207) -> 15
B208: NUEVA GRANADA | F208: =SUM(C208:E208) -> 0 | G208: 1 | J208: =SUM(G208:I208) -> 1 | N208: =SUM(K208:M208) -> 0 | R208: =SUM(O208:Q208) -> 0 | S208: 1 | V208: =SUM(S208:U208) -> 1 | Z208: =SUM(W208:Y208) -> 0 | AD208: =SUM(AA208:AC208) -> 0 | AH208: =SUM(AE208:AG208) -> 0 | AI208: 2 | AL208: =SUM(AI208:AK208) -> 2 | AM208: 1 | AP208: =SUM(AM208:AO208) -> 1 | AQ208: 1 | AT208: =SUM(AQ208:AS208) -> 1 | AX208: =SUM(AU208:AW208) -> 0 | AY208: =SUM(C208+G208+K208+O208+S208+W208+AA208+AE208+AI208+AM208+AQ208+AU208) -> 6 | AZ208: =SUM(D208+H208+L208+P208+T208+X208+AB208+AF208+AJ208+AN208+AR208+AV208) -> 0 | BA208: =SUM(E208+I208+M208+Q208+U208+Y208+AC208+AG208+AK208+AO208+AS208+AW208) -> 0 | BB208: =SUM(AY208:BA208) -> 6
B209: OZATLAN | F209: =SUM(C209:E209) -> 0 | G209: 2 | J209: =SUM(G209:I209) -> 2 | K209: 1 | N209: =SUM(K209:M209) -> 1 | R209: =SUM(O209:Q209) -> 0 | V209: =SUM(S209:U209) -> 0 | W209: 1 | Z209: =SUM(W209:Y209) -> 1 | AA209: 1 | AB209: 1 | AD209: =SUM(AA209:AC209) -> 2 | AH209: =SUM(AE209:AG209) -> 0 | AL209: =SUM(AI209:AK209) -> 0 | AM209: 2 | AP209: =SUM(AM209:AO209) -> 2 | AQ209: 2 | AT209: =SUM(AQ209:AS209) -> 2 | AX209: =SUM(AU209:AW209) -> 0 | AY209: =SUM(C209+G209+K209+O209+S209+W209+AA209+AE209+AI209+AM209+AQ209+AU209) -> 9 | AZ209: =SUM(D209+H209+L209+P209+T209+X209+AB209+AF209+AJ209+AN209+AR209+AV209) -> 1 | BA209: =SUM(E209+I209+M209+Q209+U209+Y209+AC209+AG209+AK209+AO209+AS209+AW209) -> 0 | BB209: =SUM(AY209:BA209) -> 10
... 79 more rows
